Workbook

Sheet HOME
B2: NUTRITIONAL
C3: RESPONSE | J3: Verson 1.3
D4: MODELS
B6: A workbook to fit data from nutritional experiments to several models
B10: Dmitry Vedenov | E10: Department of Agricultural Economics | N10: vedenov@tamu.edu
E11: Texas A&M University
E12: College Station, TX 77843
B14: Gene Pesti | E14: Department of Poultry Science | N14: gpesti@uga.edu
E15: The University of Georgia
E16: Athens, Georgia 30602

Sheet Information & Refs.
B2: The Nutritional Response Models workbook consists of 21 individual worksheets:
C4: Worksheets | F4: Content
C5: HOME | F5: Title Page
C6: Information | F6: This Page
C7: Input & Summary | F7: Main Data Input Page and Summary of Model Fits
C8: Broken Line | F8: Individual Model Pages
C9: Broken Quadratic
C10: Saturation Kinetics
C11: Logistics, 3 Parameters
C12: Logistics, 4 Parameters
C13: Compartmental
C14: RNB, Model 1
C15: RNB, Model 2
C16: Multiple Range Tests | F16: Warning
C17: Test Data Generator | F17: Random Data Generator for each of the models
C18: BLL Graph | F18: Black and White Graphs of the Individual Models for Printing. If the Axes are Set the Same, they serve nicely for comparing the models.
C19: BLQ Graph
C20: SK Graph
C21: L3 Graph
C22: L4 Graph
C23: Com Graph
C24: RNB1 Graph
C25: RNB2 Graph
B27: Up to 100 response points can be entered into the Input & Summary worksheet, where the data is automatically
C28: transferred to the other worksheets by pressing the "Copy Data" button.
B30: After the data has been copied to all the worksheets, you must go to each worksheet to fit the corresponding model
C31: Excel's Solver module is used to minimize the sum of squared errors for each model
C32: Follow the instructions on each page. Solver is run automatically by pressing a corresponding button on each worksheet
B34: A comparison of model fits is shown on the "Input & Summary" worksheet
B36: Feel free to use and modify this workbook.
B38: Please don't forget to reference this workbook in all future modifications.
C40: REFERENCES
B42: Broken Line with Linear Ascending Segment (Broken Line) Model
B44: ROBBINS, K.R. (1986) A Method, SAS Program, and Examples for Fitting the Broken Line to Growth Data. University of Tennessee Research Report. 86-09. University of Tennessee Agricultural Experiment Station, Knoxville, TN USA.
B46: Broken Line with Quadratic Ascending Segment (Broken Quadratic) Model
C48: ?
B50: Saturation Kinetics Model
B52: MORGAN, P.H., MERCER, L.P. & FLODIN (1975) General model for nutritional responses in higher animals. Proceedings of the National Academy of Sciences, USA 72: 4327-4331.
B54: MERCER, L.P. (1982) The quantitative nutrient-response relationship. Journal of Nutrition, 112: 560-566.
B56: MERCER, L.P. (1992) The determination of nutritional requirements: mathematical modeling of nutrient-response curves. Journal of Nutrition, 122: 706-708.
B58: MERCER, L.P., FLODIN, N.W. & MORGAN, P.H. (1978) New methods for comparing the biological efficiency of alternative nutrient sources. Journal of Nutrition, 108: 1244-1249.
B60: MICHAELIS, L & MENTEN, M (1913). Die Kinetik der Invertinwirkung, Biochemische Zeitschrift 49:333-369.
B62: Logistics Model, 3 Parameter
B64: SAS. 1990. User’s Guide. Release 6.08. SAS Institute Inc., Cary, NC.
B66: Logistics Model, 4 Parameter
B68: GAHL, M.J., FINKE, M.D., CRENSHAW, T.D. & BENEVENGA, N.J. (1991) Use of a four parameter logistic equation to evaluate the response of growing rats to ten levels of each indispensable amino acid. Journal of Nutrition 121: 1720-1729.
B70: Compartmental Model
B72: SAS. 1990. User’s Guide. Release 6.08. SAS Institute Inc., Cary, NC.
B74: RNB, Model 1
B76: ROBBINS, K.R., NORTON, H.W. & BAKER, D.H. (1979) Estimation of nutrient requirements from growth data. Journal of Nutrition, 109: 1710-1714.
B79: RNB, Model 2
B81: ROBBINS, K.R., NORTON, H.W. & BAKER, D.H. (1979) Estimation of nutrient requirements from growth data. Journal of Nutrition, 109: 1710-1714.
B84: Multiple Range Tests
B86: BAKER, R.J. (1980) Multiple comparison tests. Canadian Journal of Plant Science, 60: 325-327.
B88: CARMER, S.G. & WALKER, W.M. (1982) Baby bear’s dilemma: a statistical tale. Agronomy Journal, 74: 122-124.
B90: CHEW, V. (1976) Comparing treatment means: a compendium. HortScience, 11: 348-357.
B92: COUSENS, R. (1988) Misinterpretations of results in weed research through inappropriate use of statistics. Weed Research, 28: 281-289.
B94: DAWKINS, H.C. (1983) Multiple comparisons misused: why so frequently in response-curve studies? Biometrics, 39: 789-790.
B96: DUNCAN, D.B. (1955) Multiple range and multiple F tests. Biometrics, 11: 1-42.
B98: GATES, C.E. (1991) A user’s guide to misanalyzing planned experiments. HortScience, 26: 1262-1265.
B100: GILL, J.L. (1973) Current status of multiple comparisons of means in designed experiments. Journal of Dairy Science, 56: 973-977.
B102: GILLIGAN, C.A. (1986) Use and misuse of the analysis of variance in plant pathology, in: INGRAM, D.S., & WILLIAMS, P.H. (Eds.) Advances in Plant Pathology, Vol. 5, pp. 225-261 (New York: Academic Press).
B104: HAYTER, A.J. (1984), A Proof of the Conjecture that the Tukey-Kramer Method is Conservative, The Annals of Statistics, 12, 61 - 75.
B106: JSFA (1988) Recommendations of the Editorial Board on the use of statistics in papers submitted to JSFA Ð Guidelines to Authors (as formulated by A.W.A. Murray). Journal of the Science of Food and Agriculture, 42: unnumbered.
B108: LITTLE, T.M. (1978) If Galileo published in HortScience. HortScience, 13: 504-506.
B110: LOWRY, S.R. (1992) Use and misuse of multiple comparisons in animal experiments. Journal of Animal Science, 70: 1971-1977.
B112: MAINDONALD, J.H., & COX, N.R. (1984) Use of statistical evidence in some recent issues of DSIR agricultural journals. New Zealand Journal of Agricultural Research, 27: 597-610.
B114: MIHAIL, J.D., & NIBLACK, T.L. (1991) Comparison of treatment means: a statistical fantasy. Journal of Nematology, 23(4S): 557-563.
B116: NELSON, L.A. & RAWLINGS, J.O. (1983) Ten common misuses of statistics in agronomic research and reporting. Journal of Agronomic Education, 12: 100-105.
B118: PEARCE, S.C. (1993) Data analysis in agricultural experimentation. III. Multiple comparisons. Experimental Agriculture, 29: 1-8.
B120: PERRY, J.N. (1986) Multiple-comparison procedures: a dissenting view. Journal of Economic Entomology, 79: 1149-1155.
B122: PETERSEN, R.G. (1977) Use and misuse of multiple comparison procedures. Agronomy Journal, 69: 205-208.
B124: SWALLOW, W.H. (1984) Those overworked and oft-misused mean separation procedures--Duncan’s, LSD, etc. Plant Disease, 68: 919-921.
B126: SCHEFFÉ, H. (1953), A Method for Judging All Contrasts in the Analysis of Variance, Biometrika, 40, 87 - 104.
B128: WALLER, R.A. & DUNCAN, D.B. (1969), "A Bayes Rule for the Symmetric Multiple Comparison Problem," Journal of the American Statistical Association, 64, 1484 - 1499.
B130: WELSCH, R.E. (1977), Stepwise Multiple Comparison Procedures, Journal of the American Statistical Association, 72, 359.
B132: General
B133: ALMQUIST, H.J. (1952) Amino acid requirements of chickens and turkeys - a review. Poultry Science 31: 966-981
B135: ALMQUIST, H.J. (1953) Interpretation of amino acid requirement data according to the law of diminishing returns. Archives of Biochemistry and Biophysics, 44: 245-247.
B137: ALMQUIST, H.J. (1954a) Proportional requirements of amino acids. Archives of Biochemistry and Biophysics, 48: 482-483.
B139: ALMQUIST, H.J. (1954b) A fallacy in the analysis of nutritional requirement data. Archives of Biochemistry and Biophysics, 50: 503.
B141: BAKER, D.H. (1986) Problems and pitfalls in animal experiments designed to establish dietary requirements for essential nutrients. Journal of Nutrition, 116: 2339-2349.
B143: BAKER, D.H. & HAN, Y.M. (1994) Ideal amino-acid profile for chicks during the first 3 weeks posthatching. Poultry Science 73: 1441-1447.
B145: CURNOW, R.N. (1973) A smooth population response curve based on abrupt threshold and plateau model for individuals. Biometrics, 29: 1-10.
B147: FISHER, C., MORRIS, T.R. & JENNINGS, R.C. (1973) A model for the description and prediction of the response of laying hens to amino acid intake. British Poultry Science, 14:469-484.
B149: FISHER, C. (1985) The prediction of responses to nutrients. In: Proceedings of the Thirteenth International Congress of Nutrition, (Taylor, T.J. & Jenkins, N.K., eds.), Libbey, London, U.K.
B151: LERMAN, P.M. & BIE, S.W. (1975). Problems in determining the best levels of essential nutrients in feedingstuffs. Journal of Agricultural Science (Cambridge) 84: 459-468.
B153: MAS-COLELL, A., WHINSTON, M., and GREEN, J. Microeconomic Theory. Oxford University Press, 1995
B155: MILLER, R. G.J. (1981), Simultaneous Statistical Inference, New York: Springer-Verlag.
B157: SHEARER, K.D. (2000) Experimental design, statistical analysis and modelling of dietary nutrient requirement studies for fish: a critical review. Aquaculture Nutrition, 6: 91-102.
B159: STERLING KG, VEDENOV DV, PESTI GM, BAKALLI, R.I. (2005) Economically optimal dietary crude protein and lysine levels for starting broiler chicks Poultry Science 84: 29-36
B161: VARIAN, H. Microeconomic Analysis. 3rd ed. W.W. Norton Company, 1992
B163: WILSON, B.J. (1973) Growth curves: Their analysis and use. pp. 89-115 Growth and Poultry Meat Production, K.N. Boorman & B.J. Wilson, eds. British Poultry Science Ltd, Edinburgh

Sheet Input & Summary
A1: Point | B1: Input | C1: Output | E1: INSTRUCTIONS
A2: 1 | B2: 0.6 | C2: 172 | E2: 1. | F2: Press the button below to clear the data range
A3: =A2+1 -> 2 | B3: 0.7 | C3: 244
A4: =A3+1 -> 3 | B4: 0.8 | C4: 300
A5: 4 | B5: 0.9 | C5: 349 | E5: 2. Enter your data into columns B and C.
A6: 5 | B6: 1 | C6: 398 | F6: Column B, Input, should contain the nutrient levels fed.
A7: 6 | B7: 1.1 | C7: 440 | F7: Column C, Output, should contain the observed responses.
A8: 7 | B8: 1.2 | C8: 432 | E8: 3. Press the button below to automatically copy data to all spreadsheets simultaneously.
A9: 8
A10: 9
A11: 10 | E11: 4. Go to each page and follow the instructions to solve for each of the models.
A12: 11 | E12: 5. Return to this page to compare the model fits. The best fit model is highlighted yellow.
A13: 12
A14: 13 | E14: Model Fit Comparisons
A15: 14 | E15: Model | H15: Sum of Residuals | J15: R2 | K15: Qm | L15: Critical Xi2
A16: 15 | F16: Linear Regression Model | H16: ='Linear Regression'!L8 -> 3056.142857 | J16: ='Linear Regression'!H16 -> 0.9496182451 | K16: ='Linear Regression'!F104 -> 9.052383206 | L16: =_xlfn.CHISQ.INV.RT(0.05,COUNT($C$3:$C$101)-3) -> 7.814727903
A17: 16 | F17: Quadratic Regression Model | H17: ='Quadratic Regression'!L8 -> 426.3825172 | J17: ='Quadratic Regression'!I10 -> 0.9929709112 | K17: ='Quadratic Regression'!G104 -> 1.065431764 | L17: =_xlfn.CHISQ.INV.RT(0.05,COUNT($C$3:$C$101)-4) -> 5.991464547
A18: 17 | F18: Broken-Line (Linear Ascending) | H18: ='Broken Line'!K8 -> 258.3000033 | J18: ='Broken Line'!H16 -> 0.9957418197 | K18: ='Broken Line'!F104 -> 1.030964434 | L18: =_xlfn.CHISQ.INV.RT(0.05,COUNT($C$3:$C$101)-4) -> 5.991464547
A19: 18 | F19: Broken-Line (Quadratic Ascending) | H19: ='Broken Quadratic'!K8 -> 426.3811973 | J19: ='Broken Quadratic'!H16 -> 0.992970933 | K19: ='Broken Quadratic'!F104 -> 1.066345259 | L19: =_xlfn.CHISQ.INV.RT(0.05,COUNT($C$3:$C$101)-4) -> 5.991464547
A20: 19 | F20: Saturation Kinetics | H20: ='Saturation Kinetics'!L8 -> 472.9032627 | J20: ='Saturation Kinetics'!H16 -> 0.9922039979 | K20: ='Saturation Kinetics'!F104 -> 1.227707285 | L20: =_xlfn.CHISQ.INV.RT(0.05,COUNT($C$3:$C$101)-5) -> 3.841458821
A21: 20 | F21: Logistics, 3 Parameters | H21: ='Logistics, 3 Parameters'!K8 -> 434.3713329 | J21: ='Logistics, 3 Parameters'!H16 -> 0.9928392124 | K21: ='Logistics, 3 Parameters'!F104 -> 1.113431058 | L21: =_xlfn.CHISQ.INV.RT(0.05,COUNT($C$3:$C$101)-4) -> 5.991464547
A22: 21 | F22: Logistics, 4 Parameters | H22: ='Logistics, 4 Parameters'!L8 -> 432.82176 | J22: ='Logistics, 4 Parameters'!H16 -> 0.9928647577 | K22: ='Logistics, 3 Parameters'!F104 -> 1.113431058 | L22: =_xlfn.CHISQ.INV.RT(0.05,COUNT($C$3:$C$101)-5) -> 3.841458821
A23: 22 | F23: RNB, Model 1 | H23: ='RNB, Model 1'!L8 -> 432.8218255 | J23: ='RNB, Model 1'!H16 -> 0.9928647566 | K23: ='RNB, Model 1'!F104 -> 1.13432607 | L23: =_xlfn.CHISQ.INV.RT(0.05,COUNT($C$3:$C$101)-5) -> 3.841458821
A24: 23 | F24: RNB, Model 2 | H24: ='RNB, Model 2'!K8 -> 622.6501951 | J24: ='RNB, Model 2'!H16 -> 0.9897353589 | K24: ='RNB, Model 2'!F104 -> 1.524860425 | L24: =_xlfn.CHISQ.INV.RT(0.05,COUNT($C$3:$C$101)-4) -> 5.991464547
A25: 24 | E25: Regression models with Qm>critical Xi2, indicating inadequate fits, are highlighted in red
A26: 25
A27: 26
A28: 27
A29: 28
A30: 29
A31: 30
A32: 31
A33: 32
A34: 33
A35: 34
A36: 35
A37: 36
A38: 37
A39: 38
A40: 39
A41: 40
A42: 41
A43: 42
A44: 43
A45: 44
A46: 45
A47: 46
A48: 47
A49: 48
A50: 49
A51: 50
A52: 51
A53: 52
A54: 53
A55: 54
A56: 55
A57: 56
A58: 57
A59: 58
A60: 59
A61: 60
A62: 61
A63: 62
A64: 63
A65: 64
A66: 65
A67: 66
A68: =A67+1 -> 67
A69: 68
A70: 69
A71: 70
A72: 71
A73: 72
A74: 73
A75: 74
A76: 75
A77: 76
A78: 77
A79: 78
A80: 79
A81: 80
A82: 81
A83: 82
A84: 83
A85: 84
A86: 85
A87: 86
A88: 87
A89: 88
A90: 89
A91: 90
A92: 91
A93: 92
A94: 93
A95: 94
A96: 95
A97: 96
A98: 97
A99: 98
A100: 99
A101: 100
K111: =MIN(K18:K24) -> 1.030964434

Sheet Linear Regression
B1: Fitting the Compartmental Model to Nutritional Response Data
B2: Data | H2: Sample Statistics | S2: Plotting Parameters | X2: Error Analysis
A3: Point | B3: Input | C3: Output | D3: Residuals | E3: Expected | F3: Qm | H3: Min Input | I3: =MIN(B4:B103) -> 0.6 | J3: Min Output | K3: =MIN(C4:C103) -> 172 | N3: Instructions | S3: Min Input | T3: Max Input | U3: # of Points | X3: a(X0) | Y3: b (X1) | Z3: c(X2) | AA3: d (X3) | AB3: Q0 | AG3: Number of Observations, T | AH3: Number of Regressors, K | AI3: sigma
A4: 1 | B4: 0.6 | C4: 172 | D4: =IF(ISBLANK(B4),"",C4-($H$8+$I$8*B4)) -> -25.50012303 | E4: =IF(ISBLANK(B4),"",($H$8+$I$8*B4)) -> 197.500123 | F4: =IF(ISBLANK(B4),"",D4^2/E4) -> 3.292434781 | H4: Max Input | I4: =MAX(B4:B103) -> 1.2 | J4: Max Output | K4: =MAX(C4:C103) -> 440 | N4: 1. Copy data in cells B4:C103 | S4: =I3*0.75 -> 0.45 | T4: =CEILING(I4,1) -> 2 | U4: 101 | X4: =IF(ISBLANK($B4),"",EXP(-$I$8*$B4)*(1-EXP(-$J$8*($B4-$K$8)))) -> 0 | Y4: =IF(ISBLANK($B4),"",-$H$8*$B4*EXP(-$I$8*$B4)*(1-EXP(-$J$8*($B4-$K$8)))) -> 0 | Z4: =IF(ISBLANK($B4),"",$H$8*EXP($J$8*$K$8-($I$8+$J$8)*$B4)*($B4-$K$8)) -> -2.891344169e-117 | AA4: =IF(ISBLANK($B4),"",-$H$8*EXP($J$8*$K$8-($I$8+$J$8)*$B4)*$J$8) -> 0 | AB4: =SUMPRODUCT(X$4:X$103,X$4:X$103) -> 0 | AC4: =SUMPRODUCT(X$4:X$103,Y$4:Y$103) -> 0 | AD4: =SUMPRODUCT(X$4:X$103,Z$4:Z$103) -> 0 | AE4: =SUMPRODUCT(X$4:X$103,AA$4:AA$103) -> 0
A5: =A4+1 -> 2 | B5: 0.7 | C5: 244 | D5: =IF(ISBLANK(B5),"",C5-($H$8+$I$8*B5)) -> 1.14277385 | E5: =IF(ISBLANK(B5),"",($H$8+$I$8*B5)) -> 242.8572262 | F5: =IF(ISBLANK(B5),"",D5^2/E5) -> 0.00537736551 | N5: 2. View the data and estimate the value for a in cell F8 | S5: Prediction | X5: =IF(ISBLANK($B5),"",EXP(-$I$8*$B5)*(1-EXP(-$J$8*($B5-$K$8)))) -> 0 | Y5: =IF(ISBLANK($B5),"",-$H$8*$B5*EXP(-$I$8*$B5)*(1-EXP(-$J$8*($B5-$K$8)))) -> 0 | Z5: =IF(ISBLANK($B5),"",$H$8*EXP($J$8*$K$8-($I$8+$J$8)*$B5)*($B5-$K$8)) -> -6.756269713e-137 | AA5: =IF(ISBLANK($B5),"",-$H$8*EXP($J$8*$K$8-($I$8+$J$8)*$B5)*$J$8) -> 0 | AB5: =SUMPRODUCT(Y$4:Y$103,X$4:X$103) -> 0 | AC5: =SUMPRODUCT(Y$4:Y$103,Y$4:Y$103) -> 0 | AD5: =SUMPRODUCT(Y$4:Y$103,Z$4:Z$103) -> 0 | AE5: =SUMPRODUCT(Y$4:Y$103,AA$4:AA$103) -> 0 | AG5: =COUNT(B4:B53) -> 7 | AH5: 4 | AI5: =SQRT(L8/(AG5-AH5)) -> 31.91730386
A6: 3 | B6: 0.8 | C6: 300 | D6: 11.78567073 | E6: 288.2143293 | F6: =IF(ISBLANK(B6),"",D6^2/E6) -> 0.4819400715 | H6: Regression | S6: Point | T6: Input | U6: Output | X6: 0 | Y6: 0 | Z6: -1.54653347e-156 | AA6: 0 | AB6: =SUMPRODUCT(Z$4:Z$103,X$4:X$103) -> 0 | AC6: =SUMPRODUCT(Z$4:Z$103,Y$4:Y$103) -> 0 | AD6: =SUMPRODUCT(Z$4:Z$103,Z$4:Z$103) -> 8.359871106e-234 | AE6: =SUMPRODUCT(Z$4:Z$103,AA$4:AA$103) -> 0
A7: 4 | B7: 0.9 | C7: 349 | D7: 15.4285676 | E7: 333.5714324 | F7: 0.7136123634 | H7: b0 | I7: b1 | L7: SSE | N7: 3. Guess values of b, c, and d in cells G8, H8, and I8 until the predicted line is close to the observed points | S7: 1 | T7: =$S$4+(S7-1)*($T$4-$S$4)/($U$4-1) -> 0.45 | U7: =$H$8+$I$8*T7 -> 129.4644683 | X7: 0 | Y7: 0 | Z7: -3.484754953e-176 | AA7: 0 | AB7: =SUMPRODUCT(AA$4:AA$103,X$4:X$103) -> 0 | AC7: =SUMPRODUCT(AA$4:AA$103,Y$4:Y$103) -> 0 | AD7: =SUMPRODUCT(AA$4:AA$103,Z$4:Z$103) -> 0 | AE7: =SUMPRODUCT(AA$4:AA$103,AA$4:AA$103) -> 0
A8: 5 | B8: 1 | C8: 398 | D8: 19.07146448 | E8: 378.9285355 | F8: 0.9598663685 | H8: -74.64249572 | I8: 453.5710312 | L8: =SUMPRODUCT(D4:D103,D4:D103) -> 3056.142857 | S8: 2 | T8: 0.4655 | U8: =$H$8+$I$8*T8 -> 136.4948193 | X8: 0 | Y8: 0 | Z8: -7.755148755e-196 | AA8: 0
A9: 6 | B9: 1.1 | C9: 440 | D9: 15.71436135 | E9: 424.2856386 | F9: 0.5820162887 | S9: 3 | T9: 0.481 | U9: 143.5251703 | X9: 0 | Y9: 0 | Z9: -1.70861107e-215 | AA9: 0 | AB9: inv(Q0)
A10: 7 | B10: 1.2 | C10: 432 | D10: -37.64274177 | E10: 469.6427418 | F10: 3.017135967 | N10: 4. Press the button below to run solver with current settings | S10: 4 | T10: 0.4965 | U10: 150.5555213 | X10: 0 | Y10: 0 | Z10: -3.73329385e-235 | AA10: 0 | AB10: =MINVERSE(AB4:AE7) -> 
A11: 8 | S11: 5 | T11: 0.512 | U11: 157.5858723
A12: 9 | S12: 6 | T12: 0.5275 | U12: 164.6162233
A13: 10 | S13: 7 | T13: 0.543 | U13: 171.6465742
A14: 11 | N14: 5. Solver will attempt to minimize SSE (red cell) by changing cells F8:I8 | S14: 8 | T14: 0.5585 | U14: 178.6769252
A15: 12 | S15: 9 | T15: 0.574 | U15: 185.7072762
A16: 13 | D16: =IF(ISBLANK(B16),"",C16-($H$8+$I$8*B16)) ->  | E16: =IF(ISBLANK(B16),"",($H$8+$I$8*B16)) ->  | F16: =IF(ISBLANK(B16),"",D16^2/E16) ->  | H16: =1-L8/(SUMPRODUCT(C4:C103,C4:C103)-COUNT(C4:C103)*AVERAGE(C4:C103)^2) -> 0.9496182451 | L16: Goodness of Fit (R2) | S16: 10 | T16: 0.5895 | U16: 192.7376272
A17: 14 | S17: 11 | T17: 0.605 | U17: 199.7679782
A18: 15 | H18: Functional Form | S18: 12 | T18: 0.6205 | U18: 206.7983292
A19: 16 | H19: y = b0 + b1 x X | S19: 13 | T19: 0.636 | U19: 213.8286802
A20: 17 | S20: 14 | T20: 0.6515 | U20: 220.8590311
A21: 18 | S21: 15 | T21: 0.667 | U21: 227.8893821
A22: 19 | S22: 16 | T22: 0.6825 | U22: 234.9197331
A23: 20 | S23: 17 | T23: 0.698 | U23: 241.9500841
A24: 21 | S24: 18 | T24: 0.7135 | U24: 248.9804351
A25: 22 | S25: 19 | T25: 0.729 | U25: 256.0107861
A26: 23 | S26: 20 | T26: 0.7445 | U26: 263.041137
A27: 24 | S27: 21 | T27: 0.76 | U27: 270.071488
A28: 25 | S28: 22 | T28: 0.7755 | U28: 277.101839
A29: 26 | S29: 23 | T29: 0.791 | U29: 284.13219
A30: 27 | S30: 24 | T30: 0.8065 | U30: 291.162541
A31: 28 | S31: 25 | T31: 0.822 | U31: 298.192892
A32: 29 | S32: 26 | T32: 0.8375 | U32: 305.2232429
A33: 30 | S33: 27 | T33: 0.853 | U33: 312.2535939
A34: 31 | S34: 28 | T34: 0.8685 | U34: 319.2839449
A35: 32 | S35: 29 | T35: 0.884 | U35: 326.3142959
A36: 33 | S36: 30 | T36: 0.8995 | U36: 333.3446469
A37: =A36+1 -> 34 | S37: 31 | T37: 0.915 | U37: 340.3749979
A38: 35 | S38: 32 | T38: 0.9305 | U38: 347.4053489
A39: 36 | S39: 33 | T39: =$S$4+(S39-1)*($T$4-$S$4)/($U$4-1) -> 0.946 | U39: 354.4356998
A40: 37 | S40: 34 | T40: 0.9615 | U40: 361.4660508
A41: 38 | S41: 35 | T41: 0.977 | U41: 368.4964018
A42: 39 | S42: 36 | T42: 0.9925 | U42: 375.5267528
A43: 40 | S43: 37 | T43: 1.008 | U43: 382.5571038
A44: 41 | S44: 38 | T44: 1.0235 | U44: 389.5874548
A45: 42 | S45: 39 | T45: 1.039 | U45: 396.6178057
A46: 43 | S46: 40 | T46: 1.0545 | U46: 403.6481567
A47: 44 | S47: 41 | T47: 1.07 | U47: 410.6785077
A48: 45 | S48: 42 | T48: 1.0855 | U48: 417.7088587
A49: 46 | S49: 43 | T49: 1.101 | U49: 424.7392097
A50: 47 | S50: 44 | T50: 1.1165 | U50: 431.7695607
A51: 48 | S51: 45 | T51: 1.132 | U51: 438.7999116
A52: 49 | S52: 46 | T52: 1.1475 | U52: 445.8302626
A53: 50 | S53: 47 | T53: 1.163 | U53: 452.8606136
A54: 51 | S54: 48 | T54: 1.1785 | U54: 459.8909646
A55: 52 | S55: 49 | T55: 1.194 | U55: 466.9213156
A56: 53 | S56: 50 | T56: 1.2095 | U56: 473.9516666
A57: 54 | S57: 51 | T57: 1.225 | U57: 480.9820176
A58: 55 | S58: 52 | T58: 1.2405 | U58: 488.0123685
A59: 56 | S59: 53 | T59: 1.256 | U59: 495.0427195
A60: 57 | S60: 54 | T60: 1.2715 | U60: 502.0730705
A61: 58 | S61: 55 | T61: 1.287 | U61: 509.1034215
A62: 59 | S62: 56 | T62: 1.3025 | U62: 516.1337725
A63: 60 | S63: 57 | T63: 1.318 | U63: 523.1641235
A64: 61 | S64: 58 | T64: 1.3335 | U64: 530.1944744
A65: 62 | S65: 59 | T65: 1.349 | U65: 537.2248254
A66: 63 | S66: 60 | T66: 1.3645 | U66: 544.2551764
A67: 64 | S67: 61 | T67: 1.38 | U67: 551.2855274
A68: 65 | S68: 62 | T68: 1.3955 | U68: 558.3158784
A69: =A68+1 -> 66 | S69: 63 | T69: 1.411 | U69: 565.3462294 | X69: =IF(ISBLANK($B69),"",EXP(-$I$8*$B69)*(1-EXP(-$J$8*($B69-$K$8)))) ->  | Y69: =IF(ISBLANK($B69),"",-$H$8*$B69*EXP(-$I$8*$B69)*(1-EXP(-$J$8*($B69-$K$8)))) ->  | Z69: =IF(ISBLANK($B69),"",$H$8*EXP($J$8*$K$8-($I$8+$J$8)*$B69)*($B69-$K$8)) ->  | AA69: =IF(ISBLANK($B69),"",-$H$8*EXP($J$8*$K$8-($I$8+$J$8)*$B69)*$J$8) -> 
A70: 67 | S70: 64 | T70: 1.4265 | U70: 572.3765803
A71: 68 | S71: 65 | T71: =$S$4+(S71-1)*($T$4-$S$4)/($U$4-1) -> 1.442 | U71: 579.4069313
A72: 69 | S72: 66 | T72: 1.4575 | U72: =$H$8+$I$8*T72 -> 586.4372823
A73: 70 | S73: 67 | T73: 1.473 | U73: 593.4676333
A74: 71 | S74: 68 | T74: 1.4885 | U74: 600.4979843
A75: 72 | S75: 69 | T75: 1.504 | U75: 607.5283353
A76: 73 | S76: 70 | T76: 1.5195 | U76: 614.5586863
A77: 74 | S77: 71 | T77: 1.535 | U77: 621.5890372
A78: 75 | S78: 72 | T78: 1.5505 | U78: 628.6193882
A79: 76 | S79: 73 | T79: 1.566 | U79: 635.6497392
A80: 77 | D80: =IF(ISBLANK(B80),"",C80-($H$8+$I$8*B80)) ->  | E80: =IF(ISBLANK(B80),"",($H$8+$I$8*B80)) ->  | F80: =IF(ISBLANK(B80),"",D80^2/E80) ->  | S80: 74 | T80: 1.5815 | U80: 642.6800902
A81: 78 | S81: 75 | T81: 1.597 | U81: 649.7104412
A82: 79 | S82: 76 | T82: 1.6125 | U82: 656.7407922
A83: 80 | S83: 77 | T83: 1.628 | U83: 663.7711431
A84: 81 | S84: 78 | T84: 1.6435 | U84: 670.8014941
A85: 82 | S85: 79 | T85: 1.659 | U85: 677.8318451
A86: 83 | S86: 80 | T86: 1.6745 | U86: 684.8621961
A87: 84 | S87: 81 | T87: 1.69 | U87: 691.8925471
A88: 85 | S88: 82 | T88: 1.7055 | U88: 698.9228981
A89: 86 | S89: 83 | T89: 1.721 | U89: 705.953249
A90: 87 | S90: 84 | T90: 1.7365 | U90: 712.9836
A91: 88 | S91: 85 | T91: 1.752 | U91: 720.013951
A92: 89 | S92: 86 | T92: 1.7675 | U92: 727.044302
A93: 90 | S93: 87 | T93: 1.783 | U93: 734.074653
A94: 91 | S94: 88 | T94: 1.7985 | U94: 741.105004
A95: 92 | S95: 89 | T95: 1.814 | U95: 748.135355
A96: 93 | S96: 90 | T96: 1.8295 | U96: 755.1657059
A97: 94 | S97: 91 | T97: 1.845 | U97: 762.1960569
A98: 95 | S98: 92 | T98: 1.8605 | U98: 769.2264079
A99: 96 | S99: 93 | T99: 1.876 | U99: 776.2567589
A100: 97 | S100: 94 | T100: 1.8915 | U100: 783.2871099
A101: 98 | S101: 95 | T101: 1.907 | U101: 790.3174609
A102: 99 | S102: 96 | T102: 1.9225 | U102: 797.3478118
A103: 100 | S103: 97 | T103: =$S$4+(S103-1)*($T$4-$S$4)/($U$4-1) -> 1.938 | U103: 804.3781628
D104: =SUM(D4:D103) -> -2.678920293e-05 | E104: 2335.000027 | F104: =SUM(F4:F103) -> 9.052383206 | S104: 98 | T104: =$S$4+(S104-1)*($T$4-$S$4)/($U$4-1) -> 1.9535 | U104: 811.4085138
S105: 99 | T105: =$S$4+(S105-1)*($T$4-$S$4)/($U$4-1) -> 1.969 | U105: 818.4388648
S106: 100 | T106: =$S$4+(S106-1)*($T$4-$S$4)/($U$4-1) -> 1.9845 | U106: 825.4692158
S107: 101 | T107: =$S$4+(S107-1)*($T$4-$S$4)/($U$4-1) -> 2 | U107: 832.4995668

Sheet Quadratic Regression
B1: Fitting the Quadratic Polynomial Model to Nutritional Response Data
B2: Data | I2: Sample Statistics | U2: Plotting Parameters | Z2: Error Analysis
A3: Point | B3: Input | C3: Output | D3: Residuals | E3: Expected | G3: Qm | I3: Min Input | J3: =MIN(B4:B103) -> 0.6 | K3: Min Output | L3: =MIN(C4:C103) -> 172 | N3: Instructions | U3: Min Input | V3: Max Input | W3: # of Points | Z3: Maximum(X0) | AA3: Rate Constant (X1) | AB3: Requirement(X2) | AC3: Q0 | AG3: Number of Observations, T | AH3: Number of Regressors, K | AI3: sigma
A4: 1 | B4: 0.6 | C4: 172 | D4: =IF(ISBLANK(B4),"",(C4-($I$8+$J$8*B4+$K$8*B4^2))) -> 2.45257055 | E4: =IF(ISBLANK(B4),"",(ABS(D4))) -> 2.45257055 | F4: =IF(ISBLANK(B4),"",($I$8+$J$8*B4+$K$8*B4^2)) -> 169.5474294 | G4: =IF(ISBLANK(B4),"",D4^2/F4) -> 0.03547740194 | I4: Max Input | J4: =MAX(B4:B103) -> 1.2 | K4: Max Output | L4: =MAX(C4:C103) -> 440 | N4: 1. Copy data in cells B4:C103 | U4: =FLOOR(J3,1) -> 0 | V4: =CEILING(J4,1) -> 2 | W4: 101 | Z4: =IF(ISBLANK(B4),"",1) -> 1 | AA4: =IF(ISBLANK(B4),"",($K$8-B4)^2*IF(B4<$K$8,1,0)) -> 0 | AB4: =IF(ISBLANK(B4),"",2*$J$8*($K$8-B4)*IF(B4<$K$8,1,0)) -> 0 | AC4: =SUMPRODUCT(Z$4:Z$103,Z$4:Z$103) -> 7 | AD4: =SUMPRODUCT(Z$4:Z$103,AA$4:AA$103) -> 0 | AE4: =SUMPRODUCT(Z$4:Z$103,AB$4:AB$103) -> 0
A5: =A4+1 -> 2 | B5: 0.7 | C5: 244 | D5: =IF(ISBLANK(B5),"",(C5-($I$8+$J$8*B5+$K$8*B5^2))) -> 1.14141074 | E5: =IF(ISBLANK(B5),"",(ABS(D5))) -> 1.14141074 | F5: =IF(ISBLANK(B5),"",($I$8+$J$8*B5+$K$8*B5^2)) -> 242.8585893 | G5: =IF(ISBLANK(B5),"",D5^2/F5) -> 0.005364514718 | N5: 2. View the data and estimate values for b0, b1 and b2 | U5: Prediction | Z5: 1 | AA5: 0 | AB5: 0 | AC5: =SUMPRODUCT(AA$4:AA$103,Z$4:Z$103) -> 0 | AD5: =SUMPRODUCT(AA$4:AA$103,AA$4:AA$103) -> 0 | AE5: =SUMPRODUCT(AA$4:AA$103,AB$4:AB$103) -> 0 | AG5: =COUNT(B4:B53) -> 7 | AH5: 3 | AI5: =SQRT(L8/(AG5-AH5)) -> 10.32451593
A6: 3 | B6: 0.8 | C6: 300 | D6: -4.987868639 | E6: 4.987868639 | F6: 304.9878686 | G6: 0.08157319068 | I6: Regression | U6: Point | V6: Input | W6: Output | Z6: 1 | AA6: 0 | AB6: 0 | AC6: =SUMPRODUCT(AB$4:AB$103,Z$4:Z$103) -> 0 | AD6: =SUMPRODUCT(AB$4:AB$103,AA$4:AA$103) -> 0 | AE6: =SUMPRODUCT(AB$4:AB$103,AB$4:AB$103) -> 0
A7: 4 | B7: 0.9 | C7: 349 | D7: -6.935267587 | E7: 6.935267587 | F7: 355.9352676 | G7: 0.1351311345 | I7: b0 | J7: b1 | K7: b2 | L7: SSE | U7: =U8-1 -> 1 | V7: =$U$4+(U7-1)*($V$4-$U$4)/($W$4-1) -> 0 | W7: =($I$8+$J$8*V7+$K$8*V7^2) -> -505.1390185 | Z7: 1 | AA7: 0 | AB7: 0 | AC7: inv(Q0)
A8: 5 | B8: 1 | C8: 398 | D8: 2.299213897 | E8: 2.299213897 | F8: 395.7007861 | G8: 0.01335955027 | I8: -505.1390185 | J8: 1459.933826 | K8: -559.0940216 | L8: =SUMPRODUCT(D4:D103,D4:D103) -> 426.3825172 | N8: 3. Press the button below to run solver with current settings | U8: 2 | V8: 0.02 | W8: =($I$8+$J$8*V8+$K$8*V8^2) -> -476.1639796 | Z8: 1 | AA8: 0 | AB8: 0 | AC8: =MINVERSE(AC4:AE6) -> 
A9: 6 | B9: 1.1 | C9: 440 | D9: 15.71557581 | E9: 15.71557581 | F9: 424.2844242 | G9: 0.5821079187 | U9: 3 | V9: 0.04 | W9: -447.6362159 | Z9: 1 | AA9: 0 | AB9: 0
A10: 7 | B10: 1.2 | C10: 432 | D10: -9.686181841 | E10: 9.686181841 | F10: 441.6861818 | G10: 0.2124180527 | I10: =1-L8/(SUMPRODUCT(C4:C103,C4:C103)-COUNT(C4:C103)*AVERAGE(C4:C103)^2) -> 0.9929709112 | L10: Goodness of Fit (R2) | U10: 4 | V10: 0.06 | W10: -419.5557274 | Z10: 1 | AA10: 0 | AB10: 0
A11: 8 | U11: 5 | V11: 0.08 | W11: -391.9225141
A12: 9 | I12: Functional Form | U12: 6 | V12: 0.1 | W12: -364.7365761
A13: 10 | U13: 7 | V13: 0.12 | W13: -337.9979132
A14: 11 | J14: y=b0 + b1x + b2x2 | U14: 8 | V14: 0.14 | W14: -311.7065256
A15: 12 | N15: 5. Solver will attempt to minimize SSE (red cell) by changing cells F8:H8 | U15: 9 | V15: 0.16 | W15: -285.8624132
A16: 13 | U16: 10 | V16: 0.18 | W16: -260.4655761
A17: 14 | U17: 11 | V17: 0.2 | W17: -235.5160141
A18: 15 | U18: 12 | V18: 0.22 | W18: -211.0137274
A19: 16 | U19: =U20-1 -> 13 | V19: 0.24 | W19: -186.9587158
A20: 17 | U20: 14 | V20: 0.26 | W20: -163.3509795
A21: 18 | U21: 15 | V21: 0.28 | W21: -140.1905184
A22: 19 | U22: 16 | V22: 0.3 | W22: -117.4773326
A23: 20 | U23: 17 | V23: 0.32 | W23: -95.21142191
A24: 21 | U24: 18 | V24: 0.34 | W24: -73.39278648
A25: 22 | U25: 19 | V25: 0.36 | W25: -52.02142626
A26: 23 | U26: 20 | V26: 0.38 | W26: -31.09734125
A27: 24 | U27: 21 | V27: 0.4 | W27: -10.62053147
A28: 25 | U28: 22 | V28: 0.42 | W28: 9.409003104
A29: 26 | U29: 23 | V29: 0.44 | W29: 28.99126246
A30: 27 | U30: 24 | V30: 0.46 | W30: 48.12624659
A31: 28 | U31: 25 | V31: 0.48 | W31: 66.81395551
A32: 29 | U32: 26 | V32: 0.5 | W32: 85.05438921
A33: 30 | U33: 27 | V33: 0.52 | W33: 102.8475477
A34: 31 | U34: 28 | V34: 0.54 | W34: 120.193431
A35: 32 | U35: 29 | V35: 0.56 | W35: 137.092039
A36: 33 | U36: 30 | V36: 0.58 | W36: 153.5433718 | Z36: =IF(ISBLANK(B36),"",1) ->  | AA36: =IF(ISBLANK(B36),"",($K$8-B36)^2*IF(B36<$K$8,1,0)) ->  | AB36: =IF(ISBLANK(B36),"",2*$J$8*($K$8-B36)*IF(B36<$K$8,1,0)) -> 
A37: 34 | U37: 31 | V37: 0.6 | W37: 169.5474294
A38: 35 | U38: 32 | V38: 0.62 | W38: 185.1042118
A39: 36 | U39: 33 | V39: 0.64 | W39: 200.213719
A40: 37 | U40: 34 | V40: 0.66 | W40: 214.875951
A41: 38 | U41: 35 | V41: 0.68 | W41: 229.0909077
A42: 39 | U42: 36 | V42: 0.7 | W42: 242.8585893
A43: 40 | U43: 37 | V43: 0.72 | W43: 256.1789956
A44: 41 | U44: 38 | V44: 0.74 | W44: 269.0521267
A45: 42 | U45: 39 | V45: 0.76 | W45: 281.4779825
A46: 43 | U46: 40 | V46: 0.78 | W46: 293.4565632
A47: 44 | U47: 41 | V47: 0.8 | W47: 304.9878686
A48: 45 | U48: 42 | V48: 0.82 | W48: 316.0718989
A49: 46 | U49: 43 | V49: 0.84 | W49: 326.7086539
A50: 47 | U50: 44 | V50: 0.86 | W50: 336.8981337
A51: 48 | U51: 45 | V51: 0.88 | W51: 346.6403382
A52: 49 | U52: 46 | V52: 0.9 | W52: 355.9352676
A53: 50 | U53: 47 | V53: 0.92 | W53: 364.7829217
A54: 51 | U54: 48 | V54: 0.94 | W54: 373.1833006
A55: 52 | U55: 49 | V55: 0.96 | W55: 381.1364043
A56: 53 | U56: 50 | V56: 0.98 | W56: 388.6422328
A57: 54 | U57: 51 | V57: 1 | W57: 395.7007861
A58: 55 | U58: 52 | V58: 1.02 | W58: 402.3120642
A59: 56 | U59: 53 | V59: 1.04 | W59: 408.476067
A60: 57 | U60: 54 | V60: 1.06 | W60: 414.1927946
A61: 58 | U61: 55 | V61: 1.08 | W61: 419.462247
A62: 59 | U62: 56 | V62: 1.1 | W62: 424.2844242
A63: 60 | U63: 57 | V63: 1.12 | W63: 428.6593262
A64: 61 | U64: 58 | V64: 1.14 | W64: 432.5869529
A65: 62 | U65: 59 | V65: 1.16 | W65: 436.0673044
A66: 63 | U66: 60 | V66: 1.18 | W66: 439.1003807
A67: 64 | U67: 61 | V67: 1.2 | W67: 441.6861818
A68: 65 | U68: 62 | V68: 1.22 | W68: 443.8247077 | Z68: =IF(ISBLANK(B68),"",1) ->  | AA68: =IF(ISBLANK(B68),"",($K$8-B68)^2*IF(B68<$K$8,1,0)) ->  | AB68: =IF(ISBLANK(B68),"",2*$J$8*($K$8-B68)*IF(B68<$K$8,1,0)) -> 
A69: =A68+1 -> 66 | D69: =IF(ISBLANK(B69),"",(C69-($I$8+$J$8*B69+$K$8*B69^2))) ->  | E69: =IF(ISBLANK(B69),"",(ABS(D69))) ->  | F69: =IF(ISBLANK(B69),"",($I$8+$J$8*B69+$K$8*B69^2)) ->  | G69: =IF(ISBLANK(B69),"",D69^2/F69) ->  | U69: 63 | V69: 1.24 | W69: 445.5159584
A70: 67 | U70: 64 | V70: 1.26 | W70: 446.7599338
A71: 68 | U71: 65 | V71: =$U$4+(U71-1)*($V$4-$U$4)/($W$4-1) -> 1.28 | W71: 447.5566341
A72: 69 | U72: 66 | V72: 1.3 | W72: =($I$8+$J$8*V72+$K$8*V72^2) -> 447.9060591
A73: 70 | U73: 67 | V73: 1.32 | W73: 447.8082089
A74: 71 | U74: 68 | V74: 1.34 | W74: 447.2630834
A75: 72 | U75: 69 | V75: 1.36 | W75: 446.2706828
A76: 73 | U76: 70 | V76: 1.38 | W76: 444.8310069
A77: 74 | U77: 71 | V77: 1.4 | W77: 442.9440559
A78: 75 | U78: 72 | V78: 1.42 | W78: 440.6098296
A79: 76 | U79: 73 | V79: 1.44 | W79: 437.828328
A80: 77 | U80: 74 | V80: 1.46 | W80: 434.5995513
A81: 78 | U81: 75 | V81: 1.48 | W81: 430.9234994
A82: 79 | U82: 76 | V82: 1.5 | W82: 426.8001722
A83: 80 | U83: 77 | V83: 1.52 | W83: 422.2295698
A84: 81 | U84: 78 | V84: 1.54 | W84: 417.2116922
A85: 82 | U85: 79 | V85: 1.56 | W85: 411.7465394
A86: 83 | U86: 80 | V86: 1.58 | W86: 405.8341114
A87: 84 | U87: 81 | V87: 1.6 | W87: 399.4744081
A88: 85 | U88: 82 | V88: 1.62 | W88: 392.6674297
A89: 86 | U89: 83 | V89: 1.64 | W89: 385.413176
A90: 87 | U90: 84 | V90: 1.66 | W90: 377.7116471
A91: 88 | U91: 85 | V91: 1.68 | W91: 369.562843
A92: 89 | U92: 86 | V92: 1.7 | W92: 360.9667636
A93: 90 | U93: 87 | V93: 1.72 | W93: 351.9234091
A94: 91 | U94: 88 | V94: 1.74 | W94: 342.4327793
A95: 92 | U95: 89 | V95: 1.76 | W95: 332.4948743
A96: 93 | U96: 90 | V96: 1.78 | W96: 322.1096941
A97: 94 | U97: 91 | V97: 1.8 | W97: 311.2772387
A98: 95 | U98: 92 | V98: 1.82 | W98: 299.9975081
A99: 96 | U99: 93 | V99: 1.84 | W99: 288.2705022
A100: 97 | U100: 94 | V100: 1.86 | W100: 276.0962211
A101: 98 | U101: 95 | V101: 1.88 | W101: 263.4746648
A102: 99 | U102: 96 | V102: 1.9 | W102: 250.4058333
A103: 100 | U103: 97 | V103: =$U$4+(U103-1)*($V$4-$U$4)/($W$4-1) -> 1.92 | W103: 236.8897266
D104: =SUM(D4:D103) -> -0.0005470675947 | E104: 43.21808907 | F104: =SUM(F4:F103) -> 2335.000547 | G104: =SUM(G4:G103) -> 1.065431764 | U104: 98 | V104: =$U$4+(U104-1)*($V$4-$U$4)/($W$4-1) -> 1.94 | W104: 222.9263447
U105: 99 | V105: =$U$4+(U105-1)*($V$4-$U$4)/($W$4-1) -> 1.96 | W105: 208.5156875
U106: 100 | V106: =$U$4+(U106-1)*($V$4-$U$4)/($W$4-1) -> 1.98 | W106: 193.6577551
U107: 101 | V107: =$U$4+(U107-1)*($V$4-$U$4)/($W$4-1) -> 2 | W107: 178.3525475

Sheet Broken Line
B1: Fitting the Broken-Line (Ascending Linear) Model to Nutritional Response Data
B2: Data | H2: Sample Statistics | S2: Plotting Parameters | X2: Error Analysis
A3: Point | B3: Input | C3: Output | D3: Residuals | E3: Expected | F3: Qm | H3: Min Input | I3: =MIN(B4:B103) -> 0.6 | J3: Min Output | K3: =MIN(C4:C103) -> 172 | N3: Instructions | S3: Min Input | T3: Max Input | U3: # of Points | X3: Maximum(X0) | Y3: Rate Constant (X1) | Z3: Requirement(X2) | AA3: Q0 | AE3: Number of Observations, T | AF3: Number of Regressors, K | AG3: sigma
A4: 1 | B4: 0.6 | C4: 172 | D4: =IF(ISBLANK(B4),"",IF(B4<$J$8,C4-($H$8+$I$8*($J$8-B4)),C4-$H$8)) -> -9.200143812 | E4: =IF(ISBLANK(B4),"",IF(B4<$J$8,($H$8+$I$8*($J$8-B4)),$H$8)) -> 181.2001438 | F4: =IF(ISBLANK(B4),"",D4^2/E4) -> 0.4671224006 | H4: Max Input | I4: =MAX(B4:B103) -> 1.2 | J4: Max Output | K4: =MAX(C4:C103) -> 440 | N4: 1. Copy data in cells B4:C103 | S4: =FLOOR(I3,1) -> 0 | T4: =CEILING(I4,1) -> 2 | U4: 101 | X4: =IF(ISBLANK(B4),"",1) -> 1 | Y4: =IF(ISBLANK(B4),"",($J$8-B4)*IF(B4<$J$8,1,0)) -> 0.4574486877 | Z4: =IF(ISBLANK(B4),"",$I$8*IF(B4<$J$8,1,0)) -> -556.999281 | AA4: =SUMPRODUCT(X$4:X$103,X$4:X$103) -> 7 | AB4: =SUMPRODUCT(X$4:X$103,Y$4:Y$103) -> 1.287243439 | AC4: =SUMPRODUCT(X$4:X$103,Z$4:Z$103) -> -2784.996405
A5: =A4+1 -> 2 | B5: 0.7 | C5: 244 | D5: =IF(ISBLANK(B5),"",IF(B5<$J$8,C5-($H$8+$I$8*($J$8-B5)),C5-$H$8)) -> 7.099928092 | E5: =IF(ISBLANK(B5),"",IF(B5<$J$8,($H$8+$I$8*($J$8-B5)),$H$8)) -> 236.9000719 | F5: =IF(ISBLANK(B5),"",D5^2/E5) -> 0.212785832 | N5: 2. View the data and estimate values for the Maximum and Requirement in cells F8 and H8 | S5: Prediction | X5: 1 | Y5: =IF(ISBLANK(B5),"",($J$8-B5)*IF(B5<$J$8,1,0)) -> 0.3574486877 | Z5: =IF(ISBLANK(B5),"",$I$8*IF(B5<$J$8,1,0)) -> -556.999281 | AA5: =SUMPRODUCT(Y$4:Y$103,X$4:X$103) -> 1.287243439 | AB5: =SUMPRODUCT(Y$4:Y$103,Y$4:Y$103) -> 0.4313991341 | AC5: =SUMPRODUCT(Y$4:Y$103,Z$4:Z$103) -> -716.9936698 | AE5: =COUNT(B4:B53) -> 7 | AF5: 3 | AG5: =SQRT(K8/(AE5-AF5)) -> 8.035857192
A6: 3 | B6: 0.8 | C6: 300 | D6: 7.399999997 | E6: 292.6 | F6: 0.1871496922 | H6: Regression | S6: Point | T6: Input | U6: Output | X6: 1 | Y6: 0.2574486877 | Z6: -556.999281 | AA6: =SUMPRODUCT(Z$4:Z$103,X$4:X$103) -> -2784.996405 | AB6: =SUMPRODUCT(Z$4:Z$103,Y$4:Y$103) -> -716.9936698 | AC6: =SUMPRODUCT(Z$4:Z$103,Z$4:Z$103) -> 1551240.995
A7: 4 | B7: 0.9 | C7: 349 | D7: 0.700071901 | E7: 348.2999281 | F7: 0.001407122503 | H7: Max or Min | I7: Rate Constant | J7: Requirement | K7: SSE | S7: 1 | T7: =$S$4+(S7-1)*($T$4-$S$4)/($U$4-1) -> 0 | U7: =IF(T7<$J$8,($H$8+$I$8*($J$8-T7)),$H$8) -> -152.9994248 | X7: 1 | Y7: 0.1574486877 | Z7: -556.999281 | AA7: inv(Q0)
A8: 5 | B8: 1 | C8: 398 | D8: -5.999856195 | E8: 403.9998562 | F8: 0.08910467121 | H8: 435.998734 | I8: -556.999281 | J8: 1.057448688 | K8: =SUMPRODUCT(D4:D103,D4:D103) -> 258.3000033 | N8: 3. Guess the Rate Constant values in cell G8 until the predicted line is close to the observed points | S8: 2 | T8: 0.02 | U8: -141.8594391 | X8: 1 | Y8: 0.05744868774 | Z8: -556.999281 | AA8: =MINVERSE(AA4:AC6) -> 0.5 | AB8: 0 | AC8: 0.000897667227
A9: 6 | B9: 1.1 | C9: 440 | D9: 4.001266043 | E9: 435.998734 | F9: 0.03672058815 | S9: 3 | T9: 0.04 | U9: -130.7194535 | X9: 1 | Y9: 0 | Z9: 0 | AA9: -2.156202532e-16 | AB9: 10 | AC9: 0.004622064993
A10: 7 | B10: 1.2 | C10: 432 | D10: -3.998733957 | E10: 435.998734 | F10: 0.03667412773 | H10: =IF(ISNUMBER(H13),H$8-NORMSINV(0.975)*H$13,"N/A") -> 424.8618087 | I10: =IF(ISNUMBER(I13),I$8-NORMSINV(0.975)*I$13,"N/A") -> -606.8051246 | J10: =IF(ISNUMBER(J13),J$8-NORMSINV(0.975)*J$13,"N/A") -> 1.024438997 | K10: Lower 95% Confidence Levels | S10: 4 | T10: 0.06 | U10: -119.5794679 | X10: 1 | Y10: 0 | Z10: 0 | AA10: 0.000897667227 | AB10: 0.004622064993 | AC10: 4.392606541e-06
A11: 8 | H11: =IF(ISNUMBER(H14),H$8+NORMSINV(0.975)*H$13,"N/A") -> 447.1356592 | I11: =IF(ISNUMBER(I14),I$8+NORMSINV(0.975)*I$13,"N/A") -> -507.1934373 | J11: =IF(ISNUMBER(J14),J$8+NORMSINV(0.975)*J$13,"N/A") -> 1.090458378 | K11: Upper 95% Confidence Levels | N11: 4. Press the button below to run solver with current settings | S11: 5 | T11: 0.08 | U11: -108.4394823
A12: 9 | S12: 6 | T12: 0.1 | U12: -97.29949667
A13: 10 | H13: =IF(ISNUMBER(AA8),SQRT(AA8)*$AG$5,"N/A") -> 5.682209113 | I13: =IF(ISNUMBER(AB9),SQRT(AB9)*$AG$5,"N/A") -> 25.41161168 | J13: =IF(ISNUMBER(AC10),SQRT(AC10)*$AG$5,"N/A") -> 0.01684198833 | K13: Standard Errors | S13: 7 | T13: 0.12 | U13: -86.15951105
A14: 11 | H14: =IF(ISNUMBER(H13),H8/H13,"N/A") -> 76.73049782 | I14: =IF(ISNUMBER(I13),I8/I13,"N/A") -> -21.91908518 | J14: =IF(ISNUMBER(J13),J8/J13,"N/A") -> 62.78645175 | K14: t-Statistics | N14: 5. Solver will attempt to minimize SSE (red cell) by changing cells F8:H8 | S14: 8 | T14: 0.14 | U14: -75.01952543
A15: 12 | H15: =IF(ISNUMBER(H14),2*TDIST(ABS(H14),$AE$5-$AF$5,1),"N/A") -> 1.728970497e-07 | I15: =IF(ISNUMBER(I14),2*TDIST(ABS(I14),$AE$5-$AF$5,1),"N/A") -> 2.563652749e-05 | J15: =IF(ISNUMBER(J14),2*TDIST(ABS(J14),$AE$5-$AF$5,1),"N/A") -> 3.854369954e-07 | K15: p-values | S15: 9 | T15: 0.16 | U15: -63.87953981 | X15: =IF(ISBLANK(B15),"",1) -> 
A16: 13 | H16: =1-K8/(SUMPRODUCT(C4:C103,C4:C103)-COUNT(C4:C103)*AVERAGE(C4:C103)^2) -> 0.9957418197 | K16: Goodness of Fit (R2) | S16: 10 | T16: 0.18 | U16: -52.73955419 | X16: =IF(ISBLANK(B16),"",1) -> 
A17: 14 | S17: 11 | T17: 0.2 | U17: -41.59956857 | X17: =IF(ISBLANK(B17),"",1) -> 
A18: 15 | H18: Functional Form | S18: 12 | T18: 0.22 | U18: -30.45958295 | X18: =IF(ISBLANK(B18),"",1) -> 
A19: 16 | H19: y ={ | I19: Maximum, | L19: if x > Requirement | S19: 13 | T19: 0.24 | U19: -19.31959733
A20: 17 | I20: Maximum + Rate Constant×(Requirement - x) | L20: if x £ Requirement | S20: 14 | T20: 0.26 | U20: -8.179611713
A21: 18 | S21: 15 | T21: 0.28 | U21: 2.960373907
A22: 19 | S22: 16 | T22: 0.3 | U22: 14.10035953
A23: 20 | S23: 17 | T23: 0.32 | U23: 25.24034514
A24: 21 | S24: 18 | T24: 0.34 | U24: 36.38033076
A25: 22 | S25: 19 | T25: 0.36 | U25: 47.52031638
A26: 23 | S26: 20 | T26: 0.38 | U26: 58.660302
A27: 24 | S27: 21 | T27: 0.4 | U27: 69.80028762
A28: 25 | S28: 22 | T28: 0.42 | U28: 80.94027324
A29: 26 | S29: 23 | T29: 0.44 | U29: 92.08025886
A30: 27 | S30: 24 | T30: 0.46 | U30: 103.2202445
A31: 28 | S31: 25 | T31: 0.48 | U31: 114.3602301
A32: 29 | S32: 26 | T32: 0.5 | U32: 125.5002157
A33: 30 | S33: 27 | T33: 0.52 | U33: 136.6402013
A34: 31 | S34: 28 | T34: 0.54 | U34: 147.780187
A35: 32 | S35: 29 | T35: 0.56 | U35: 158.9201726
A36: 33 | S36: 30 | T36: 0.58 | U36: 170.0601582 | X36: =IF(ISBLANK(B36),"",1) -> 
A37: =A36+1 -> 34 | S37: 31 | T37: 0.6 | U37: 181.2001438
A38: 35 | S38: 32 | T38: 0.62 | U38: 192.3401294
A39: 36 | S39: 33 | T39: =$S$4+(S39-1)*($T$4-$S$4)/($U$4-1) -> 0.64 | U39: =IF(T39<$J$8,($H$8+$I$8*($J$8-T39)),$H$8) -> 203.4801151
A40: 37 | S40: 34 | T40: 0.66 | U40: 214.6201007
A41: 38 | S41: 35 | T41: 0.68 | U41: 225.7600863
A42: 39 | S42: 36 | T42: 0.7 | U42: 236.9000719
A43: 40 | S43: 37 | T43: 0.72 | U43: 248.0400575
A44: 41 | S44: 38 | T44: 0.74 | U44: 259.1800431
A45: 42 | S45: 39 | T45: 0.76 | U45: 270.3200288
A46: 43 | S46: 40 | T46: 0.78 | U46: 281.4600144
A47: 44 | S47: 41 | T47: 0.8 | U47: 292.6
A48: 45 | S48: 42 | T48: 0.82 | U48: 303.7399856
A49: 46 | S49: 43 | T49: 0.84 | U49: 314.8799712
A50: 47 | S50: 44 | T50: 0.86 | U50: 326.0199569
A51: 48 | S51: 45 | T51: 0.88 | U51: 337.1599425
A52: 49 | S52: 46 | T52: 0.9 | U52: 348.2999281
A53: 50 | S53: 47 | T53: 0.92 | U53: 359.4399137
A54: 51 | S54: 48 | T54: 0.94 | U54: 370.5798993 | X54: =IF(ISBLANK(B54),"",1) -> 
A55: 52 | S55: 49 | T55: 0.96 | U55: 381.719885
A56: 53 | S56: 50 | T56: 0.98 | U56: 392.8598706
A57: 54 | S57: 51 | T57: 1 | U57: 403.9998562
A58: 55 | S58: 52 | T58: 1.02 | U58: 415.1398418
A59: 56 | S59: 53 | T59: 1.04 | U59: 426.2798274
A60: 57 | S60: 54 | T60: 1.06 | U60: 435.998734
A61: 58 | S61: 55 | T61: 1.08 | U61: 435.998734
A62: 59 | S62: 56 | T62: 1.1 | U62: 435.998734
A63: 60 | S63: 57 | T63: 1.12 | U63: 435.998734
A64: 61 | S64: 58 | T64: 1.14 | U64: 435.998734
A65: 62 | S65: 59 | T65: 1.16 | U65: 435.998734
A66: 63 | S66: 60 | T66: 1.18 | U66: 435.998734
A67: 64 | S67: 61 | T67: 1.2 | U67: 435.998734
A68: 65 | S68: 62 | T68: 1.22 | U68: 435.998734
A69: =A68+1 -> 66 | D69: =IF(ISBLANK(B69),"",IF(B69<$J$8,C69-($H$8+$I$8*($J$8-B69)),C69-$H$8)) ->  | E69: =IF(ISBLANK(B69),"",IF(B69<$J$8,($H$8+$I$8*($J$8-B69)),$H$8)) ->  | F69: =IF(ISBLANK(B69),"",D69^2/E69) ->  | S69: 63 | T69: 1.24 | U69: 435.998734 | Y69: =IF(ISBLANK(B69),"",($J$8-B69)*IF(B69<$J$8,1,0)) ->  | Z69: =IF(ISBLANK(B69),"",$I$8*IF(B69<$J$8,1,0)) -> 
A70: 67 | S70: 64 | T70: 1.26 | U70: 435.998734
A71: 68 | S71: 65 | T71: =$S$4+(S71-1)*($T$4-$S$4)/($U$4-1) -> 1.28 | U71: =IF(T71<$J$8,($H$8+$I$8*($J$8-T71)),$H$8) -> 435.998734
A72: 69 | S72: 66 | T72: 1.3 | U72: 435.998734
A73: 70 | S73: 67 | T73: 1.32 | U73: 435.998734
A74: 71 | S74: 68 | T74: 1.34 | U74: 435.998734
A75: 72 | S75: 69 | T75: 1.36 | U75: 435.998734
A76: 73 | S76: 70 | T76: 1.38 | U76: 435.998734
A77: 74 | S77: 71 | T77: 1.4 | U77: 435.998734
A78: 75 | S78: 72 | T78: 1.42 | U78: 435.998734
A79: 76 | S79: 73 | T79: 1.44 | U79: 435.998734
A80: 77 | S80: 74 | T80: 1.46 | U80: 435.998734
A81: 78 | S81: 75 | T81: 1.48 | U81: 435.998734
A82: 79 | S82: 76 | T82: 1.5 | U82: 435.998734
A83: 80 | S83: 77 | T83: 1.52 | U83: 435.998734
A84: 81 | S84: 78 | T84: 1.54 | U84: 435.998734
A85: 82 | S85: 79 | T85: 1.56 | U85: 435.998734
A86: 83 | S86: 80 | T86: 1.58 | U86: 435.998734
A87: 84 | S87: 81 | T87: 1.6 | U87: 435.998734
A88: 85 | S88: 82 | T88: 1.62 | U88: 435.998734
A89: 86 | S89: 83 | T89: 1.64 | U89: 435.998734
A90: 87 | S90: 84 | T90: 1.66 | U90: 435.998734
A91: 88 | S91: 85 | T91: 1.68 | U91: 435.998734
A92: 89 | S92: 86 | T92: 1.7 | U92: 435.998734
A93: 90 | S93: 87 | T93: 1.72 | U93: 435.998734
A94: 91 | S94: 88 | T94: 1.74 | U94: 435.998734
A95: 92 | S95: 89 | T95: 1.76 | U95: 435.998734
A96: 93 | S96: 90 | T96: 1.78 | U96: 435.998734
A97: 94 | S97: 91 | T97: 1.8 | U97: 435.998734
A98: 95 | S98: 92 | T98: 1.82 | U98: 435.998734
A99: 96 | S99: 93 | T99: 1.84 | U99: 435.998734
A100: 97 | S100: 94 | T100: 1.86 | U100: 435.998734
A101: 98 | S101: 95 | T101: 1.88 | U101: 435.998734 | X101: =IF(ISBLANK(B101),"",1) -> 
A102: 99 | S102: 96 | T102: 1.9 | U102: 435.998734 | X102: =IF(ISBLANK(B102),"",1) -> 
A103: =A102+1 -> 100 | E103: =IF(ISBLANK(B103),"",IF(B103<$J$8,($H$8+$I$8*($J$8-B103)),$H$8)) ->  | F103: =IF(ISBLANK(B103),"",D103^2/E103) ->  | S103: 97 | T103: =$S$4+(S103-1)*($T$4-$S$4)/($U$4-1) -> 1.92 | U103: =IF(T103<$J$8,($H$8+$I$8*($J$8-T103)),$H$8) -> 435.998734 | X103: =IF(ISBLANK(B103),"",1) -> 
D104: =SUM(D4:D103) -> 0.002532068102 | E104: 2334.997468 | F104: =SUM(F4:F103) -> 1.030964434 | S104: 98 | T104: =$S$4+(S104-1)*($T$4-$S$4)/($U$4-1) -> 1.94 | U104: =IF(T104<$J$8,($H$8+$I$8*($J$8-T104)),$H$8) -> 435.998734
S105: 99 | T105: =$S$4+(S105-1)*($T$4-$S$4)/($U$4-1) -> 1.96 | U105: =IF(T105<$J$8,($H$8+$I$8*($J$8-T105)),$H$8) -> 435.998734
S106: 100 | T106: =$S$4+(S106-1)*($T$4-$S$4)/($U$4-1) -> 1.98 | U106: =IF(T106<$J$8,($H$8+$I$8*($J$8-T106)),$H$8) -> 435.998734
S107: 101 | T107: =$S$4+(S107-1)*($T$4-$S$4)/($U$4-1) -> 2 | U107: =IF(T107<$J$8,($H$8+$I$8*($J$8-T107)),$H$8) -> 435.998734

Sheet Broken Quadratic
B1: Fitting the Broken-Line (Ascending Quadratic) Model to Nutritional Response Data
B2: Data | H2: Sample Statistics | S2: Plotting Parameters | X2: Error Analysis
A3: Point | B3: Input | C3: Output | D3: Residuals | E3: Expected | F3: Qm | H3: Min Input | I3: =MIN(B4:B103) -> 0.6 | J3: Min Output | K3: =MIN(C4:C103) -> 172 | N3: Instructions | S3: Min Input | T3: Max Input | U3: # of Points | X3: Maximum(X0) | Y3: Rate Constant (X1) | Z3: Requirement(X2) | AA3: Q0 | AE3: Number of Observations, T | AF3: Number of Regressors, K | AG3: sigma
A4: 1 | B4: 0.6 | C4: 172 | D4: =IF(ISBLANK(B4),"",IF(B4<$J$8,C4-($H$8+$I$8*($J$8-B4)^2),C4-$H$8)) -> 2.484652158 | E4: =IF(ISBLANK(B4),"",IF(B4<$J$8,($H$8+$I$8*($J$8-B4)^2),$H$8)) -> 169.5153478 | F4: =IF(ISBLANK(B4),"",D4^2/E4) -> 0.03641850973 | H4: Max Input | I4: =MAX(B4:B103) -> 1.2 | J4: Max Output | K4: =MAX(C4:C103) -> 440 | N4: 1. Copy data in cells B4:C103 | S4: =FLOOR(I3,1) -> 0 | T4: =CEILING(I4,1) -> 2 | U4: 101 | X4: =IF(ISBLANK(B4),"",1) -> 1 | Y4: =IF(ISBLANK(B4),"",($J$8-B4)^2*IF(B4<$J$8,1,0)) -> 0.497300435 | Z4: =IF(ISBLANK(B4),"",2*$I$8*($J$8-B4)*IF(B4<$J$8,1,0)) -> -789.3879873 | AA4: =SUMPRODUCT(X$4:X$103,X$4:X$103) -> 7 | AB4: =SUMPRODUCT(X$4:X$103,Y$4:Y$103) -> 1.429282714 | AC4: =SUMPRODUCT(X$4:X$103,Z$4:Z$103) -> -3174.998694
A5: =A4+1 -> 2 | B5: 0.7 | C5: 244 | D5: =IF(ISBLANK(B5),"",IF(B5<$J$8,C5-($H$8+$I$8*($J$8-B5)^2),C5-$H$8)) -> 1.14279918 | E5: =IF(ISBLANK(B5),"",IF(B5<$J$8,($H$8+$I$8*($J$8-B5)^2),$H$8)) -> 242.8572008 | F5: =IF(ISBLANK(B5),"",D5^2/E5) -> 0.005377604459 | N5: 2. View the data and estimate values for the Maximum and Requirement in cells F8 and H8 | S5: Prediction | X5: 1 | Y5: =IF(ISBLANK(B5),"",($J$8-B5)^2*IF(B5<$J$8,1,0)) -> 0.3662613716 | Z5: =IF(ISBLANK(B5),"",2*$I$8*($J$8-B5)*IF(B5<$J$8,1,0)) -> -677.4490722 | AA5: =SUMPRODUCT(Y$4:Y$103,X$4:X$103) -> 1.429282714 | AB5: =SUMPRODUCT(Y$4:Y$103,Y$4:Y$103) -> 0.4841208166 | AC5: =SUMPRODUCT(Y$4:Y$103,Z$4:Z$103) -> -902.2814311 | AE5: =COUNT(B4:B53) -> 7 | AF5: 3 | AG5: =SQRT(K8/(AE5-AF5)) -> 10.32449996
A6: 3 | B6: 0.8 | C6: 300 | D6: -5.005162284 | E6: 305.0051623 | F6: 0.08213516552 | H6: Regression | S6: Point | T6: Input | U6: Output | X6: 1 | Y6: 0.2552223082 | Z6: -565.5101571 | AA6: =SUMPRODUCT(Z$4:Z$103,X$4:X$103) -> -3174.998694 | AB6: =SUMPRODUCT(Z$4:Z$103,Y$4:Y$103) -> -902.2814311 | AC6: =SUMPRODUCT(Z$4:Z$103,Z$4:Z$103) -> 1790937.081
A7: 4 | B7: 0.9 | C7: 349 | D7: -6.959232234 | E7: 355.9592322 | F7: 0.136057472 | H7: Max or Min | I7: Rate Constant | J7: Requirement | K7: SSE | S7: 1 | T7: =$S$4+(S7-1)*($T$4-$S$4)/($U$4-1) -> 0 | U7: =IF(T7<$J$8,($H$8+$I$8*($J$8-T7)^2),$H$8) -> -505.6074918 | X7: 1 | Y7: 0.1641832448 | Z7: -453.5712419 | AA7: inv(Q0)
A8: 5 | B8: 1 | C8: 398 | D8: 2.280589329 | E8: 395.7194107 | F8: 0.01314337267 | H8: 447.8517038 | I8: -559.6945757 | J8: 1.305195317 | K8: =SUMPRODUCT(D4:D53,D4:D53) -> 426.3811973 | N8: 3. Guess the Rate Constant values in cell G8 until the predicted line is close to the observed points | S8: 2 | T8: 0.02 | U8: =IF(T8<$J$8,($H$8+$I$8*($J$8-T8)^2),$H$8) -> -476.6109401 | X8: 1 | Y8: 0.09314418146 | Z8: -341.6323268 | AA8: =MINVERSE(AA4:AC6) -> 2.565116148 | AB8: 14.78371962 | AC8: 0.01199557279
A9: 6 | B9: 1.1 | C9: 440 | D9: 15.71430241 | E9: 424.2856976 | F9: 0.5820118413 | S9: 3 | T9: 0.04 | U9: -448.062144 | X9: 1 | Y9: 0.04210511808 | Z9: -229.6934117 | AA9: 14.78371962 | AB9: 119.047619 | AC9: 0.08618546583
A10: 7 | B10: 1.2 | C10: 432 | D10: -9.658093003 | E10: 441.658093 | F10: 0.2112012933 | H10: =IF(ISNUMBER(H13),H$8-NORMSINV(0.975)*H$13,"N/A") -> 415.4423303 | I10: =IF(ISNUMBER(I13),I$8-NORMSINV(0.975)*I$13,"N/A") -> -780.4835972 | J10: =IF(ISNUMBER(J13),J$8-NORMSINV(0.975)*J$13,"N/A") -> 1.141743281 | K10: Lower 95% Confidence Levels | S10: 4 | T10: 0.06 | U10: -419.9611036 | X10: 1 | Y10: 0.0110660547 | Z10: -117.7544965 | AA10: 0.01199557279 | AB10: 0.08618546583 | AC10: 6.524487915e-05
A11: 8 | H11: =IF(ISNUMBER(H14),H$8+NORMSINV(0.975)*H$13,"N/A") -> 480.2610772 | I11: =IF(ISNUMBER(I14),I$8+NORMSINV(0.975)*I$13,"N/A") -> -338.9055542 | J11: =IF(ISNUMBER(J14),J$8+NORMSINV(0.975)*J$13,"N/A") -> 1.468647352 | K11: Upper 95% Confidence Levels | N11: 4. Press the button below to run solver with current settings | S11: 5 | T11: 0.08 | U11: -392.3078188
A12: 9 | S12: 6 | T12: 0.1 | U12: -365.1022898
A13: 10 | H13: =IF(ISNUMBER(AA8),SQRT(AA8)*$AG$5,"N/A") -> 16.53569846 | I13: =IF(ISNUMBER(AB9),SQRT(AB9)*$AG$5,"N/A") -> 112.6495299 | J13: =IF(ISNUMBER(AC10),SQRT(AC10)*$AG$5,"N/A") -> 0.08339542807 | K13: Standard Errors | S13: 7 | T13: 0.12 | U13: -338.3445163
A14: 11 | H14: =IF(ISNUMBER(H13),H8/H13,"N/A") -> 27.08393025 | I14: =IF(ISNUMBER(I13),I8/I13,"N/A") -> -4.968459044 | J14: =IF(ISNUMBER(J13),J8/J13,"N/A") -> 15.6506819 | K14: t-Statistics | S14: 8 | T14: 0.14 | U14: -312.0344986
A15: 12 | H15: =IF(ISNUMBER(H14),2*TDIST(ABS(H14),$AE$5-$AF$5,1),"N/A") -> 1.105013941e-05 | I15: =IF(ISNUMBER(I14),2*TDIST(ABS(I14),$AE$5-$AF$5,1),"N/A") -> 0.007659874637 | J15: =IF(ISNUMBER(J14),2*TDIST(ABS(J14),$AE$5-$AF$5,1),"N/A") -> 9.733957868e-05 | K15: p-values | N15: 5. Solver will attempt to minimize SSE (red cell) by changing cells F8:H8 | S15: 9 | T15: 0.16 | U15: -286.1722364
A16: 13 | H16: =1-K8/(SUMPRODUCT(C4:C103,C4:C103)-COUNT(C4:C103)*AVERAGE(C4:C103)^2) -> 0.992970933 | K16: Goodness of Fit (R2) | S16: 10 | T16: 0.18 | U16: -260.75773
A17: 14 | S17: 11 | T17: 0.2 | U17: -235.7909792
A18: 15 | H18: Functional Form | S18: 12 | T18: 0.22 | U18: -211.2719841
A19: 16 | H19: y ={ | I19: Maximum, | L19: if x > Requirement | S19: 13 | T19: 0.24 | U19: -187.2007446
A20: 17 | I20: Maximum + Rate Constant×(Requirement - x)2 | L20: if x £ Requirement | S20: 14 | T20: 0.26 | U20: -163.5772608
A21: 18 | S21: 15 | T21: 0.28 | U21: -140.4015327
A22: 19 | S22: 16 | T22: 0.3 | U22: -117.6735602
A23: 20 | S23: 17 | T23: 0.32 | U23: -95.39334335
A24: 21 | S24: 18 | T24: 0.34 | U24: -73.56088218
A25: 22 | S25: 19 | T25: 0.36 | U25: -52.17617668
A26: 23 | S26: 20 | T26: 0.38 | U26: -31.23922684
A27: 24 | S27: 21 | T27: 0.4 | U27: -10.75003265
A28: 25 | S28: 22 | T28: 0.42 | U28: 9.291405868
A29: 26 | S29: 23 | T29: 0.44 | U29: 28.88508873
A30: 27 | S30: 24 | T30: 0.46 | U30: 48.03101593
A31: 28 | S31: 25 | T31: 0.48 | U31: 66.72918747
A32: 29 | S32: 26 | T32: 0.5 | U32: 84.97960335
A33: 30 | S33: 27 | T33: 0.52 | U33: 102.7822636
A34: 31 | S34: 28 | T34: 0.54 | U34: 120.1371681
A35: 32 | S35: 29 | T35: 0.56 | U35: 137.044317
A36: 33 | S36: 30 | T36: 0.58 | U36: 153.5037103 | X36: =IF(ISBLANK(B36),"",1) -> 
A37: =A36+1 -> 34 | S37: 31 | T37: 0.6 | U37: 169.5153478
A38: 35 | S38: 32 | T38: 0.62 | U38: 185.0792298
A39: 36 | S39: 33 | T39: =$S$4+(S39-1)*($T$4-$S$4)/($U$4-1) -> 0.64 | U39: 200.195356
A40: 37 | S40: 34 | T40: 0.66 | U40: 214.8637266
A41: 38 | S41: 35 | T41: 0.68 | U41: 229.0843415
A42: 39 | S42: 36 | T42: 0.7 | U42: 242.8572008
A43: 40 | S43: 37 | T43: 0.72 | U43: 256.1823044
A44: 41 | S44: 38 | T44: 0.74 | U44: 269.0596524
A45: 42 | S45: 39 | T45: 0.76 | U45: 281.4892447
A46: 43 | S46: 40 | T46: 0.78 | U46: 293.4710813
A47: 44 | S47: 41 | T47: 0.8 | U47: 305.0051623
A48: 45 | S48: 42 | T48: 0.82 | U48: 316.0914876
A49: 46 | S49: 43 | T49: 0.84 | U49: 326.7300572
A50: 47 | S50: 44 | T50: 0.86 | U50: 336.9208712
A51: 48 | S51: 45 | T51: 0.88 | U51: 346.6639296
A52: 49 | S52: 46 | T52: 0.9 | U52: 355.9592322
A53: 50 | S53: 47 | T53: 0.92 | U53: 364.8067792
A54: 51 | S54: 48 | T54: 0.94 | U54: 373.2065706
A55: 52 | S55: 49 | T55: 0.96 | U55: 381.1586063
A56: 53 | S56: 50 | T56: 0.98 | U56: 388.6628863
A57: 54 | S57: 51 | T57: 1 | U57: 395.7194107
A58: 55 | S58: 52 | T58: 1.02 | U58: 402.3281794
A59: 56 | S59: 53 | T59: 1.04 | U59: 408.4891924
A60: 57 | S60: 54 | T60: 1.06 | U60: 414.2024498
A61: 58 | S61: 55 | T61: 1.08 | U61: 419.4679515
A62: 59 | S62: 56 | T62: 1.1 | U62: 424.2856976
A63: 60 | S63: 57 | T63: 1.12 | U63: 428.655688
A64: 61 | S64: 58 | T64: 1.14 | U64: 432.5779227
A65: 62 | S65: 59 | T65: 1.16 | U65: 436.0524018
A66: 63 | S66: 60 | T66: 1.18 | U66: 439.0791252
A67: 64 | S67: 61 | T67: 1.2 | U67: 441.658093
A68: 65 | S68: 62 | T68: 1.22 | U68: 443.7893051
A69: =A68+1 -> 66 | D69: =IF(ISBLANK(B69),"",IF(B69<$J$8,C69-($H$8+$I$8*($J$8-B69)^2),C69-$H$8)) ->  | E69: =IF(ISBLANK(B69),"",IF(B69<$J$8,($H$8+$I$8*($J$8-B69)^2),$H$8)) ->  | F69: =IF(ISBLANK(B69),"",D69^2/E69) ->  | S69: 63 | T69: 1.24 | U69: 445.4727615 | Y69: =IF(ISBLANK(B69),"",($J$8-B69)^2*IF(B69<$J$8,1,0)) ->  | Z69: =IF(ISBLANK(B69),"",2*$I$8*($J$8-B69)*IF(B69<$J$8,1,0)) -> 
A70: 67 | S70: 64 | T70: 1.26 | U70: 446.7084623
A71: 68 | S71: 65 | T71: =$S$4+(S71-1)*($T$4-$S$4)/($U$4-1) -> 1.28 | U71: 447.4964074
A72: 69 | S72: 66 | T72: 1.3 | U72: =IF(T72<$J$8,($H$8+$I$8*($J$8-T72)^2),$H$8) -> 447.8365969
A73: 70 | S73: 67 | T73: 1.32 | U73: 447.8517038
A74: 71 | S74: 68 | T74: 1.34 | U74: 447.8517038
A75: 72 | S75: 69 | T75: 1.36 | U75: 447.8517038
A76: 73 | S76: 70 | T76: 1.38 | U76: 447.8517038
A77: 74 | S77: 71 | T77: 1.4 | U77: 447.8517038
A78: 75 | S78: 72 | T78: 1.42 | U78: 447.8517038
A79: 76 | S79: 73 | T79: 1.44 | U79: 447.8517038
A80: 77 | S80: 74 | T80: 1.46 | U80: 447.8517038
A81: 78 | S81: 75 | T81: 1.48 | U81: 447.8517038
A82: 79 | S82: 76 | T82: 1.5 | U82: 447.8517038
A83: 80 | S83: 77 | T83: 1.52 | U83: 447.8517038
A84: 81 | S84: 78 | T84: 1.54 | U84: 447.8517038
A85: 82 | S85: 79 | T85: 1.56 | U85: 447.8517038
A86: 83 | S86: 80 | T86: 1.58 | U86: 447.8517038
A87: 84 | S87: 81 | T87: 1.6 | U87: 447.8517038
A88: 85 | S88: 82 | T88: 1.62 | U88: 447.8517038
A89: 86 | S89: 83 | T89: 1.64 | U89: 447.8517038
A90: 87 | S90: 84 | T90: 1.66 | U90: 447.8517038
A91: 88 | S91: 85 | T91: 1.68 | U91: 447.8517038
A92: 89 | S92: 86 | T92: 1.7 | U92: 447.8517038
A93: 90 | S93: 87 | T93: 1.72 | U93: 447.8517038
A94: 91 | S94: 88 | T94: 1.74 | U94: 447.8517038
A95: 92 | S95: 89 | T95: 1.76 | U95: 447.8517038
A96: 93 | S96: 90 | T96: 1.78 | U96: 447.8517038
A97: 94 | S97: 91 | T97: 1.8 | U97: 447.8517038
A98: 95 | S98: 92 | T98: 1.82 | U98: 447.8517038
A99: 96 | S99: 93 | T99: 1.84 | U99: 447.8517038
A100: 97 | S100: 94 | T100: 1.86 | U100: 447.8517038 | X100: =IF(ISBLANK(B100),"",1) -> 
A101: 98 | S101: 95 | T101: 1.88 | U101: 447.8517038 | X101: =IF(ISBLANK(B101),"",1) ->  | Y101: =IF(ISBLANK(B101),"",($J$8-B101)^2*IF(B101<$J$8,1,0)) ->  | Z101: =IF(ISBLANK(B101),"",2*$I$8*($J$8-B101)*IF(B101<$J$8,1,0)) -> 
A102: 99 | S102: 96 | T102: 1.9 | U102: 447.8517038 | X102: =IF(ISBLANK(B102),"",1) ->  | Y102: =IF(ISBLANK(B102),"",($J$8-B102)^2*IF(B102<$J$8,1,0)) ->  | Z102: =IF(ISBLANK(B102),"",2*$I$8*($J$8-B102)*IF(B102<$J$8,1,0)) -> 
A103: 100 | S103: 97 | T103: =$S$4+(S103-1)*($T$4-$S$4)/($U$4-1) -> 1.92 | U103: 447.8517038 | X103: =IF(ISBLANK(B103),"",1) ->  | Y103: =IF(ISBLANK(B103),"",($J$8-B103)^2*IF(B103<$J$8,1,0)) ->  | Z103: =IF(ISBLANK(B103),"",2*$I$8*($J$8-B103)*IF(B103<$J$8,1,0)) -> 
D104: =SUM(D4:D103) -> -0.0001444483756 | E104: 2335.000144 | F104: =SUM(F4:F103) -> 1.066345259 | S104: 98 | T104: =$S$4+(S104-1)*($T$4-$S$4)/($U$4-1) -> 1.94 | U104: 447.8517038
S105: 99 | T105: =$S$4+(S105-1)*($T$4-$S$4)/($U$4-1) -> 1.96 | U105: 447.8517038
S106: 100 | T106: =$S$4+(S106-1)*($T$4-$S$4)/($U$4-1) -> 1.98 | U106: 447.8517038
S107: 101 | T107: =$S$4+(S107-1)*($T$4-$S$4)/($U$4-1) -> 2 | U107: 447.8517038

Sheet Saturation Kinetics
B1: Fitting the Saturation Kinetics Model to Nutritional Response Data
B2: Data | H2: Sample Statistics | S2: Plotting Parameters | X2: Error Analysis
A3: Point | B3: Input | C3: Output | D3: Residuals | E3: Expected | F3: Qm | H3: Min Input | I3: =MIN(B4:B103) -> 0.6 | J3: Min Output | K3: =MIN(C4:C103) -> 172 | N3: Instructions | S3: Min Input | T3: Max Input | U3: # of Points | X3: Maximum(X0) | Y3: Rate Constant (X1) | Z3: Intercept(X2) | AA3: Kinetic Order (X3) | AB3: Q0 | AG3: Number of Observations, T | AH3: Number of Regressors, K | AI3: sigma
A4: 1 | B4: 0.6 | C4: 172 | D4: =IF(ISBLANK(B4),"",C4-($J$8*$I$8+$H$8*B4^$K$8)/($I$8+B4^$K$8)) -> -2.308058913 | E4: =IF(ISBLANK(B4),"",($J$8*$I$8+$H$8*B4^$K$8)/($I$8+B4^$K$8)) -> 174.3080589 | F4: =IF(ISBLANK(B4),"",D4^2/E4) -> 0.0305616159 | H4: Max Input | I4: =MAX(B4:B103) -> 1.2 | J4: Max Output | K4: =MAX(C4:C103) -> 440 | N4: 1. Copy data in cells B4:C103 | S4: =FLOOR(I3,1) -> 0 | T4: =CEILING(I4,1) -> 2 | U4: 101 | X4: =IF(ISBLANK(B4),"",$B4^$K$8/($I$8 + $B4^$K$8)) -> 0.2279454795 | Y4: =IF(ISBLANK(B4),"",$J$8/($I$8 + $B4^$K$8) - ($I$8*$J$8 + $H$8*$B4^$K$8)/($I$8 + $B4^$K$8)^2) -> -256.1411371 | Z4: =IF(ISBLANK(B4),"",$I$8/($I$8 + $B4^$K$8)) -> 0.7720545205 | AA4: =IF(ISBLANK(B4),"",($H$8* LN($B4)*$B4^$K$8)/($I$8 + $B4^$K$8) -(LN($B4)*$B4^$K$8)*($I$8*$J$8 + $H$8*$B4^$K$8)/($I$8 + $B4^$K$8)^2) -> -35.93522797 | AB4: =SUMPRODUCT(X$4:X$103,X$4:X$103) -> 3.123051737 | AC4: =SUMPRODUCT(X$4:X$103,Y$4:Y$103) -> -1071.711387 | AD4: =SUMPRODUCT(X$4:X$103,Z$4:Z$103) -> 1.261540962 | AE4: =SUMPRODUCT(X$4:X$103,AA$4:AA$103) -> -29.59671011
A5: =A4+1 -> 2 | B5: 0.7 | C5: 244 | D5: 6.292715335 | E5: =IF(ISBLANK(B5),"",($J$8*$I$8+$H$8*B5^$K$8)/($I$8+B5^$K$8)) -> 237.7072847 | F5: =IF(ISBLANK(B5),"",D5^2/E5) -> 0.1665841513 | N5: 2. View the data and estimate values for the Max and Intercept in cells F8 and H8 | S5: Prediction | X5: 0.38654986 | Y5: -345.1319533 | Z5: 0.61345014 | AA5: -33.80852067 | AB5: =SUMPRODUCT(Y$4:Y$103,X$4:X$103) -> -1071.711387 | AC5: =SUMPRODUCT(Y$4:Y$103,Y$4:Y$103) -> 524563.1212 | AD5: =SUMPRODUCT(Y$4:Y$103,Z$4:Z$103) -> -764.4114645 | AE5: =SUMPRODUCT(Y$4:Y$103,AA$4:AA$103) -> 29955.02308 | AG5: =COUNT(B4:B53) -> 7 | AH5: 4 | AI5: =SQRT(L8/(AG5-AH5)) -> 12.55525471
A6: 3 | B6: 0.8 | C6: 300 | D6: -2.469180988 | E6: 302.469181 | F6: 0.02015694535 | H6: Regression | S6: Point | T6: Input | U6: Output | X6: 0.548563202 | Y6: -360.4325525 | Z6: 0.451436798 | AA6: -22.08903509 | AB6: =SUMPRODUCT(Z$4:Z$103,X$4:X$103) -> 1.261540962 | AC6: =SUMPRODUCT(Z$4:Z$103,Y$4:Y$103) -> -764.4114645 | AD6: =SUMPRODUCT(Z$4:Z$103,Z$4:Z$103) -> 1.353866339 | AE6: =SUMPRODUCT(Z$4:Z$103,AA$4:AA$103) -> -59.96188986
A7: 4 | B7: 0.9 | C7: 349 | D7: -7.772248215 | E7: 356.7722482 | F7: 0.1693176602 | H7: Max or Min | I7: Rate Constant | J7: Intercept | K7: Kinetic Order | L7: SSE | N7: 3. Guess the Rate Constant and Kinetic Order values in cells G8 and I8 until the predicted line is close to the observed points | S7: 1 | T7: =$S$4+(S7-1)*($T$4-$S$4)/($U$4-1) -> 0 | U7: =($J$8*$I$8+$H$8*T7^$K$8)/($I$8+T7^$K$8) -> 83.19098592 | X7: 0.6844119326 | Y7: -314.3681402 | Z7: 0.3155880674 | AA7: -9.096719649 | AB7: =SUMPRODUCT(AA$4:AA$103,X$4:X$103) -> -29.59671011 | AC7: =SUMPRODUCT(AA$4:AA$103,Y$4:Y$103) -> 29955.02308 | AD7: =SUMPRODUCT(AA$4:AA$103,Z$4:Z$103) -> -59.96188986 | AE7: =SUMPRODUCT(AA$4:AA$103,AA$4:AA$103) -> 3071.364099
A8: 5 | B8: 1 | C8: 398 | D8: 1.205991005 | E8: 396.794009 | F8: 0.003665413973 | H8: 482.9228569 | I8: 0.2746429132 | J8: 83.19098592 | K8: 4.917983946 | L8: =SUMPRODUCT(D4:D53,D4:D53) -> 472.9032627 | S8: 2 | T8: 0.02 | U8: =($J$8*$I$8+$H$8*T8^$K$8)/($I$8+T8^$K$8) -> 83.19099234 | X8: 0.7845334482 | Y8: -246.0320611 | Z8: 0.2154665518 | AA8: 0
A9: 6 | B9: 1.1 | C9: 440 | D9: 15.70300108 | E9: 424.2969989 | F9: 0.5811595265 | S9: 3 | T9: 0.04 | U9: 83.19117999 | X9: 0.8533370437 | Y9: -182.1551326 | Z9: 0.1466629563 | AA9: 4.768141104 | AB9: inv(Q0)
A10: 7 | B10: 1.2 | C10: 432 | D10: -10.65056365 | E10: 442.6505637 | F10: 0.2562619715 | H10: =IF(ISNUMBER(H13),H$8-1.96*H$13,"N/A") -> 382.9025509 | I10: =IF(ISNUMBER(I13),I$8-1.96*I$13,"N/A") -> 0.04911600157 | J10: =IF(ISNUMBER(J13),J$8-1.96*J$13,"N/A") -> -128.7395846 | K10: =IF(ISNUMBER(K13),K$8-1.96*K$13,"N/A") -> 0.2123405122 | L10: Lower 95% Confidence Levels | N10: 4. Press the button below to run solver with current settings | S10: 4 | T10: 0.06 | U10: 83.19241142 | X10: 0.8992517332 | Y10: -131.8618749 | Z10: 0.1007482668 | AA10: 6.602762318 | AB10: =MINVERSE(AB4:AE7) -> 16.52011854 | AC10: 0.03308296576 | AD10: -29.21603305 | AE10: -0.7338460458
A11: 8 | H11: =IF(ISNUMBER(H14),H$8+1.96*H$13,"N/A") -> 582.9431628 | I11: =IF(ISNUMBER(I14),I$8+1.96*I$13,"N/A") -> 0.5001698249 | J11: =IF(ISNUMBER(J14),J$8+1.96*J$13,"N/A") -> 295.1215564 | K11: =IF(ISNUMBER(K14),K$8+1.96*K$13,"N/A") -> 9.62362738 | L11: Upper 95% Confidence Levels | S11: 5 | T11: 0.08 | U11: 83.19685281 | AB11: 0.03308296576 | AC11: 8.399115378e-05 | AD11: -0.04111981858 | AE11: -0.001303144761
A12: 9 | S12: 6 | T12: 0.1 | U12: 83.20856505 | AB12: -29.21603305 | AC12: -0.04111981858 | AD12: 74.16927196 | AE12: 1.56750428
A13: 10 | H13: =IF(ISNUMBER(AB10),SQRT(AB10)*$AI$5,"N/A") -> 51.03076835 | I13: =IF(ISNUMBER(AC11),SQRT(AC11)*$AI$5,"N/A") -> 0.1150647508 | J13: =IF(ISNUMBER(AD12),SQRT(AD12)*$AI$5,"N/A") -> 108.1278421 | K13: =IF(ISNUMBER(AE13),SQRT(AE13)*$AI$5,"N/A") -> 2.400838487 | L13: Standard Errors | S13: 7 | T13: 0.12 | U13: 83.23407644 | AB13: -0.7338460458 | AC13: -0.001303144761 | AD13: 1.56750428 | AE13: 0.03656577927
A14: 11 | H14: =IF(ISNUMBER(H13),H8/H13,"N/A") -> 9.463366366 | I14: =IF(ISNUMBER(I13),I8/I13,"N/A") -> 2.386855325 | J14: =IF(ISNUMBER(J13),J8/J13,"N/A") -> 0.7693761784 | K14: =IF(ISNUMBER(K13),K8/K13,"N/A") -> 2.048444314 | L14: t-Statistics | N14: 5. Solver will attempt to minimize SSE (red cell) by changing cells F8:I8 | S14: 8 | T14: 0.14 | U14: 83.28294018
A15: 12 | H15: =IF(ISNUMBER(H14),2*TDIST(ABS(H14),$AG$5-$AH$5,1),"N/A") -> 0.002501183804 | I15: =IF(ISNUMBER(I14),2*TDIST(ABS(I14),$AG$5-$AH$5,1),"N/A") -> 0.09701595948 | J15: =IF(ISNUMBER(J14),2*TDIST(ABS(J14),$AG$5-$AH$5,1),"N/A") -> 0.49769634 | K15: =IF(ISNUMBER(K14),2*TDIST(ABS(K14),$AG$5-$AH$5,1),"N/A") -> 0.1329626159 | L15: p-values | S15: 9 | T15: 0.16 | U15: 83.36827524
A16: 13 | H16: =1-L8/(SUMPRODUCT(C4:C103,C4:C103)-COUNT(C4:C103)*AVERAGE(C4:C103)^2) -> 0.9922039979 | L16: Goodness of Fit (R2) | S16: 10 | T16: 0.18 | U16: 83.50728559
A17: 14 | S17: 11 | T17: 0.2 | U17: 83.72174824
A18: 15 | H18: Functional Form | S18: 12 | T18: 0.22 | U18: 84.03845519
A19: 16 | H19: y = | I19: Intercept×Rate Constant + Maximum×XKinetic Order | S19: 13 | T19: 0.24 | U19: 84.48958782
A20: 17 | I20: Rate Constant + XKinetic Order | S20: 14 | T20: 0.26 | U20: 85.11299513
A21: 18 | S21: 15 | T21: 0.28 | U21: 85.95233893
A22: 19 | E22: =IF(ISBLANK(B22),"",($J$8*$I$8+$H$8*B22^$K$8)/($I$8+B22^$K$8)) ->  | F22: =IF(ISBLANK(B22),"",D22^2/E22) ->  | S22: 16 | T22: 0.3 | U22: 87.0570612
A23: 20 | S23: 17 | T23: 0.32 | U23: 88.48212162
A24: 21 | S24: 18 | T24: 0.34 | U24: 90.28744824
A25: 22 | S25: 19 | T25: 0.36 | U25: 92.53704349
A26: 23 | S26: 20 | T26: 0.38 | U26: 95.29769314
A27: 24 | S27: 21 | T27: 0.4 | U27: 98.63723946
A28: 25 | S28: 22 | T28: 0.42 | U28: 102.6224043
A29: 26 | S29: 23 | T29: 0.44 | U29: 107.3161841
A30: 27 | S30: 24 | T30: 0.46 | U30: 112.7748847
A31: 28 | S31: 25 | T31: 0.48 | U31: 119.0449225
A32: 29 | S32: 26 | T32: 0.5 | U32: 126.1595727
A33: 30 | S33: 27 | T33: 0.52 | U33: 134.1359008
A34: 31 | S34: 28 | T34: 0.54 | U34: 142.9721489
A35: 32 | S35: 29 | T35: 0.56 | U35: 152.6458548
A36: 33 | D36: =IF(ISBLANK(B36),"",C36-($J$8*$I$8+$H$8*B36^$K$8)/($I$8+B36^$K$8)) ->  | S36: 30 | T36: 0.58 | U36: 163.1129556 | X36: =IF(ISBLANK(B36),"",$B36^$K$8/($I$8 + $B36^$K$8)) ->  | Y36: =IF(ISBLANK(B36),"",$J$8/($I$8 + $B36^$K$8) - ($I$8*$J$8 + $H$8*$B36^$K$8)/($I$8 + $B36^$K$8)^2) ->  | Z36: =IF(ISBLANK(B36),"",$I$8/($I$8 + $B36^$K$8)) ->  | AA36: =IF(ISBLANK(B36),"",($H$8* LN($B36)*$B36^$K$8)/($I$8 + $B36^$K$8) -(LN($B36)*$B36^$K$8)*($I$8*$J$8 + $H$8*$B36^$K$8)/($I$8 + $B36^$K$8)^2) -> 
A37: =A36+1 -> 34 | S37: 31 | T37: 0.6 | U37: 174.3080589
A38: 35 | S38: 32 | T38: 0.62 | U38: 186.1459636
A39: 36 | S39: 33 | T39: =$S$4+(S39-1)*($T$4-$S$4)/($U$4-1) -> 0.64 | U39: 198.5243837
A40: 37 | S40: 34 | T40: 0.66 | U40: 211.3277027
A41: 38 | S41: 35 | T41: 0.68 | U41: 224.4314708
A42: 39 | S42: 36 | T42: 0.7 | U42: 237.7072847
A43: 40 | S43: 37 | T43: 0.72 | U43: 251.0276598
A44: 41 | S44: 38 | T44: 0.74 | U44: 264.2705325
A45: 42 | S45: 39 | T45: 0.76 | U45: 277.3230944
A46: 43 | S46: 40 | T46: 0.78 | U46: 290.0847614
A47: 44 | S47: 41 | T47: 0.8 | U47: 302.469181
A48: 45 | S48: 42 | T48: 0.82 | U48: 314.4052887
A49: 46 | S49: 43 | T49: 0.84 | U49: 325.8374986
A50: 47 | S50: 44 | T50: 0.86 | U50: 336.7251732
A51: 48 | S51: 45 | T51: 0.88 | U51: 347.0415425
A52: 49 | S52: 46 | T52: 0.9 | U52: 356.7722482
A53: 50 | S53: 47 | T53: 0.92 | U53: 365.9136748
A54: 51 | S54: 48 | T54: 0.94 | U54: 374.4712044
A55: 52 | S55: 49 | T55: 0.96 | U55: 382.4575031
A56: 53 | S56: 50 | T56: 0.98 | U56: 389.8909141
A57: 54 | S57: 51 | T57: 1 | U57: 396.794009
A58: 55 | S58: 52 | T58: 1.02 | U58: 403.1923213
A59: 56 | S59: 53 | T59: 1.04 | U59: 409.1132716
A60: 57 | S60: 54 | T60: 1.06 | U60: 414.5852788
A61: 58 | S61: 55 | T61: 1.08 | U61: 419.6370457
A62: 59 | S62: 56 | T62: 1.1 | U62: 424.2969989
A63: 60 | S63: 57 | T63: 1.12 | U63: 428.5928642
A64: 61 | S64: 58 | T64: 1.14 | U64: 432.551356
A65: 62 | S65: 59 | T65: 1.16 | U65: 436.1979624
A66: 63 | S66: 60 | T66: 1.18 | U66: 439.5568053
A67: 64 | S67: 61 | T67: 1.2 | U67: 442.6505637
A68: 65 | D68: =IF(ISBLANK(B68),"",C68-($J$8*$I$8+$H$8*B68^$K$8)/($I$8+B68^$K$8)) ->  | S68: 62 | T68: 1.22 | U68: 445.5004423 | X68: =IF(ISBLANK(B68),"",$B68^$K$8/($I$8 + $B68^$K$8)) ->  | Y68: =IF(ISBLANK(B68),"",$J$8/($I$8 + $B68^$K$8) - ($I$8*$J$8 + $H$8*$B68^$K$8)/($I$8 + $B68^$K$8)^2) ->  | Z68: =IF(ISBLANK(B68),"",$I$8/($I$8 + $B68^$K$8)) ->  | AA68: =IF(ISBLANK(B68),"",($H$8* LN($B68)*$B68^$K$8)/($I$8 + $B68^$K$8) -(LN($B68)*$B68^$K$8)*($I$8*$J$8 + $H$8*$B68^$K$8)/($I$8 + $B68^$K$8)^2) -> 
A69: =A68+1 -> 66 | S69: 63 | T69: 1.24 | U69: 448.126178
A70: 67 | S70: 64 | T70: 1.26 | U70: 450.5460716
A71: 68 | S71: 65 | T71: =$S$4+(S71-1)*($T$4-$S$4)/($U$4-1) -> 1.28 | U71: 452.7770396
A72: 69 | S72: 66 | T72: 1.3 | U72: =($J$8*$I$8+$H$8*T72^$K$8)/($I$8+T72^$K$8) -> 454.8346778
A73: 70 | S73: 67 | T73: 1.32 | U73: 456.7333341
A74: 71 | S74: 68 | T74: 1.34 | U74: 458.4861855
A75: 72 | S75: 69 | T75: 1.36 | U75: 460.1053159
A76: 73 | S76: 70 | T76: 1.38 | U76: 461.601795
A77: 74 | S77: 71 | T77: 1.4 | U77: 462.9857543
A78: 75 | S78: 72 | T78: 1.42 | U78: 464.2664603
A79: 76 | S79: 73 | T79: 1.44 | U79: 465.4523845
A80: 77 | S80: 74 | T80: 1.46 | U80: 466.5512688
A81: 78 | S81: 75 | T81: 1.48 | U81: 467.5701876
A82: 79 | S82: 76 | T82: 1.5 | U82: 468.5156043
A83: 80 | S83: 77 | T83: 1.52 | U83: 469.3934249
A84: 81 | S84: 78 | T84: 1.54 | U84: 470.2090463
A85: 82 | S85: 79 | T85: 1.56 | U85: 470.9674017
A86: 83 | E86: =IF(ISBLANK(B86),"",($J$8*$I$8+$H$8*B86^$K$8)/($I$8+B86^$K$8)) ->  | F86: =IF(ISBLANK(B86),"",D86^2/E86) ->  | S86: 80 | T86: 1.58 | U86: 471.6730012
A87: 84 | S87: 81 | T87: 1.6 | U87: 472.3299698
A88: 85 | S88: 82 | T88: 1.62 | U88: 472.9420819
A89: 86 | S89: 83 | T89: 1.64 | U89: 473.512792
A90: 87 | S90: 84 | T90: 1.66 | U90: 474.045264
A91: 88 | S91: 85 | T91: 1.68 | U91: 474.5423966
A92: 89 | S92: 86 | T92: 1.7 | U92: 475.0068472
A93: 90 | S93: 87 | T93: 1.72 | U93: 475.4410533
A94: 91 | S94: 88 | T94: 1.74 | U94: 475.8472517
A95: 92 | S95: 89 | T95: 1.76 | U95: 476.2274968
A96: 93 | S96: 90 | T96: 1.78 | U96: 476.5836761
A97: 94 | S97: 91 | T97: 1.8 | U97: 476.9175251
A98: 95 | S98: 92 | T98: 1.82 | U98: 477.2306403
A99: 96 | S99: 93 | T99: 1.84 | U99: 477.5244915
A100: 97 | D100: =IF(ISBLANK(B100),"",C100-($J$8*$I$8+$H$8*B100^$K$8)/($I$8+B100^$K$8)) ->  | S100: 94 | T100: 1.86 | U100: 477.8004326
A101: 98 | S101: 95 | T101: 1.88 | U101: 478.0597117
A102: 99 | S102: 96 | T102: 1.9 | U102: 478.3034797
A103: =A102+1 -> 100 | S103: 97 | T103: =$S$4+(S103-1)*($T$4-$S$4)/($U$4-1) -> 1.92 | U103: 478.5327989
D104: =SUM(D4:D103) -> 0.001655654768 | E104: 2334.998344 | F104: =SUM(F4:F103) -> 1.227707285 | S104: 98 | T104: =$S$4+(S104-1)*($T$4-$S$4)/($U$4-1) -> 1.94 | U104: 478.7486505
S105: 99 | T105: =$S$4+(S105-1)*($T$4-$S$4)/($U$4-1) -> 1.96 | U105: 478.9519411
S106: 100 | T106: =$S$4+(S106-1)*($T$4-$S$4)/($U$4-1) -> 1.98 | U106: 479.143509
S107: 101 | T107: =$S$4+(S107-1)*($T$4-$S$4)/($U$4-1) -> 2 | U107: 479.3241299

Sheet Logistics, 3 Parameters
B1: Fitting the Three-Parameter Logistics Model to Nutritional Response Data
B2: Data | H2: Sample Statistics | S2: Plotting Parameters | X2: Error Analysis
A3: Point | B3: Input | C3: Output | D3: Residuals | E3: Expected | F3: Qm | H3: Min Input | I3: =MIN(B4:B103) -> 0.6 | J3: Min Output | K3: =MIN(C4:C103) -> 172 | N3: Instructions | S3: Min Input | T3: Max Input | U3: # of Points | X3: Maximum(X0) | Y3: Intercept (X1) | Z3: c(X2) | AA3: Q0 | AE3: Number of Observations, T | AF3: Number of Regressors, K | AG3: sigma
A4: 1 | B4: 0.6 | C4: 172 | D4: =IF(ISBLANK(B4),"",C4-$H$8/(1+($H$8/$I$8-1)*EXP(-$J$8*B4))) -> -1.836426465 | E4: =IF(ISBLANK(B4),"",$H$8/(1+($H$8/$I$8-1)*EXP(-$J$8*B4))) -> 173.8364265 | F4: =IF(ISBLANK(B4),"",D4^2/E4) -> 0.01940020415 | H4: Max Input | I4: =MAX(B4:B103) -> 1.2 | J4: Max Output | K4: =MAX(C4:C103) -> 440 | N4: 1. Copy data in cells B4:C103 | S4: =FLOOR(I3,1) -> 0 | T4: =CEILING(I4,1) -> 2 | U4: 101 | X4: =IF(ISBLANK($B4),"",$I$8^2*EXP($J$8*$B4)*(EXP($J$8*$B4)-1)/($I$8*(EXP($J$8*$B4)-1)+$H$8)^2) -> 0.1334224041 | Y4: =IF(ISBLANK($B4),"",$H$8^2*EXP($J$8*$B4)/($I$8*(EXP($J$8*$B4)-1)+$H$8)^2) -> 12.05786805 | Z4: =IF(ISBLANK($B4),"",-$I$8*EXP($J$8*$B4)*($I$8-$H$8)*$H$8*$B4/($I$8*(EXP($J$8*$B4)-1)+$H$8)^2) -> 65.53727826 | AA4: =SUMPRODUCT(X$4:X$103,X$4:X$103) -> 2.57689229 | AB4: =SUMPRODUCT(X$4:X$103,Y$4:Y$103) -> 25.84220341 | AC4: =SUMPRODUCT(X$4:X$103,Z$4:Z$103) -> 213.1329669
A5: =A4+1 -> 2 | B5: 0.7 | C5: 244 | D5: 5.681487729 | E5: =IF(ISBLANK(B5),"",$H$8/(1+($H$8/$I$8-1)*EXP(-$J$8*B5))) -> 238.3185123 | F5: =IF(ISBLANK(B5),"",D5^2/E5) -> 0.1354460571 | N5: 2. View the data and estimate values for the Maximum in cell F8 | S5: Prediction | X5: =IF(ISBLANK($B5),"",$I$8^2*EXP($J$8*$B5)*(EXP($J$8*$B5)-1)/($I$8*(EXP($J$8*$B5)-1)+$H$8)^2) -> 0.2545720233 | Y5: =IF(ISBLANK($B5),"",$H$8^2*EXP($J$8*$B5)/($I$8*(EXP($J$8*$B5)-1)+$H$8)^2) -> 12.90368426 | Z5: =IF(ISBLANK($B5),"",-$I$8*EXP($J$8*$B5)*($I$8-$H$8)*$H$8*$B5/($I$8*(EXP($J$8*$B5)-1)+$H$8)^2) -> 81.82356395 | AA5: =SUMPRODUCT(Y$4:Y$103,X$4:X$103) -> 25.84220341 | AB5: =SUMPRODUCT(Y$4:Y$103,Y$4:Y$103) -> 608.3491372 | AC5: =SUMPRODUCT(Y$4:Y$103,Z$4:Z$103) -> 4229.168292 | AE5: =COUNT(B4:B53) -> 7 | AF5: 3 | AG5: =SQRT(K8/(AE5-AF5)) -> 10.42078851
A6: 3 | B6: 0.8 | C6: 300 | D6: -2.130463125 | E6: =IF(ISBLANK(B6),"",$H$8/(1+($H$8/$I$8-1)*EXP(-$J$8*B6))) -> 302.1304631 | F6: =IF(ISBLANK(B6),"",D6^2/E6) -> 0.01502289137 | H6: Regression | S6: Point | T6: Input | U6: Output | X6: 0.4126376259 | Y6: 11.80854575 | Z6: 85.57620589 | AA6: =SUMPRODUCT(Z$4:Z$103,X$4:X$103) -> 213.1329669 | AB6: =SUMPRODUCT(Z$4:Z$103,Y$4:Y$103) -> 4229.168292 | AC6: =SUMPRODUCT(Z$4:Z$103,Z$4:Z$103) -> 30407.04398
A7: 4 | B7: 0.9 | C7: 349 | D7: -7.478933716 | E7: 356.4789337 | F7: 0.1569081487 | H7: Max or Min | I7: Intercept | J7: Scale | K7: SSE | N7: 3. Guess values of the Intercept and Scale in cells G8 and H8 until the predicted line is close to the observed points | S7: 1 | T7: =$S$4+(S7-1)*($T$4-$S$4)/($U$4-1) -> 0 | U7: =IF(ISBLANK(T7),"",$I$8*EXP(T7*$J$8)*$H$8/($H$8+$I$8*(EXP($J$8*T7)-1))) -> 9.241302035 | X7: 0.5772071009 | Y7: 9.360182969 | Z7: 76.31211174 | AA7: inv(Q0)
A8: 5 | B8: 1 | C8: 398 | D8: 0.8425881389 | E8: 397.1574119 | F8: 0.001787590388 | H8: 467.7327347 | I8: 9.241302035 | J8: 5.631910974 | K8: =SUMPRODUCT(D4:D53,D4:D53) -> 434.3713329 | S8: 2 | T8: 0.02 | U8: =IF(ISBLANK(T8),"",$I$8*EXP(T8*$J$8)*$H$8/($H$8+$I$8*(EXP($J$8*T8)-1))) -> 10.3188068 | X8: 0.7184085583 | Y8: 6.615324553 | Z8: 59.92634358 | AA8: =MINVERSE(AA4:AC6) -> 2.737761114 | AB8: 0.5168905988 | AC8: -0.09108167441
A9: 6 | B9: 1.1 | C9: 440 | D9: 15.24449629 | E9: 424.7555037 | F9: 0.5471257348 | S9: 3 | T9: 0.04 | U9: 11.51878869 | X9: 0.822992536 | Y9: 4.308370624 | Z9: 42.93113449 | AA9: 0.5168905988 | AB9: 0.1472548702 | AC9: -0.02410402192
A10: 7 | B10: 1.2 | C10: 432 | D10: -10.25385895 | E10: 442.253859 | F10: 0.2377404319 | H10: =IF(ISNUMBER(H13),H$8-NORMSINV(0.975)*H$13,"N/A") -> 433.9382018 | I10: =IF(ISNUMBER(I13),I$8-1.96*I$13,"N/A") -> 1.403550586 | J10: =IF(ISNUMBER(J13),J$8-1.96*J$13,"N/A") -> 4.336296093 | K10: Lower 95% Confidence Levels | N10: 4. Press the button below to run solver with current settings | S10: 4 | T10: 0.06 | U10: 12.85439579 | X10: 0.892982877 | Y10: 2.659423503 | Z10: 28.90915334 | AA10: -0.09108167441 | AB10: -0.02410402192 | AC10: 0.004023820033
A11: 8 | H11: =IF(ISNUMBER(H14),H$8+1.96*H$13,"N/A") -> 501.5278886 | I11: =IF(ISNUMBER(I14),I$8+1.96*I$13,"N/A") -> 17.07905348 | J11: =IF(ISNUMBER(J14),J$8+1.96*J$13,"N/A") -> 6.927525856 | K11: Upper 95% Confidence Levels | S11: 5 | T11: 0.08 | U11: 14.33999916
A12: 9 | S12: 6 | T12: 0.1 | U12: 15.99126023
A13: 10 | H13: =IF(ISNUMBER(AA8),SQRT(AA8)*$AG$5,"N/A") -> 17.24242547 | I13: =IF(ISNUMBER(AB9),SQRT(AB9)*$AG$5,"N/A") -> 3.99885278 | J13: =IF(ISNUMBER(AC10),SQRT(AC10)*$AG$5,"N/A") -> 0.6610280007 | K13: Standard Errors | S13: 7 | T13: 0.12 | U13: 17.82518965
A14: 11 | H14: =IF(ISNUMBER(H13),H8/H13,"N/A") -> 27.12685263 | I14: =IF(ISNUMBER(I13),I8/I13,"N/A") -> 2.310988312 | J14: =IF(ISNUMBER(J13),J8/J13,"N/A") -> 8.519928003 | K14: t-Statistics | N14: 5. Solver will attempt to minimize SSE (red cell) by changing cells F8:H8 | S14: 8 | T14: 0.14 | U14: 19.86019356
A15: 12 | H15: =IF(ISNUMBER(H14),2*TDIST(ABS(H14),$AE$5-$AF$5,1),"N/A") -> 1.098068131e-05 | I15: =IF(ISNUMBER(I14),2*TDIST(ABS(I14),$AE$5-$AF$5,1),"N/A") -> 0.08194328044 | J15: =IF(ISNUMBER(J14),2*TDIST(ABS(J14),$AE$5-$AF$5,1),"N/A") -> 0.001041209629 | K15: p-values | S15: 9 | T15: 0.16 | U15: 22.11610226
A16: 13 | H16: =1-K8/(SUMPRODUCT(C4:C103,C4:C103)-COUNT(C4:C103)*AVERAGE(C4:C103)^2) -> 0.9928392124 | K16: Goodness of Fit (R2) | S16: 10 | T16: 0.18 | U16: 24.61417558
A17: 14 | S17: 11 | T17: 0.2 | U17: 27.37707786
A18: 15 | I18: Functional Form | S18: 12 | T18: 0.22 | U18: 30.42881493
A19: 16 | S19: 13 | T19: 0.24 | U19: 33.79462406
A20: 17 | H20: y = | I20: Maximum | L20: = | M20: Maximum×Intercept×eScale×X | S20: 14 | T20: 0.26 | U20: 37.50080746
A21: 18 | I21: 1 + (Maximum/Intercept-1)×e–Scale×X | M21: Maximum+Intercept×(eScale×X–1) | S21: 15 | T21: 0.28 | U21: 41.57449914
A22: 19 | S22: 16 | T22: 0.3 | U22: 46.04335493
A23: 20 | S23: 17 | T23: 0.32 | U23: 50.93515613
A24: 21 | S24: 18 | T24: 0.34 | U24: 56.27731841
A25: 22 | S25: 19 | T25: 0.36 | U25: 62.09630027
A26: 23 | S26: 20 | T26: 0.38 | U26: 68.41690889
A27: 24 | S27: 21 | T27: 0.4 | U27: 75.26150655
A28: 25 | S28: 22 | T28: 0.42 | U28: 82.64912726
A29: 26 | S29: 23 | T29: 0.44 | U29: 90.5945217
A30: 27 | S30: 24 | T30: 0.46 | U30: 99.1071575
A31: 28 | S31: 25 | T31: 0.48 | U31: 108.1902123
A32: 29 | S32: 26 | T32: 0.5 | U32: 117.8396062
A33: 30 | S33: 27 | T33: 0.52 | U33: 128.0431302
A34: 31 | S34: 28 | T34: 0.54 | U34: 138.7797306
A35: 32 | S35: 29 | T35: 0.56 | U35: 150.019015
A36: 33 | S36: 30 | T36: 0.58 | U36: 161.7210391
A37: =A36+1 -> 34 | S37: 31 | T37: 0.6 | U37: 173.8364265
A38: 35 | S38: 32 | T38: 0.62 | U38: 186.3068575
A39: 36 | S39: 33 | T39: =$S$4+(S39-1)*($T$4-$S$4)/($U$4-1) -> 0.64 | U39: 199.0659411
A40: 37 | S40: 34 | T40: 0.66 | U40: 212.0404588
A41: 38 | S41: 35 | T41: 0.68 | U41: 225.1519413
A42: 39 | S42: 36 | T42: 0.7 | U42: 238.3185123
A43: 40 | S43: 37 | T43: 0.72 | U43: 251.4569101
A44: 41 | S44: 38 | T44: 0.74 | U44: 264.4845825
A45: 42 | S45: 39 | T45: 0.76 | U45: 277.3217446
A46: 43 | S46: 40 | T46: 0.78 | U46: 289.89329
A47: 44 | S47: 41 | T47: 0.8 | U47: 302.1304631
A48: 45 | S48: 42 | T48: 0.82 | U48: 313.9722162
A49: 46 | S49: 43 | T49: 0.84 | U49: 325.3662046
A50: 47 | S50: 44 | T50: 0.86 | U50: 336.2693986
A51: 48 | S51: 45 | T51: 0.88 | U51: 346.6483205
A52: 49 | S52: 46 | T52: 0.9 | U52: 356.4789337
A53: 50 | S53: 47 | T53: 0.92 | U53: 365.7462335
A54: 51 | S54: 48 | T54: 0.94 | U54: 374.4435965
A55: 52 | S55: 49 | T55: 0.96 | U55: 382.5719522
A56: 53 | S56: 50 | T56: 0.98 | U56: 390.1388406
A57: 54 | S57: 51 | T57: 1 | U57: 397.1574119
A58: 55 | S58: 52 | T58: 1.02 | U58: 403.6454202
A59: 56 | S59: 53 | T59: 1.04 | U59: 409.6242505
A60: 57 | S60: 54 | T60: 1.06 | U60: 415.1180096
A61: 58 | S61: 55 | T61: 1.08 | U61: 420.1527022
A62: 59 | S62: 56 | T62: 1.1 | U62: 424.7555037
A63: 60 | S63: 57 | T63: 1.12 | U63: 428.9541354
A64: 61 | S64: 58 | T64: 1.14 | U64: 432.7763417
A65: 62 | S65: 59 | T65: 1.16 | U65: 436.2494635
A66: 63 | S66: 60 | T66: 1.18 | U66: 439.4001015
A67: 64 | S67: 61 | T67: 1.2 | U67: 442.253859
A68: 65 | S68: 62 | T68: 1.22 | U68: 444.8351552
A69: =A68+1 -> 66 | D69: =IF(ISBLANK(B69),"",C69-$H$8/(1+($H$8/$I$8-1)*EXP(-$J$8*B69))) ->  | S69: 63 | T69: 1.24 | U69: 447.1670981 | X69: =IF(ISBLANK($B69),"",$I$8^2*EXP($J$8*$B69)*(EXP($J$8*$B69)-1)/($I$8*(EXP($J$8*$B69)-1)+$H$8)^2) ->  | Y69: =IF(ISBLANK($B69),"",$H$8^2*EXP($J$8*$B69)/($I$8*(EXP($J$8*$B69)-1)+$H$8)^2) ->  | Z69: =IF(ISBLANK($B69),"",-$I$8*EXP($J$8*$B69)*($I$8-$H$8)*$H$8*$B69/($I$8*(EXP($J$8*$B69)-1)+$H$8)^2) -> 
A70: 67 | E70: =IF(ISBLANK(B70),"",$H$8/(1+($H$8/$I$8-1)*EXP(-$J$8*B70))) ->  | F70: =IF(ISBLANK(B70),"",D70^2/E70) ->  | S70: 64 | T70: 1.26 | U70: 449.2714067
A71: 68 | S71: 65 | T71: =$S$4+(S71-1)*($T$4-$S$4)/($U$4-1) -> 1.28 | U71: 451.1683751
A72: 69 | S72: 66 | T72: 1.3 | U72: =IF(ISBLANK(T72),"",$I$8*EXP(T72*$J$8)*$H$8/($H$8+$I$8*(EXP($J$8*T72)-1))) -> 452.8768684
A73: 70 | S73: 67 | T73: 1.32 | U73: 454.414345
A74: 71 | S74: 68 | T74: 1.34 | U74: 455.7968973
A75: 72 | S75: 69 | T75: 1.36 | U75: 457.0393073
A76: 73 | S76: 70 | T76: 1.38 | U76: 458.1551114
A77: 74 | S77: 71 | T77: 1.4 | U77: 459.1566718
A78: 75 | S78: 72 | T78: 1.42 | U78: 460.0552512
A79: 76 | S79: 73 | T79: 1.44 | U79: 460.8610886
A80: 77 | S80: 74 | T80: 1.46 | U80: 461.5834749
A81: 78 | S81: 75 | T81: 1.48 | U81: 462.2308266
A82: 79 | S82: 76 | T82: 1.5 | U82: 462.8107562
A83: 80 | S83: 77 | T83: 1.52 | U83: 463.3301404
A84: 81 | S84: 78 | T84: 1.54 | U84: 463.7951837
A85: 82 | S85: 79 | T85: 1.56 | U85: 464.2114781
A86: 83 | S86: 80 | T86: 1.58 | U86: 464.5840589
A87: 84 | S87: 81 | T87: 1.6 | U87: 464.9174564
A88: 85 | S88: 82 | T88: 1.62 | U88: 465.2157433
A89: 86 | S89: 83 | T89: 1.64 | U89: 465.4825788
A90: 87 | S90: 84 | T90: 1.66 | U90: 465.7212485
A91: 88 | S91: 85 | T91: 1.68 | U91: 465.9347006
A92: 89 | S92: 86 | T92: 1.7 | U92: 466.1255802
A93: 90 | S93: 87 | T93: 1.72 | U93: 466.2962584
A94: 91 | S94: 88 | T94: 1.74 | U94: 466.4488606
A95: 92 | S95: 89 | T95: 1.76 | U95: 466.5852913
A96: 93 | S96: 90 | T96: 1.78 | U96: 466.7072561
A97: 94 | S97: 91 | T97: 1.8 | U97: 466.8162823
A98: 95 | S98: 92 | T98: 1.82 | U98: 466.9137375
A99: 96 | S99: 93 | T99: 1.84 | U99: 467.0008456
A100: 97 | S100: 94 | T100: 1.86 | U100: 467.0787019
A101: 98 | S101: 95 | T101: 1.88 | U101: 467.1482865
A102: 99 | S102: 96 | T102: 1.9 | U102: 467.210476
A103: 100 | S103: 97 | T103: =$S$4+(S103-1)*($T$4-$S$4)/($U$4-1) -> 1.92 | U103: 467.2660547
D104: =SUM(D4:D103) -> 0.06888989617 | E104: 2334.93111 | F104: =SUM(F4:F103) -> 1.113431058 | S104: 98 | T104: =$S$4+(S104-1)*($T$4-$S$4)/($U$4-1) -> 1.94 | U104: 467.315724
S105: 99 | T105: =$S$4+(S105-1)*($T$4-$S$4)/($U$4-1) -> 1.96 | U105: 467.3601112
S106: 100 | T106: =$S$4+(S106-1)*($T$4-$S$4)/($U$4-1) -> 1.98 | U106: 467.3997771
S107: 101 | T107: =$S$4+(S107-1)*($T$4-$S$4)/($U$4-1) -> 2 | U107: 467.4352232

Sheet Logistics, 4 Parameters
B1: Fitting the Four-Parameter Logistics Model to Nutritional Response Data
B2: Data | H2: Sample Statistics | S2: Plotting Parameters | X2: Error Analysis
A3: Point | B3: Input | C3: Output | D3: Residuals | E3: Expected | F3: Qm | H3: Min Input | I3: =MIN(B4:B103) -> 0.6 | J3: Min Output | K3: =MIN(C4:C103) -> 172 | N3: Instructions | S3: Min Input | T3: Max Input | U3: # of Points | X3: Max(X0) | Y3: Intercept (X1) | Z3: Shape(X2) | AA3: Scale (X3) | AB3: Q0 | AG3: Number of Observations, T | AH3: Number of Regressors, K | AI3: sigma
A4: 1 | B4: 0.6 | C4: 172 | D4: =IF(ISBLANK(B4),"",C4-($H$8+($I$8*(1+$J$8)-$H$8)*EXP(-$K$8*B4))/(1+$J$8*EXP(-$K$8*B4))) -> -2.509741583 | E4: =IF(ISBLANK(B4),"",($H$8+($I$8*(1+$J$8)-$H$8)*EXP(-$K$8*B4))/(1+$J$8*EXP(-$K$8*B4))) -> 174.5097416 | F4: =IF(ISBLANK(B4),"",D4^2/E4) -> 0.03609427621 | H4: Max Input | I4: =MAX(B4:B103) -> 1.2 | J4: Max Output | K4: =MAX(C4:C103) -> 440 | N4: 1. Copy data in cells B4:C103 | S4: 0.05 | T4: =CEILING(I4,1) -> 2 | U4: 101 | X4: =IF(ISBLANK($B4),"",(-1+EXP($K$8*$B4))/($J$8+EXP($K$8*$B4))) -> 0.3365095452 | Y4: =IF(ISBLANK($B4),"",(1+$J$8)/($J$8+EXP($K$8*$B4))) -> 0.6634904548 | Z4: =IF(ISBLANK($B4),"",(-1+EXP($K$8*$B4))*($I$8-$H$8)/($J$8+EXP($K$8*$B4))^2) -> -1.496648048 | AA4: =IF(ISBLANK($B4),"",-EXP($K$8*$B4)*(1+$J$8)*($I$8-$H$8)*$B4/($J$8+EXP($K$8*$B4))^2) -> 60.45595321 | AB4: =SUMPRODUCT(X$4:X$103,X$4:X$103) -> 3.73994608 | AC4: =SUMPRODUCT(X$4:X$103,Y$4:Y$103) -> 1.157279486 | AD4: =SUMPRODUCT(X$4:X$103,Z$4:Z$103) -> -4.797088422 | AE4: =SUMPRODUCT(X$4:X$103,AA$4:AA$103) -> 275.2297093
A5: =A4+1 -> 2 | B5: 0.7 | C5: 244 | D5: =IF(ISBLANK(B5),"",C5-($H$8+($I$8*(1+$J$8)-$H$8)*EXP(-$K$8*B5))/(1+$J$8*EXP(-$K$8*B5))) -> 6.311311383 | E5: =IF(ISBLANK(B5),"",($H$8+($I$8*(1+$J$8)-$H$8)*EXP(-$K$8*B5))/(1+$J$8*EXP(-$K$8*B5))) -> 237.6886886 | F5: =IF(ISBLANK(B5),"",D5^2/E5) -> 0.1675832855 | N5: 2. View the data and estimate the value for a in cell F8 | S5: Prediction | X5: =IF(ISBLANK($B5),"",(-1+EXP($K$8*$B5))/($J$8+EXP($K$8*$B5))) -> 0.4807295843 | Y5: =IF(ISBLANK($B5),"",(1+$J$8)/($J$8+EXP($K$8*$B5))) -> 0.5192704157 | Z5: =IF(ISBLANK($B5),"",(-1+EXP($K$8*$B5))*($I$8-$H$8)/($J$8+EXP($K$8*$B5))^2) -> -1.673331731 | AA5: =IF(ISBLANK($B5),"",-EXP($K$8*$B5)*(1+$J$8)*($I$8-$H$8)*$B5/($J$8+EXP($K$8*$B5))^2) -> 77.81419087 | AB5: =SUMPRODUCT(Y$4:Y$103,X$4:X$103) -> 1.157279486 | AC5: =SUMPRODUCT(Y$4:Y$103,Y$4:Y$103) -> 0.9454949472 | AD5: =SUMPRODUCT(Y$4:Y$103,Z$4:Z$103) -> -2.960484588 | AE5: =SUMPRODUCT(Y$4:Y$103,AA$4:AA$103) -> 143.6138358 | AG5: =COUNT(B4:B53) -> 7 | AH5: 4 | AI5: =SQRT(L8/(AG5-AH5)) -> 12.01140791
A6: 3 | B6: 0.8 | C6: 300 | D6: -1.691520522 | E6: =IF(ISBLANK(B6),"",($H$8+($I$8*(1+$J$8)-$H$8)*EXP(-$K$8*B6))/(1+$J$8*EXP(-$K$8*B6))) -> 301.6915205 | F6: =IF(ISBLANK(B6),"",D6^2/E6) -> 0.009483997661 | H6: Regression | S6: Point | T6: Input | U6: Output | X6: 0.6268303243 | Y6: 0.3731696757 | Z6: -1.567992424 | AA6: 82.7239805 | AB6: =SUMPRODUCT(Z$4:Z$103,X$4:X$103) -> -4.797088422 | AC6: =SUMPRODUCT(Z$4:Z$103,Y$4:Y$103) -> -2.960484588 | AD6: =SUMPRODUCT(Z$4:Z$103,Z$4:Z$103) -> 10.24935774 | AE6: =SUMPRODUCT(Z$4:Z$103,AA$4:AA$103) -> -524.1463439
A7: 4 | B7: 0.9 | C7: 349 | D7: -7.67333853 | E7: 356.6733385 | F7: 0.1650813723 | H7: Max or Min | I7: Intercept | J7: Shape | K7: Scale | L7: SSE | N7: 3. Guess values of b, c, and d in cells G8, H8, and I8 until the predicted line is close to the observed points | S7: 1 | T7: =$S$4+(S7-1)*($T$4-$S$4)/($U$4-1) -> 0.05 | U7: =($H$8+($I$8*(1+$J$8)-$H$8)*EXP(-$K$8*$T7))/(1+$J$8*EXP(-$K$8*$T7)) -> 29.37499988 | X7: 0.752338588 | Y7: 0.247661412 | Z7: -1.248990972 | AA7: 73.83173708 | AB7: =SUMPRODUCT(AA$4:AA$103,X$4:X$103) -> 275.2297093 | AC7: =SUMPRODUCT(AA$4:AA$103,Y$4:Y$103) -> 143.6138358 | AD7: =SUMPRODUCT(AA$4:AA$103,Z$4:Z$103) -> -524.1463439 | AE7: =SUMPRODUCT(AA$4:AA$103,AA$4:AA$103) -> 27608.44728
A8: 5 | B8: 1 | C8: 398 | D8: 0.3970277303 | E8: 397.6029723 | F8: 46.37212723 | G8: 0 | H8: 465.1671881 | I8: 27.09389793 | J8: 64.35204135 | K8: 5.884374586 | L8: =SUMPRODUCT(D4:D53,D4:D53) -> 432.82176 | S8: 2 | T8: 0.0695 | U8: =($H$8+($I$8*(1+$J$8)-$H$8)*EXP(-$K$8*$T8))/(1+$J$8*EXP(-$K$8*$T8)) -> 30.45479877 | X8: 0.8457696066 | Y8: 0.1542303934 | Z8: -0.8743990102 | AA8: 57.30321139
A9: 6 | B9: 1.1 | C9: 440 | D9: 15.06163911 | E9: =IF(ISBLANK(B9),"",IF(B9<$J$8,($H$8+$I$8*($J$8-B9)^2),$H$8)) -> 108862.9958 | F9: =IF(ISBLANK(B9),"",D9^2/E9) -> 0.002083839149 | S9: 3 | T9: 0.089 | U9: 31.6595391 | X9: 0.9081687285 | Y9: 0.09183127149 | Z9: -0.559042413 | AA9: 40.25020072 | AB9: inv(Q0)
A10: 7 | B10: 1.2 | C10: 432 | D10: -9.896379958 | E10: 108520.5179 | F10: 0.0009024868122 | H10: =IF(ISNUMBER(H13),H$8-1.96*H$13,"N/A") -> 400.3495906 | I10: =IF(ISNUMBER(I13),I$8-1.96*I$13,"N/A") -> -299.9059648 | J10: =IF(ISNUMBER(J13),J$8-1.96*J$13,"N/A") -> -274.4745422 | K10: =IF(ISNUMBER(K13),K$8-1.96*K$13,"N/A") -> 0.5099381411 | L10: Lower 95% Confidence Levels | N10: 4. Press the button below to run solver with current settings | S10: 4 | T10: 0.1085 | U10: 33.00284098 | X10: 0.9468791896 | Y10: 0.05312081038 | Z10: -0.3371684118 | AA10: 26.46427135 | AB10: =MINVERSE(AB4:AE7) -> 7.580291124 | AC10: -30.94069637 | AD10: -35.13224142 | AE10: -0.5816062367
A11: 8 | H11: =IF(ISNUMBER(H14),H$8+1.96*H$13,"N/A") -> 529.9847857 | I11: =IF(ISNUMBER(I14),I$8+1.96*I$13,"N/A") -> 354.0937607 | J11: =IF(ISNUMBER(J14),J$8+1.96*J$13,"N/A") -> 403.1786249 | K11: =IF(ISNUMBER(K14),K$8+1.96*K$13,"N/A") -> 11.25881103 | L11: Upper 95% Confidence Levels | S11: 5 | T11: 0.128 | U11: 34.49960142 | AB11: -30.94069637 | AC11: 192.9279573 | AD11: 195.6430562 | AE11: 3.01915811
A12: 9 | S12: 6 | T12: 0.1475 | U12: 36.166062 | AB12: -35.13224142 | AC12: 195.6430562 | AD12: 207.1357107 | AE12: 3.2650084
A13: 10 | H13: =IF(ISNUMBER(AB10),SQRT(AB10)*$AI$5,"N/A") -> 33.07020283 | I13: =IF(ISNUMBER(AC11),SQRT(AC11)*$AI$5,"N/A") -> 166.8366647 | J13: =IF(ISNUMBER(AD12),SQRT(AD12)*$AI$5,"N/A") -> 172.8707059 | K13: =IF(ISNUMBER(AE13),SQRT(AE13)*$AI$5,"N/A") -> 2.742059411 | L13: Standard Errors | S13: 7 | T13: 0.167 | U13: 38.01986594 | AB13: -0.5816062367 | AC13: 3.01915811 | AD13: 3.2650084 | AE13: 0.05211537755
A14: 11 | H14: =IF(ISNUMBER(H13),H8/H13,"N/A") -> 14.06605186 | I14: =IF(ISNUMBER(I13),I8/I13,"N/A") -> 0.1623977439 | J14: =IF(ISNUMBER(J13),J8/J13,"N/A") -> 0.3722553282 | K14: =IF(ISNUMBER(K13),K8/K13,"N/A") -> 2.145969034 | L14: t-Statistics | N14: 5. Solver will attempt to minimize SSE (red cell) by changing cells F8:I8 | S14: 8 | T14: 0.1865 | U14: 40.08009986
A15: 12 | H15: =IF(ISNUMBER(H14),2*TDIST(ABS(H14),$AG$5-$AH$5,1),"N/A") -> 0.0007782299525 | I15: =IF(ISNUMBER(I14),2*TDIST(ABS(I14),$AG$5-$AH$5,1),"N/A") -> 0.8813147292 | J15: =IF(ISNUMBER(J14),2*TDIST(ABS(J14),$AG$5-$AH$5,1),"N/A") -> 0.7344443485 | K15: =IF(ISNUMBER(K14),2*TDIST(ABS(K14),$AG$5-$AH$5,1),"N/A") -> 0.1211679809 | L15: p-values | S15: 9 | T15: 0.206 | U15: 42.36731463
A16: 13 | H16: =1-L8/(SUMPRODUCT(C4:C103,C4:C103)-COUNT(C4:C103)*AVERAGE(C4:C103)^2) -> 0.9928647577 | L16: Goodness of Fit (R2) | S16: 10 | T16: 0.2255 | U16: 44.90351834
A17: 14 | N17: Note: The four-parameter logistics model reduces to the three-parameter version on the previous worksheet by restricting Shape = Maximum/Intercept – 1 | S17: 11 | T17: 0.245 | U17: 47.71213366
A18: 15 | H18: Functional Form | S18: 12 | T18: 0.2645 | U18: 50.81791054
A19: 16 | S19: 13 | T19: 0.284 | U19: 54.24678422
A20: 17 | H20: y = | I20: Maximum + [Intercept×(1 + Shape) – Maximum]e–Scale×X | S20: 14 | T20: 0.3035 | U20: 58.0256681
A21: 18 | I21: 1 + Shape×e–Scale×X | S21: 15 | T21: 0.323 | U21: 62.1821701
A22: 19 | S22: 16 | T22: 0.3425 | U22: 66.74422194
A23: 20 | S23: 17 | T23: 0.362 | U23: 71.73961156
A24: 21 | S24: 18 | T24: 0.3815 | U24: 77.1954109
A25: 22 | S25: 19 | T25: 0.401 | U25: 83.13729519
A26: 23 | S26: 20 | T26: 0.4205 | U26: 89.58875439
A27: 24 | S27: 21 | T27: 0.44 | U27: 96.57020449
A28: 25 | S28: 22 | T28: 0.4595 | U28: 104.0980146
A29: 26 | S29: 23 | T29: 0.479 | U29: 112.1834758
A30: 27 | S30: 24 | T30: 0.4985 | U30: 120.8317482
A31: 28 | S31: 25 | T31: 0.518 | U31: 130.0408343
A32: 29 | S32: 26 | T32: 0.5375 | U32: 139.8006353
A33: 30 | S33: 27 | T33: 0.557 | U33: 150.0921577
A34: 31 | S34: 28 | T34: 0.5765 | U34: 160.8869362
A35: 32 | S35: 29 | T35: 0.596 | U35: 172.1467427
A36: 33 | S36: 30 | T36: 0.6155 | U36: 183.8236377
A37: =A36+1 -> 34 | S37: 31 | T37: 0.635 | U37: 195.8604085
A38: 35 | S38: 32 | T38: 0.6545 | U38: 208.1914132
A39: 36 | S39: 33 | T39: =$S$4+(S39-1)*($T$4-$S$4)/($U$4-1) -> 0.674 | U39: 220.7438241
A40: 37 | S40: 34 | T40: 0.6935 | U40: 233.4392316
A41: 38 | S41: 35 | T41: 0.713 | U41: 246.1955416
A42: 39 | S42: 36 | T42: 0.7325 | U42: 258.9290718
A43: 40 | S43: 37 | T43: 0.752 | U43: 271.556735
A44: 41 | S44: 38 | T44: 0.7715 | U44: 283.9981905
A45: 42 | S45: 39 | T45: 0.791 | U45: 296.1778447
A46: 43 | S46: 40 | T46: 0.8105 | U46: 308.0265994
A47: 44 | S47: 41 | T47: 0.83 | U47: 319.4832658
A48: 45 | S48: 42 | T48: 0.8495 | U48: 330.4955939
A49: 46 | S49: 43 | T49: 0.869 | U49: 341.020895
A50: 47 | S50: 44 | T50: 0.8885 | U50: 351.0262652
A51: 48 | S51: 45 | T51: 0.908 | U51: 360.4884441
A52: 49 | S52: 46 | T52: 0.9275 | U52: 369.3933611
A53: 50 | S53: 47 | T53: 0.947 | U53: 377.7354311
A54: 51 | S54: 48 | T54: 0.9665 | U54: 385.5166715
A55: 52 | S55: 49 | T55: 0.986 | U55: 392.7457059
A56: 53 | S56: 50 | T56: 1.0055 | U56: 399.4367162
A57: 54 | S57: 51 | T57: 1.025 | U57: 405.6083965
A58: 55 | S58: 52 | T58: 1.0445 | U58: 411.2829497
A59: 56 | S59: 53 | T59: 1.064 | U59: 416.4851578
A60: 57 | S60: 54 | T60: 1.0835 | U60: 421.2415466
A61: 58 | S61: 55 | T61: 1.103 | U61: 425.5796546
A62: 59 | S62: 56 | T62: 1.1225 | U62: 429.5274121
A63: 60 | S63: 57 | T63: 1.142 | U63: 433.1126263
A64: 61 | S64: 58 | T64: 1.1615 | U64: 436.3625679
A65: 62 | S65: 59 | T65: 1.181 | U65: 439.3036485
A66: 63 | S66: 60 | T66: 1.2005 | U66: 441.9611803
A67: 64 | S67: 61 | T67: 1.22 | U67: 444.3592054
A68: 65 | S68: 62 | T68: 1.2395 | U68: 446.5203853
A69: =A68+1 -> 66 | D69: =IF(ISBLANK(B69),"",C69-($H$8+($I$8*(1+$J$8)-$H$8)*EXP(-$K$8*B69))/(1+$J$8*EXP(-$K$8*B69))) ->  | E69: =IF(ISBLANK(B69),"",IF(B69<$J$8,($H$8+$I$8*($J$8-B69)^2),$H$8)) ->  | F69: =IF(ISBLANK(B69),"",D69^2/E69) ->  | S69: 63 | T69: 1.259 | U69: 448.4659387 | X69: =IF(ISBLANK($B69),"",(-1+EXP($K$8*$B69))/($J$8+EXP($K$8*$B69))) ->  | Y69: =IF(ISBLANK($B69),"",(1+$J$8)/($J$8+EXP($K$8*$B69))) ->  | Z69: =IF(ISBLANK($B69),"",(-1+EXP($K$8*$B69))*($I$8-$H$8)/($J$8+EXP($K$8*$B69))^2) ->  | AA69: =IF(ISBLANK($B69),"",-EXP($K$8*$B69)*(1+$J$8)*($I$8-$H$8)*$B69/($J$8+EXP($K$8*$B69))^2) -> 
A70: 67 | S70: 64 | T70: 1.2785 | U70: 450.2156194
A71: 68 | S71: 65 | T71: =$S$4+(S71-1)*($T$4-$S$4)/($U$4-1) -> 1.298 | U71: 451.7877252
A72: 69 | S72: 66 | T72: 1.3175 | U72: =($H$8+($I$8*(1+$J$8)-$H$8)*EXP(-$K$8*$T72))/(1+$J$8*EXP(-$K$8*$T72)) -> 453.1991311
A73: 70 | S73: 67 | T73: 1.337 | U73: 454.4653397
A74: 71 | S74: 68 | T74: 1.3565 | U74: 455.6005451
A75: 72 | S75: 69 | T75: 1.376 | U75: 456.617704
A76: 73 | S76: 70 | T76: 1.3955 | U76: 457.5286128
A77: 74 | S77: 71 | T77: 1.415 | U77: 458.343986
A78: 75 | S78: 72 | T78: 1.4345 | U78: 459.0735359
A79: 76 | S79: 73 | T79: 1.454 | U79: 459.7260498
A80: 77 | S80: 74 | T80: 1.4735 | U80: 460.3094655
A81: 78 | S81: 75 | T81: 1.493 | U81: 460.8309428
A82: 79 | S82: 76 | T82: 1.5125 | U82: 461.2969318
A83: 80 | S83: 77 | T83: 1.532 | U83: 461.7132365
A84: 81 | S84: 78 | T84: 1.5515 | U84: 462.0850743
A85: 82 | S85: 79 | T85: 1.571 | U85: 462.417131
A86: 83 | S86: 80 | T86: 1.5905 | U86: 462.7136117
A87: 84 | S87: 81 | T87: 1.61 | U87: 462.9782874
A88: 85 | S88: 82 | T88: 1.6295 | U88: 463.2145376
A89: 86 | S89: 83 | T89: 1.649 | U89: 463.4253894
A90: 87 | S90: 84 | T90: 1.6685 | U90: 463.6135528
A91: 88 | S91: 85 | T91: 1.688 | U91: 463.7814528
A92: 89 | S92: 86 | T92: 1.7075 | U92: 463.9312586
A93: 90 | S93: 87 | T93: 1.727 | U93: 464.0649098
A94: 91 | S94: 88 | T94: 1.7465 | U94: 464.1841403
A95: 92 | S95: 89 | T95: 1.766 | U95: 464.2904993
A96: 93 | S96: 90 | T96: 1.7855 | U96: 464.3853713
A97: 94 | S97: 91 | T97: 1.805 | U97: 464.4699928
A98: 95 | S98: 92 | T98: 1.8245 | U98: 464.5454679
A99: 96 | S99: 93 | T99: 1.844 | U99: 464.6127826
A100: 97 | S100: 94 | T100: 1.8635 | U100: 464.6728171
A101: 98 | S101: 95 | T101: 1.883 | U101: 464.7263572
A102: 99 | S102: 96 | T102: 1.9025 | U102: 464.774104
A103: 100 | S103: 97 | T103: =$S$4+(S103-1)*($T$4-$S$4)/($U$4-1) -> 1.922 | U103: 464.8166835
E104: =SUM(E4:E103) -> 218851.68 | F104: =SUM(F4:F103) -> 46.75335649 | S104: 98 | T104: =$S$4+(S104-1)*($T$4-$S$4)/($U$4-1) -> 1.9415 | U104: 464.8546539
S105: 99 | T105: =$S$4+(S105-1)*($T$4-$S$4)/($U$4-1) -> 1.961 | U105: 464.8885135
S106: 100 | T106: =$S$4+(S106-1)*($T$4-$S$4)/($U$4-1) -> 1.9805 | U106: 464.9187068
S107: 101 | T107: =$S$4+(S107-1)*($T$4-$S$4)/($U$4-1) -> 2 | U107: 464.9456305

Sheet RNB, Model 1
B1: Fitting the RNB Model 1 to Nutritional Response Data
B2: Data | H2: Sample Statistics | S2: Plotting Parameters | X2: Error Analysis
A3: Point | B3: Input | C3: Output | D3: Residuals | E3: Expected | F3: Qm | H3: Min Input | I3: =MIN(B4:B103) -> 0.6 | J3: Min Output | K3: =MIN(C4:C103) -> 172 | N3: Instructions | S3: Min Input | T3: Max Input | U3: # of Points | X3: Lower Asymptote(X0) | Y3: Range(X1) | Z3: r(X2) | AA3: s(X3) | AB3: Q0 | AG3: Number of Observations, T | AH3: Number of Regressors, K | AI3: sigma
A4: 1 | B4: 0.6 | C4: 172 | D4: =IF(ISBLANK(B4),"",C4-($H$8+$I$8/(1+EXP($J$8+$K$8*B4)))) -> -2.5123281 | E4: =IF(ISBLANK(B4),"",($H$8+$I$8/(1+EXP($J$8+$K$8*B4)))) -> 174.5123281 | F4: =IF(ISBLANK(B4),"",D4^2/E4) -> 0.03616817534 | H4: Max Input | I4: =MAX(B4:B103) -> 1.2 | J4: Max Output | K4: =MAX(C4:C103) -> 440 | N4: 1. Copy data in cells B4:C103 | S4: 0.1 | T4: =CEILING(I4,1) -> 2 | U4: 101 | X4: =IF(ISBLANK(B4),"",1) -> 1 | Y4: =IF(ISBLANK($B4),"",1/(1+EXP($J$8+$K$8*$B4))) -> 0.3464663899 | Z4: =IF(ISBLANK($B4),"",-$I$8*EXP($J$8+$K$8*$B4)/(1+EXP($J$8+$K$8*$B4))^2) -> -100.6924512 | AA4: =IF(ISBLANK($B4),"",-$I$8*B4*EXP($J$8+$K$8*$B4)/(1+EXP($J$8+$K$8*$B4))^2) -> -60.41547074 | AB4: =SUMPRODUCT(X$4:X$103,X$4:X$103) -> 7 | AC4: =SUMPRODUCT(X$4:X$103,Y$4:Y$103) -> 4.929000544 | AD4: =SUMPRODUCT(X$4:X$103,Z$4:Z$103) -> -513.0670346 | AE4: =SUMPRODUCT(X$4:X$103,AA$4:AA$103) -> -418.6428248
A5: =A4+1 -> 2 | B5: 0.7 | C5: 244 | D5: =IF(ISBLANK(B5),"",C5-($H$8+$I$8/(1+EXP($J$8+$K$8*B5)))) -> 6.316703181 | E5: =IF(ISBLANK(B5),"",($H$8+$I$8/(1+EXP($J$8+$K$8*B5)))) -> 237.6832968 | F5: =IF(ISBLANK(B5),"",D5^2/E5) -> 0.1678735511 | N5: 2. View the data and estimate values for the lower asymptote and the range in cells F8 and G8 | S5: Prediction | X5: =IF(ISBLANK(B5),"",1) -> 1 | Y5: =IF(ISBLANK($B5),"",1/(1+EXP($J$8+$K$8*$B5))) -> 0.4885191451 | Z5: =IF(ISBLANK($B5),"",-$I$8*EXP($J$8+$K$8*$B5)/(1+EXP($J$8+$K$8*$B5))^2) -> -111.1165748 | AA5: =IF(ISBLANK($B5),"",-$I$8*B5*EXP($J$8+$K$8*$B5)/(1+EXP($J$8+$K$8*$B5))^2) -> -77.78160239 | AB5: =SUMPRODUCT(Y$4:Y$103,X$4:X$103) -> 4.929000544 | AC5: =SUMPRODUCT(Y$4:Y$103,Y$4:Y$103) -> 3.775265096 | AD5: =SUMPRODUCT(Y$4:Y$103,Z$4:Z$103) -> -319.2751448 | AE5: =SUMPRODUCT(Y$4:Y$103,AA$4:AA$103) -> -277.2617173 | AG5: =COUNT(B4:B53) -> 7 | AH5: 4 | AI5: =SQRT(L8/(AG5-AH5)) -> 12.01140882
A6: 3 | B6: 0.8 | C6: 300 | D6: -1.689805162 | E6: 301.6898052 | F6: 0.009464825914 | H6: Regression | S6: Point | T6: Input | U6: Output | X6: 1 | Y6: 0.632450781 | Z6: -103.3737123 | AA6: -82.69896981 | AB6: =SUMPRODUCT(Z$4:Z$103,X$4:X$103) -> -513.0670346 | AC6: =SUMPRODUCT(Z$4:Z$103,Y$4:Y$103) -> -319.2751448 | AD6: =SUMPRODUCT(Z$4:Z$103,Z$4:Z$103) -> 45000.48454 | AE6: =SUMPRODUCT(Z$4:Z$103,AA$4:AA$103) -> 34661.87241
A7: 4 | B7: 0.9 | C7: 349 | D7: -7.67723863 | E7: 356.6772386 | F7: 0.1652474187 | H7: Lower Asymptote | I7: Range | J7: r | K7: s | L7: SSE | S7: 1 | T7: =$S$4+(S7-1)*($T$4-$S$4)/($U$4-1) -> 0.1 | U7: =$H$8+$I$8/(1+EXP($J$8+$K$8*T7)) -> 32.52220819 | X7: 1 | Y7: 0.7561011949 | Z7: -82.00823634 | AA7: -73.80741271 | AB7: =SUMPRODUCT(AA$4:AA$103,X$4:X$103) -> -418.6428248 | AC7: =SUMPRODUCT(AA$4:AA$103,Y$4:Y$103) -> -277.2617173 | AD7: =SUMPRODUCT(AA$4:AA$103,Z$4:Z$103) -> 34661.87241 | AE7: =SUMPRODUCT(AA$4:AA$103,AA$4:AA$103) -> 27584.20406
A8: 5 | B8: 1 | C8: 398 | D8: 0.392358668 | E8: 397.6076413 | F8: 0.0003871789884 | G8: 0 | H8: 20.43846002 | I8: 444.7007635 | J8: 4.166668077 | K8: -5.886766548 | L8: =SUMPRODUCT(D4:D53,D4:D53) -> 432.8218255 | N8: 3. Guess r and s values in cells G8 and I8 until the predicted line is close to the observed points | S8: 2 | T8: 0.119 | U8: =$H$8+$I$8/(1+EXP($J$8+$K$8*T8)) -> 33.9089239 | X8: 1 | Y8: 0.8481415197 | Z8: -57.2763387 | AA8: -57.2763387
A9: 6 | B9: 1.1 | C9: 440 | D9: 15.06119711 | E9: 424.9388029 | F9: 0.5338172385 | S9: 3 | T9: 0.138 | U9: 35.44925565 | X9: 1 | Y9: 0.9096011883 | Z9: -36.56635033 | AA9: -40.22298536 | AB9: inv(Q0)
A10: 7 | B10: 1.2 | C10: 432 | D10: -9.89041232 | E10: 441.8904123 | F10: 0.2213676811 | H10: =IF(ISNUMBER(H13),H$8-1.96*H$13,"N/A") -> -347.0944343 | I10: =IF(ISNUMBER(I13),I$8-1.96*I$13,"N/A") -> 22.49115342 | J10: =IF(ISNUMBER(J13),J$8-1.96*J$13,"N/A") -> -1.097049019 | K10: =IF(ISNUMBER(K13),K$8-1.96*K$13,"N/A") -> -11.2604402 | L10: Lower 95% Confidence Levels | N10: 4. Press the button below to run solver with current settings | S10: 4 | T10: 0.157 | U10: 37.15889309 | X10: 1 | Y10: 0.9477203255 | Z10: -22.03337087 | AA10: -26.44004505 | AB10: =MINVERSE(AB4:AE7) -> 243.7206843 | AC10: -278.8912986 | AD10: 3.430470257 | AE10: -3.415015593
A11: 8 | H11: =IF(ISNUMBER(H14),H$8+1.96*H$13,"N/A") -> 387.9713543 | I11: =IF(ISNUMBER(I14),I$8+1.96*I$13,"N/A") -> 866.9103735 | J11: =IF(ISNUMBER(J14),J$8+1.96*J$13,"N/A") -> 9.430385172 | K11: =IF(ISNUMBER(K14),K$8+1.96*K$13,"N/A") -> -0.5130928976 | L11: Upper 95% Confidence Levels | S11: 5 | T11: 0.176 | U11: 39.05481161 | AB11: -278.8912986 | AC11: 321.6297313 | AD11: -3.975755334 | AE11: 3.996015055
A12: 9 | S12: 6 | T12: 0.195 | U12: 41.15530086 | AB12: 3.430470257 | AC12: -3.975755334 | AD12: 0.04999021893 | AE12: -0.05071516944
A13: 10 | H13: =IF(ISNUMBER(AB10),SQRT(AB10)*$AI$5,"N/A") -> 187.5167828 | I13: =IF(ISNUMBER(AC11),SQRT(AC11)*$AI$5,"N/A") -> 215.4130663 | J13: =IF(ISNUMBER(AD12),SQRT(AD12)*$AI$5,"N/A") -> 2.685569947 | K13: =IF(ISNUMBER(AE13),SQRT(AE13)*$AI$5,"N/A") -> 2.74167023 | L13: Standard Errors | S13: 7 | T13: 0.214 | U13: 43.47997274 | AB13: -3.415015593 | AC13: 3.996015055 | AD13: -0.05071516944 | AE13: 0.05210057724
A14: 11 | H14: =IF(ISNUMBER(H13),H8/H13,"N/A") -> 0.1089953641 | I14: =IF(ISNUMBER(I13),I8/I13,"N/A") -> 2.06440942 | J14: =IF(ISNUMBER(J13),J8/J13,"N/A") -> 1.551502348 | K14: =IF(ISNUMBER(K13),K8/K13,"N/A") -> -2.147146102 | L14: t-Statistics | N14: 5. Solver will attempt to minimize SSE (red cell) by changing cells F8:I8 | S14: 8 | T14: 0.233 | U14: 46.0497427
A15: 12 | H15: =IF(ISNUMBER(H14),2*TDIST(ABS(H14),$AG$5-$AH$5,1),"N/A") -> 0.9200877154 | I15: =IF(ISNUMBER(I14),2*TDIST(ABS(I14),$AG$5-$AH$5,1),"N/A") -> 0.1309413343 | J15: =IF(ISNUMBER(J14),2*TDIST(ABS(J14),$AG$5-$AH$5,1),"N/A") -> 0.2185788529 | K15: =IF(ISNUMBER(K14),2*TDIST(ABS(K14),$AG$5-$AH$5,1),"N/A") -> 0.1210334303 | L15: p-values | S15: 9 | T15: 0.252 | U15: 48.88677728
A16: 13 | H16: =1-L8/(SUMPRODUCT(C4:C103,C4:C103)-COUNT(C4:C103)*AVERAGE(C4:C103)^2) -> 0.9928647566 | L16: Goodness of Fit (R2) | S16: 10 | T16: 0.271 | U16: 52.01440011
A17: 14 | S17: 11 | T17: 0.29 | U17: 55.4569478
A18: 15 | H18: Functional Form | S18: 12 | T18: 0.309 | U18: 59.23956656
A19: 16 | H19: y =Lower Asymptote + | J19: Range | S19: 13 | T19: 0.328 | U19: 63.38794037
A20: 17 | J20: 1 + er + s×X | S20: 14 | T20: 0.347 | U20: 67.9279418
A21: 18 | S21: 15 | T21: 0.366 | U21: 72.88519773
A22: 19 | S22: 16 | T22: 0.385 | U22: 78.28456428
A23: 20 | S23: 17 | T23: 0.404 | U23: 84.14950826
A24: 21 | S24: 18 | T24: 0.423 | U24: 90.50139692
A25: 22 | S25: 19 | T25: 0.442 | U25: 97.35870341
A26: 23 | S26: 20 | T26: 0.461 | U26: 104.7361427
A27: 24 | S27: 21 | T27: 0.48 | U27: 112.6437605
A28: 25 | S28: 22 | T28: 0.499 | U28: 121.0860066
A29: 26 | S29: 23 | T29: 0.518 | U29: 130.0608342
A30: 27 | S30: 24 | T30: 0.537 | U30: 139.558872
A31: 28 | S31: 25 | T31: 0.556 | U31: 149.5627258
A32: 29 | S32: 26 | T32: 0.575 | U32: 160.0464663
A33: 30 | S33: 27 | T33: 0.594 | U33: 170.9753587
A34: 31 | S34: 28 | T34: 0.613 | U34: 182.3058846
A35: 32 | S35: 29 | T35: 0.632 | U35: 193.9860927
A36: 33 | S36: 30 | T36: 0.651 | U36: 205.9562975
A37: =A36+1 -> 34 | S37: 31 | T37: 0.67 | U37: 218.1501227
A38: 35 | S38: 32 | T38: 0.689 | U38: 230.4958608
A39: 36 | S39: 33 | T39: =$S$4+(S39-1)*($T$4-$S$4)/($U$4-1) -> 0.708 | U39: 242.9180984
A40: 37 | S40: 34 | T40: 0.727 | U40: 255.3395291
A41: 38 | S41: 35 | T41: 0.746 | U41: 267.6828669
A42: 39 | S42: 36 | T42: 0.765 | U42: 279.8727571
A43: 40 | S43: 37 | T43: 0.784 | U43: 291.8375876
A44: 41 | S44: 38 | T44: 0.803 | U44: 303.5111083
A45: 42 | S45: 39 | T45: 0.822 | U45: 314.8337849
A46: 43 | S46: 40 | T46: 0.841 | U46: 325.7538357
A47: 44 | S47: 41 | T47: 0.86 | U47: 336.2279225
A48: 45 | S48: 42 | T48: 0.879 | U48: 346.2214944
A49: 46 | S49: 43 | T49: 0.898 | U49: 355.7088031
A50: 47 | S50: 44 | T50: 0.917 | U50: 364.6726272
A51: 48 | S51: 45 | T51: 0.936 | U51: 373.1037556
A52: 49 | S52: 46 | T52: 0.955 | U52: 381.0002849
A53: 50 | S53: 47 | T53: 0.974 | U53: 388.3667909
A54: 51 | S54: 48 | T54: 0.993 | U54: 395.2134257
A55: 52 | S55: 49 | T55: 1.012 | U55: 401.5549915
A56: 53 | S56: 50 | T56: 1.031 | U56: 407.4100303
A57: 54 | S57: 51 | T57: 1.05 | U57: 412.7999607
A58: 55 | S58: 52 | T58: 1.069 | U58: 417.7482854
A59: 56 | S59: 53 | T59: 1.088 | U59: 422.2798826
A60: 57 | S60: 54 | T60: 1.107 | U60: 426.4203891
A61: 58 | S61: 55 | T61: 1.126 | U61: 430.1956779
A62: 59 | S62: 56 | T62: 1.145 | U62: 433.6314249
A63: 60 | S63: 57 | T63: 1.164 | U63: 436.752762
A64: 61 | S64: 58 | T64: 1.183 | U64: 439.5840067
A65: 62 | S65: 59 | T65: 1.202 | U65: 442.1484597
A66: 63 | S66: 60 | T66: 1.221 | U66: 444.4682625
A67: 64 | S67: 61 | T67: 1.24 | U67: 446.5643038
A68: 65 | S68: 62 | T68: 1.259 | U68: 448.456168
A69: =A68+1 -> 66 | D69: =IF(ISBLANK(B69),"",C69-($H$8+$I$8/(1+EXP($J$8+$K$8*B69)))) ->  | E69: =IF(ISBLANK(B69),"",($H$8+$I$8/(1+EXP($J$8+$K$8*B69)))) ->  | F69: =IF(ISBLANK(B69),"",D69^2/E69) ->  | S69: 63 | T69: 1.278 | U69: 450.1621174 | X69: =IF(ISBLANK(B69),"",1) ->  | Y69: =IF(ISBLANK($B69),"",1/(1+EXP($J$8+$K$8*$B69))) ->  | Z69: =IF(ISBLANK($B69),"",-$I$8*EXP($J$8+$K$8*$B69)/(1+EXP($J$8+$K$8*$B69))^2) ->  | AA69: =IF(ISBLANK($B69),"",-$I$8*B69*EXP($J$8+$K$8*$B69)/(1+EXP($J$8+$K$8*$B69))^2) -> 
A70: 67 | S70: 64 | T70: 1.297 | U70: 451.6991002
A71: 68 | S71: 65 | T71: =$S$4+(S71-1)*($T$4-$S$4)/($U$4-1) -> 1.316 | U71: 453.0827799
A72: 69 | S72: 66 | T72: 1.335 | U72: =$H$8+$I$8/(1+EXP($J$8+$K$8*T72)) -> 454.327579
A73: 70 | S73: 67 | T73: 1.354 | U73: 455.4467348
A74: 71 | S74: 68 | T74: 1.373 | U74: 456.4523618
A75: 72 | S75: 69 | T75: 1.392 | U75: 457.3555187
A76: 73 | S76: 70 | T76: 1.411 | U76: 458.1662777
A77: 74 | S77: 71 | T77: 1.43 | U77: 458.8937943
A78: 75 | S78: 72 | T78: 1.449 | U78: 459.546376
A79: 76 | S79: 73 | T79: 1.468 | U79: 460.1315484
A80: 77 | S80: 74 | T80: 1.487 | U80: 460.6561202
A81: 78 | S81: 75 | T81: 1.506 | U81: 461.1262427
A82: 79 | S82: 76 | T82: 1.525 | U82: 461.5474678
A83: 80 | S83: 77 | T83: 1.544 | U83: 461.9248013
A84: 81 | S84: 78 | T84: 1.563 | U84: 462.2627524
A85: 82 | S85: 79 | T85: 1.582 | U85: 462.5653798
A86: 83 | S86: 80 | T86: 1.601 | U86: 462.8363343
A87: 84 | S87: 81 | T87: 1.62 | U87: 463.0788978
A88: 85 | S88: 82 | T88: 1.639 | U88: 463.2960185
A89: 86 | S89: 83 | T89: 1.658 | U89: 463.4903439
A90: 87 | S90: 84 | T90: 1.677 | U90: 463.6642502
A91: 88 | S91: 85 | T91: 1.696 | U91: 463.8198693
A92: 89 | S92: 86 | T92: 1.715 | U92: 463.9591133
A93: 90 | S93: 87 | T93: 1.734 | U93: 464.0836965
A94: 91 | S94: 88 | T94: 1.753 | U94: 464.1951556
A95: 92 | S95: 89 | T95: 1.772 | U95: 464.2948675
A96: 93 | S96: 90 | T96: 1.791 | U96: 464.3840658
A97: 94 | S97: 91 | T97: 1.81 | U97: 464.4638555
A98: 95 | S98: 92 | T98: 1.829 | U98: 464.5352261
A99: 96 | S99: 93 | T99: 1.848 | U99: 464.5990637
A100: 97 | S100: 94 | T100: 1.867 | U100: 464.6561615
A101: 98 | S101: 95 | T101: 1.886 | U101: 464.7072296
A102: 99 | S102: 96 | T102: 1.905 | U102: 464.7529036
A103: 100 | S103: 97 | T103: =$S$4+(S103-1)*($T$4-$S$4)/($U$4-1) -> 1.924 | U103: 464.7937524
E104: =SUM(E4:E103) -> 2334.999525 | F104: =SUM(F4:F103) -> 1.13432607 | S104: 98 | T104: =$S$4+(S104-1)*($T$4-$S$4)/($U$4-1) -> 1.943 | U104: 464.8302849
S105: 99 | T105: =$S$4+(S105-1)*($T$4-$S$4)/($U$4-1) -> 1.962 | U105: 464.8629565
S106: 100 | T106: =$S$4+(S106-1)*($T$4-$S$4)/($U$4-1) -> 1.981 | U106: 464.892175
S107: 101 | T107: =$S$4+(S107-1)*($T$4-$S$4)/($U$4-1) -> 2 | U107: 464.9183047

Sheet RNB, Model 2
B1: Fitting the RNB Model 2 to Nutritional Response Data
B2: Data | H2: Sample Statistics | S2: Plotting Parameters | X2: Error Analysis
A3: Point | B3: Input | C3: Output | D3: Residuals | E3: Expected | F3: Qm | H3: Min Input | I3: =MIN(B4:B103) -> 0.6 | J3: Min Output | K3: =MIN(C4:C103) -> 172 | N3: Instructions | S3: Min Input | T3: Max Input | U3: # of Points | X3: Intercept(X0) | Y3: Maximum(X1) | Z3: c(X2) | AA3: Q0 | AE3: Number of Observations, T | AF3: Number of Regressors, K | AG3: sigma
A4: 1 | B4: 0.6 | C4: 172 | D4: =IF(ISBLANK(B4),"",C4-($H$8+$I$8*(1-EXP(B4*$J$8)))) -> 2.778063304 | E4: =IF(ISBLANK(B4),"",($H$8+$I$8*(1-EXP(B4*$J$8)))) -> 169.2219367 | F4: =IF(ISBLANK(B4),"",D4^2/E4) -> 0.04560659139 | H4: Max Input | I4: =MAX(B4:B103) -> 1.2 | J4: Max Output | K4: =MAX(C4:C103) -> 440 | N4: 1. Copy data in cells B4:C103 | S4: 0.05 | T4: =CEILING(I4,1) -> 2 | U4: 101 | X4: =IF(ISBLANK($B4),"",1) -> 1 | Y4: =IF(ISBLANK($B4),"",(1-EXP($J$8*$B4))) -> 0.7480178069 | Z4: =IF(ISBLANK($B4),"",-B4*$I$8*EXP($J$8*$B4)) -> -222.4036912 | AA4: =SUMPRODUCT(X$4:X$103,X$4:X$103) -> 7 | AB4: =SUMPRODUCT(X$4:X$103,Y$4:Y$103) -> 6.018193533 | AC4: =SUMPRODUCT(X$4:X$103,Z$4:Z$103) -> -1172.619516
A5: =A4+1 -> 2 | B5: 0.7 | C5: 244 | D5: =IF(ISBLANK(B5),"",C5-($H$8+$I$8*(1-EXP(B5*$J$8)))) -> -1.304044038 | E5: =IF(ISBLANK(B5),"",($H$8+$I$8*(1-EXP(B5*$J$8)))) -> 245.304044 | F5: =IF(ISBLANK(B5),"",D5^2/E5) -> 0.00693233925 | N5: 2. View the data and estimate values for the Intercept in cell F8 | S5: Prediction | X5: =IF(ISBLANK($B5),"",1) -> 1 | Y5: =IF(ISBLANK($B5),"",(1-EXP($J$8*$B5))) -> 0.7997381794 | Z5: =IF(ISBLANK($B5),"",-B5*$I$8*EXP($J$8*$B5)) -> -206.2134979 | AA5: =SUMPRODUCT(Y$4:Y$103,X$4:X$103) -> 6.018193533 | AB5: =SUMPRODUCT(Y$4:Y$103,Y$4:Y$103) -> 5.201837823 | AC5: =SUMPRODUCT(Y$4:Y$103,Z$4:Z$103) -> -991.9776536 | AE5: =COUNT(B4:B53) -> 7 | AF5: 3 | AG5: =SQRT(K8/(AE5-AF5)) -> 12.47647982
A6: 3 | B6: 0.8 | C6: 300 | D6: -5.769988644 | E6: 305.7699886 | F6: 0.1088817418 | H6: Regression | S6: Point | T6: Input | U6: Output | X6: 1 | Y6: 0.8408427346 | Z6: -187.2998134 | AA6: =SUMPRODUCT(Z$4:Z$103,X$4:X$103) -> -1172.619516 | AB6: =SUMPRODUCT(Z$4:Z$103,Y$4:Y$103) -> -991.9776536 | AC6: =SUMPRODUCT(Z$4:Z$103,Z$4:Z$103) -> 206255.8872
A7: 4 | B7: 0.9 | C7: 349 | D7: -4.825051586 | E7: 353.8250516 | F7: 0.06579840152 | H7: Intercept | I7: Range | J7: c | K7: SSE | N7: 3. Guess values of Maximum and c in cells G8 and H8 until the predicted line is close to the observed points | S7: 1 | T7: =$S$4+(S7-1)*($T$4-$S$4)/($U$4-1) -> 0.05 | U7: =$H$8+$I$8*(1-EXP(T7*$J$8)) -> -771.5048341 | X7: 1 | Y7: 0.8735104123 | Z7: -167.4627334 | AA7: inv(Q0)
A8: 5 | B8: 1 | C8: 398 | D8: 5.983383071 | E8: 392.0166169 | F8: 0.09132488632 | H8: -931.1330746 | I8: 1471.02783 | J8: -2.297328094 | K8: =SUMPRODUCT(D4:D53,D4:D53) -> 622.6501951 | S8: 2 | T8: 0.0695 | U8: =$H$8+$I$8*(1-EXP(T8*$J$8)) -> -714.0533499 | X8: 1 | Y8: 0.8994729159 | Z8: -147.8781384 | AA8: =MINVERSE(AA4:AC6) -> 1158.767984 | AB8: -1017.79017 | AC8: 1.692891546
A9: 6 | B9: 1.1 | C9: 440 | D9: 17.63079223 | E9: 422.3692078 | F9: 0.7359552472 | S9: 3 | T9: 0.089 | U9: -659.1187743 | X9: 1 | Y9: 0.9201065098 | Z9: -129.2781023 | AA9: -1017.79017 | AB9: 896.2843225 | AC9: -1.475771683
A10: 7 | B10: 1.2 | C10: 432 | D10: -14.49180558 | E10: 446.4918056 | F10: 0.4703612171 | H10: =IF(ISNUMBER(H13),H$8-1.96*H$13,"N/A") -> -1763.560507 | I10: =IF(ISNUMBER(I13),I$8-1.96*I$13,"N/A") -> 738.9267627 | J10: =IF(ISNUMBER(J13),J$8-1.96*J$13,"N/A") -> -3.527758954 | K10: Lower 95% Confidence Levels | N10: 4. Press the button below to run solver with current settings | S10: 4 | T10: 0.1085 | U10: -606.5908435 | X10: 1 | Y10: 0.9365049744 | Z10: -112.0835397 | AA10: 1.692891546 | AB10: -1.475771683 | AC10: 0.002531734443
A11: 8 | H11: =IF(ISNUMBER(H14),H$8+1.96*H$13,"N/A") -> -98.70564261 | I11: =IF(ISNUMBER(I14),I$8+1.96*I$13,"N/A") -> 2203.128897 | J11: =IF(ISNUMBER(J14),J$8+1.96*J$13,"N/A") -> -1.066897234 | K11: Upper 95% Confidence Levels | S11: 5 | T11: 0.128 | U11: -556.364124
A12: 9 | S12: 6 | T12: 0.1475 | U12: -508.3378015
A13: 10 | H13: =IF(ISNUMBER(AA8),SQRT(AA8)*$AG$5,"N/A") -> 424.7078735 | I13: =IF(ISNUMBER(AB9),SQRT(AB9)*$AG$5,"N/A") -> 373.5209526 | J13: =IF(ISNUMBER(AC10),SQRT(AC10)*$AG$5,"N/A") -> 0.6277708468 | K13: Standard Errors | S13: 7 | T13: 0.167 | U13: -462.4154779
A14: 11 | H14: =IF(ISNUMBER(H13),H8/H13,"N/A") -> -2.192408318 | I14: =IF(ISNUMBER(I13),I8/I13,"N/A") -> 3.938273929 | J14: =IF(ISNUMBER(J13),J8/J13,"N/A") -> -3.659501083 | K14: t-Statistics | N14: 5. Solver will attempt to minimize SSE (red cell) by changing cells F8:H8 | S14: 8 | T14: 0.1865 | U14: -418.5049788
A15: 12 | H15: =IF(ISNUMBER(H14),2*TDIST(ABS(H14),$AE$5-$AF$5,1),"N/A") -> 0.09344057132 | I15: =IF(ISNUMBER(I14),2*TDIST(ABS(I14),$AE$5-$AF$5,1),"N/A") -> 0.01698440792 | J15: =IF(ISNUMBER(J14),2*TDIST(ABS(J14),$AE$5-$AF$5,1),"N/A") -> 0.02158979708 | K15: p-values | S15: 9 | T15: 0.206 | U15: -376.5181674
A16: 13 | H16: =1-K8/(SUMPRODUCT(C4:C103,C4:C103)-COUNT(C4:C103)*AVERAGE(C4:C103)^2) -> 0.9897353589 | K16: Goodness of Fit (R2) | S16: 10 | T16: 0.2255 | U16: -336.3707684
A17: 14 | S17: 11 | T17: 0.245 | U17: -297.9821984
A18: 15 | H18: Functional Form | S18: 12 | T18: 0.2645 | U18: -261.2754044
A19: 16 | H19: y = a + b×(1 – ec×X) | S19: 13 | T19: 0.284 | U19: -226.1767089
A20: 17 | S20: 14 | T20: 0.3035 | U20: -192.6156624
A21: 18 | S21: 15 | T21: 0.323 | U21: -160.5249014
A22: 19 | S22: 16 | T22: 0.3425 | U22: -129.8400139
A23: 20 | S23: 17 | T23: 0.362 | U23: -100.4994096
A24: 21 | S24: 18 | T24: 0.3815 | U24: -72.44419621
A25: 22 | S25: 19 | T25: 0.401 | U25: -45.61806182
A26: 23 | S26: 20 | T26: 0.4205 | U26: -19.96716132
A27: 24 | S27: 21 | T27: 0.44 | U27: 4.559991452
A28: 25 | S28: 22 | T28: 0.4595 | U28: 28.01262709
A29: 26 | S29: 23 | T29: 0.479 | U29: 50.43781943
A30: 27 | S30: 24 | T30: 0.4985 | U30: 71.88058002
A31: 28 | S31: 25 | T31: 0.518 | U31: 92.38394851
A32: 29 | S32: 26 | T32: 0.5375 | U32: 111.989079
A33: 30 | S33: 27 | T33: 0.557 | U33: 130.7353226
A34: 31 | S34: 28 | T34: 0.5765 | U34: 148.6603067
A35: 32 | S35: 29 | T35: 0.596 | U35: 165.8000099
A36: 33 | S36: 30 | T36: 0.6155 | U36: 182.1888349
A37: =A36+1 -> 34 | S37: 31 | T37: 0.635 | U37: 197.8596771
A38: 35 | S38: 32 | T38: 0.6545 | U38: 212.8439908
A39: 36 | S39: 33 | T39: =$S$4+(S39-1)*($T$4-$S$4)/($U$4-1) -> 0.674 | U39: 227.1718525
A40: 37 | S40: 34 | T40: 0.6935 | U40: 240.8720206
A41: 38 | S41: 35 | T41: 0.713 | U41: 253.9719942
A42: 39 | S42: 36 | T42: 0.7325 | U42: 266.4980672
A43: 40 | S43: 37 | T43: 0.752 | U43: 278.4753819
A44: 41 | S44: 38 | T44: 0.7715 | U44: 289.9279789
A45: 42 | S45: 39 | T45: 0.791 | U45: 300.8788457
A46: 43 | S46: 40 | T46: 0.8105 | U46: 311.3499629
A47: 44 | S47: 41 | T47: 0.83 | U47: 321.3623479
A48: 45 | S48: 42 | T48: 0.8495 | U48: 330.9360974
A49: 46 | S49: 43 | T49: 0.869 | U49: 340.0904277
A50: 47 | S50: 44 | T50: 0.8885 | U50: 348.8437133
A51: 48 | S51: 45 | T51: 0.908 | U51: 357.2135237
A52: 49 | S52: 46 | T52: 0.9275 | U52: 365.2166587
A53: 50 | S53: 47 | T53: 0.947 | U53: 372.869182
A54: 51 | S54: 48 | T54: 0.9665 | U54: 380.1864537
A55: 52 | S55: 49 | T55: 0.986 | U55: 387.1831609
A56: 53 | S56: 50 | T56: 1.0055 | U56: 393.8733474
A57: 54 | S57: 51 | T57: 1.025 | U57: 400.2704415
A58: 55 | S58: 52 | T58: 1.0445 | U58: 406.3872835
A59: 56 | S59: 53 | T59: 1.064 | U59: 412.236151
A60: 57 | S60: 54 | T60: 1.0835 | U60: 417.8287837
A61: 58 | S61: 55 | T61: 1.103 | U61: 423.1764072
A62: 59 | S62: 56 | T62: 1.1225 | U62: 428.2897551
A63: 60 | S63: 57 | T63: 1.142 | U63: 433.1790909
A64: 61 | S64: 58 | T64: 1.1615 | U64: 437.8542283
A65: 62 | S65: 59 | T65: 1.181 | U65: 442.3245513
A66: 63 | S66: 60 | T66: 1.2005 | U66: 446.5990326
A67: 64 | S67: 61 | T67: 1.22 | U67: 450.6862519
A68: 65 | S68: 62 | T68: 1.2395 | U68: 454.5944131
A69: =A68+1 -> 66 | D69: =IF(ISBLANK(B69),"",C69-($H$8+$I$8*(1-EXP(B69*$J$8)))) ->  | E69: =IF(ISBLANK(B69),"",($H$8+$I$8*(1-EXP(B69*$J$8)))) ->  | F69: =IF(ISBLANK(B69),"",D69^2/E69) ->  | S69: 63 | T69: 1.259 | U69: 458.3313605 | X69: =IF(ISBLANK($B69),"",1) ->  | Y69: =IF(ISBLANK($B69),"",(1-EXP($J$8*$B69))) ->  | Z69: =IF(ISBLANK($B69),"",-B69*$I$8*EXP($J$8*$B69)) -> 
A70: 67 | S70: 64 | T70: 1.2785 | U70: 461.9045948
A71: 68 | S71: 65 | T71: =$S$4+(S71-1)*($T$4-$S$4)/($U$4-1) -> 1.298 | U71: 465.3212884
A72: 69 | S72: 66 | T72: 1.3175 | U72: =$H$8+$I$8*(1-EXP(T72*$J$8)) -> 468.588299
A73: 70 | S73: 67 | T73: 1.337 | U73: 471.7121841
A74: 71 | S74: 68 | T74: 1.3565 | U74: 474.6992141
A75: 72 | S75: 69 | T75: 1.376 | U75: 477.5553845
A76: 73 | S76: 70 | T76: 1.3955 | U76: 480.286428
A77: 74 | S77: 71 | T77: 1.415 | U77: 482.8978265
A78: 75 | S78: 72 | T78: 1.4345 | U78: 485.3948214
A79: 76 | S79: 73 | T79: 1.454 | U79: 487.7824248
A80: 77 | S80: 74 | T80: 1.4735 | U80: 490.065429
A81: 78 | S81: 75 | T81: 1.493 | U81: 492.2484164
A82: 79 | S82: 76 | T82: 1.5125 | U82: 494.3357686
A83: 80 | S83: 77 | T83: 1.532 | U83: 496.3316755
A84: 81 | S84: 78 | T84: 1.5515 | U84: 498.2401431
A85: 82 | S85: 79 | T85: 1.571 | U85: 500.065002
A86: 83 | S86: 80 | T86: 1.5905 | U86: 501.8099152
A87: 84 | S87: 81 | T87: 1.61 | U87: 503.478385
A88: 85 | S88: 82 | T88: 1.6295 | U88: 505.0737603
A89: 86 | S89: 83 | T89: 1.649 | U89: 506.5992434
A90: 87 | S90: 84 | T90: 1.6685 | U90: 508.0578961
A91: 88 | S91: 85 | T91: 1.688 | U91: 509.4526463
A92: 89 | S92: 86 | T92: 1.7075 | U92: 510.7862934
A93: 90 | S93: 87 | T93: 1.727 | U93: 512.0615145
A94: 91 | S94: 88 | T94: 1.7465 | U94: 513.280869
A95: 92 | S95: 89 | T95: 1.766 | U95: 514.4468044
A96: 93 | S96: 90 | T96: 1.7855 | U96: 515.5616611
A97: 94 | S97: 91 | T97: 1.805 | U97: 516.6276766
A98: 95 | S98: 92 | T98: 1.8245 | U98: 517.6469908
A99: 96 | S99: 93 | T99: 1.844 | U99: 518.6216496
A100: 97 | S100: 94 | T100: 1.8635 | U100: 519.5536092
A101: 98 | S101: 95 | T101: 1.883 | U101: 520.4447404
A102: 99 | S102: 96 | T102: 1.9025 | U102: 521.2968317
A103: 100 | S103: 97 | T103: =$S$4+(S103-1)*($T$4-$S$4)/($U$4-1) -> 1.922 | U103: 522.1115935
E104: =SUM(E4:E103) -> 2334.998651 | F104: =SUM(F4:F103) -> 1.524860425 | S104: 98 | T104: =$S$4+(S104-1)*($T$4-$S$4)/($U$4-1) -> 1.9415 | U104: 522.8906612
S105: 99 | T105: =$S$4+(S105-1)*($T$4-$S$4)/($U$4-1) -> 1.961 | U105: 523.6355985
S106: 100 | T106: =$S$4+(S106-1)*($T$4-$S$4)/($U$4-1) -> 1.9805 | U106: 524.3479006
S107: 101 | T107: =$S$4+(S107-1)*($T$4-$S$4)/($U$4-1) -> 2 | U107: 525.0289973

Sheet Multiple Range Tests
C2: Multiple
F3: Range | L3: Instructions: If there are ordered pairs of data, and the values of x are continuous, then some form of regression best describes the data. And all points are assumed to have different "y values" (responses) as long as the slope is not equal to zero.
H4: Tests
D5: Should NEVER be Used
F7: To Determine Nutritional Requirements:
E9: (The Devil Made Me Do It!)

Sheet Test Data Generator
C1: Random Data Generator
A2: This spreadsheet generates 100 random inputs points in the selected range and then generates outputs by adding random noise around each model. Model parameters can be adjsuted to produce required data. Data can be copied to other spreadsheets for testing the goodness of fit
E3: Instructions | L3: Model | M3: Parameters
B4: Min | C4: Max | E4: 1. Adjust values in cells B4 and C4 for a desired range of inputs | L4: Broken Line | M4: Max | N4: Rate Constant | O4: Requirement
A5: Range | B5: 0 | C5: 1.25 | E5: 2. Adjust model parameter in the Table K3:017 to generate corrresponding outputs | M5: 250 | N5: -175 | O5: 0.75
L6: Broken Line Quadratic | M6: Max | N6: Rate Constant | O6: Requirement
E7: 3. Generated data are ploted on separate graphs for each model | M7: 250 | N7: -250 | O7: 0.75
E8: Note: Data are regenerated every time the spreadsheet changes, e.g. due to saving, changing cells, etc. To force data regeneration, Press F9 | L8: Saturation Kinetics | M8: Max | N8: Rate Constant | O8: Intercept | P8: Kinetic Order
M9: 250 | N9: 0.05 | O9: 75 | P9: 8
L10: Logistics, 3 parameters | M10: Max | N10: Intercept | O10: Scale
A11: Observation | B11: Input | C11: Broken Line | D11: Broken Line Quadratic | E11: Saturation Kinetics | F11: Logistics, 3 Parameters | G11: Logistics, 4 Parameters | H11: Compartmental Model | I11: RNB, Model 1 | J11: RNB, Model 2 | M11: 250 | N11: 20 | O11: 5
L12: Logistics, 4 parameters | M12: Max | N12: Intercept | O12: Shape | P12: Scale
A13: 1 | B13: =$B$5+($C$5-$B$5)*RAND() -> 0.4095401462 | C13: =IF($B13<$O$5,$M$5+$N$5*($O$5-$B13),$M$5)+(RAND()-0.5)*0.1*$M$5 -> 192.3628283 | D13: =IF($B13<$O$7,$M$7+$N$7*($O$7-$B13)^2,$M$7)+(RAND()-0.5)*0.1*$M$7 -> 222.6767233 | E13: =($O$9*$N$9+$M$9*$B13^$P$9)/($N$9+$B13^$P$9)+(RAND()-0.5)*0.1*$M$9 -> 80.76844421 | F13: =$M$11*$N$11*EXP($O$11*B13)/($M$11+$N$11*(EXP($O$11*B13)-1))+(RAND()-0.5)*0.1*$M$11 -> 94.51893493 | G13: =($M$13+($N$13*(1+$O$13)-$M$13)*EXP(-$P$13*$B13))/(1+$O$13*EXP(-$P$13*$B13))+(RAND()-0.5)*0.1*$M$13 -> 242.7136829 | H13: =$M$15*EXP(-$N$15*B13)*(1-EXP(-$O$15*(B13-$P$15)))+(RAND()-0.5)*0.1*$M$15 -> 32.61208432 | I13: =$M$17+$N$17/(1+EXP($O$17+$P$17*B13))+(RAND()-0.5)*0.05*($M$17+$N$17) -> 191.5656207 | J13: =$M$19+$N$19*(1-EXP($O$19*B13))+(RAND()-0.5)*0.1*($M$19+$N$19) -> 206.4819596 | M13: 250 | N13: 20 | O13: 7 | P13: 12
A14: 2 | B14: =$B$5+($C$5-$B$5)*RAND() -> 1.15478225 | C14: =IF($B14<$O$5,$M$5+$N$5*($O$5-$B14),$M$5)+(RAND()-0.5)*0.1*$M$5 -> 257.3178435 | D14: =IF($B14<$O$7,$M$7+$N$7*($O$7-$B14)^2,$M$7)+(RAND()-0.5)*0.1*$M$7 -> 238.346534 | E14: =($O$9*$N$9+$M$9*$B14^$P$9)/($N$9+$B14^$P$9)+(RAND()-0.5)*0.1*$M$9 -> 257.3622699 | F14: =$M$11*$N$11*EXP($O$11*B14)/($M$11+$N$11*(EXP($O$11*B14)-1))+(RAND()-0.5)*0.1*$M$11 -> 251.808776 | G14: =($M$13+($N$13*(1+$O$13)-$M$13)*EXP(-$P$13*$B14))/(1+$O$13*EXP(-$P$13*$B14))+(RAND()-0.5)*0.1*$M$13 -> 248.0636223 | H14: =$M$15*EXP(-$N$15*B14)*(1-EXP(-$O$15*(B14-$P$15)))+(RAND()-0.5)*0.1*$M$15 -> 65.00669286 | I14: =$M$17+$N$17/(1+EXP($O$17+$P$17*B14))+(RAND()-0.5)*0.05*($M$17+$N$17) -> 253.3799861 | J14: =$M$19+$N$19*(1-EXP($O$19*B14))+(RAND()-0.5)*0.1*($M$19+$N$19) -> 252.3795243 | L14: Compartmental Model | M14: a | N14: b | O14: c | P14: d
A15: 3 | B15: 0.5913862361 | C15: 231.201399 | D15: 253.0292802 | E15: 112.6103183 | F15: 151.0948661 | G15: 256.7018635 | H15: 44.34763905 | I15: 236.0644166 | J15: 226.8333979 | M15: 250 | N15: 0.5 | O15: 0.7 | P15: 0.25
A16: 4 | B16: 0.6512260672 | C16: 243.9479512 | D16: 244.4807569 | E16: 135.633682 | F16: 162.0969079 | G16: 238.9352345 | H16: 54.97668556 | I16: 240.8437781 | J16: 225.8735534 | L16: RND, Model 1 | M16: Lower Asymptote | N16: Range | O16: r | P16: s
A17: 5 | B17: 0.368869618 | C17: 193.4909034 | D17: 220.337736 | E17: 75.12075292 | F17: 92.64859655 | G17: 238.7430932 | H17: 9.548913641 | I17: 176.9857589 | J17: 201.4989922 | M17: 150 | N17: 100 | O17: 5 | P17: -11.07070558
A18: 6 | B18: 1.197759719 | C18: 260.6375254 | D18: 238.5195558 | E18: 243.4043524 | F18: 247.1460279 | G18: 241.3931279 | H18: 60.65830723 | I18: 254.9016798 | J18: 233.4810193 | L18: RND, Model 2 | M18: Intercept | N18: Range | O18: c
A19: 7 | B19: 0.1491600973 | C19: 154.9823955 | D19: 161.2218452 | E19: 85.36183494 | F19: 49.14514359 | G19: 98.20633621 | H19: -12.47581838 | I19: 149.5524873 | J19: 145.1134382 | M19: 80 | N19: 170 | O19: -3
A20: 8 | B20: 0.490642012 | C20: 194.6284985 | D20: 222.3986572 | E20: 97.43996344 | F20: 125.4600049 | G20: 244.698963 | H20: 18.22265818 | I20: 216.8444278 | J20: 213.1336151
A21: 9 | B21: 0.1768647444 | C21: 150.7932272 | D21: 156.4542351 | E21: 86.3698062 | F21: 55.66381836 | G21: 127.0246242 | H21: -21.03125518 | I21: 151.886089 | J21: 160.6765803
A22: 10 | B22: 0.4079134985 | C22: 180.6365554 | D22: 223.69121 | E22: 80.98570297 | F22: 96.01864725 | G22: 249.1702896 | H22: 33.39680606 | I22: 184.1374235 | J22: 212.2619695
A23: 11 | B23: 0.3893488051 | C23: 198.1601588 | D23: 219.7833215 | E23: 87.31884219 | F23: 98.10302189 | G23: 243.9398858 | H23: 12.90482771 | I23: 187.1210787 | J23: 203.0158115
A24: 12 | B24: 0.6614579689 | C24: 229.5529498 | D24: 239.4183641 | E24: 145.7431347 | F24: 183.8563927 | G24: 246.880992 | H24: 47.38981904 | I24: 238.5537233 | J24: 219.3946903
A25: 13 | B25: 0.1286842063 | C25: 129.0645157 | D25: 160.5618699 | E25: 64.42348275 | F25: 24.11514515 | G25: 94.19143158 | H25: -22.21311357 | I25: 157.8115422 | J25: 131.4677211
A26: 14 | B26: 0.3687125959 | C26: 194.9311291 | D26: 208.1179183 | E26: 79.53446964 | F26: 89.47416588 | G26: 217.9466695 | H26: 22.18146673 | I26: 180.5677427 | J26: 199.7193128
A27: 15 | B27: 0.7116745339 | C27: 254.3321198 | D27: 250.3432084 | E27: 162.516433 | F27: 193.53176 | G27: 246.1542456 | H27: 38.17272453 | I27: 248.4853681 | J27: 225.4658986
A28: 16 | B28: 1.070502529 | C28: 252.0220764 | D28: 254.018913 | E28: 242.9770472 | F28: 228.588396 | G28: 260.0635927 | H28: 73.01716082 | I28: 249.9292269 | J28: 248.8572735
A29: 17 | B29: 0.8910865594 | C29: 257.9624566 | D29: 239.3222572 | E29: 220.3056989 | F29: 210.811199 | G29: 242.5352348 | H29: 64.56955344 | I29: 247.4911482 | J29: 239.3185635
A30: 18 | B30: 0.1423076949 | C30: 143.3842891 | D30: 149.4106534 | E30: 63.86153293 | F30: 36.96491514 | G30: 99.27547277 | H30: -28.28817055 | I30: 150.8498592 | J30: 132.6323101
A31: 19 | B31: 0.4611589862 | C31: 202.5730725 | D31: 239.557068 | E31: 86.6247193 | F31: 104.7182819 | G31: 251.9590615 | H31: 25.70282034 | I31: 200.2177726 | J31: 217.2260799
A32: 20 | B32: 1.175482104 | C32: 245.4557655 | D32: 249.7250496 | E32: 247.3575883 | F32: 231.9367535 | G32: 250.5487021 | H32: 61.22702129 | I32: 252.6833651 | J32: 246.0410212
A33: 21 | B33: 0.7742567563 | C33: 260.7917226 | D33: 246.8939967 | E33: 203.1776459 | F33: 208.117313 | G33: 246.3289112 | H33: 53.37288828 | I33: 246.6451371 | J33: 227.5743753
A34: 22 | B34: 0.2082899736 | C34: 161.4783536 | D34: 184.4753075 | E34: 73.55601238 | F34: 50.88107548 | G34: 158.1882132 | H34: -9.509000836 | I34: 152.5522617 | J34: 156.7534179
A35: 23 | B35: 0.2631850035 | C35: 154.0911461 | D35: 201.9336504 | E35: 66.93463914 | F35: 66.39115415 | G35: 183.7288225 | H35: -7.477614982 | I35: 164.6571735 | J35: 165.4036462
A36: 24 | B36: 0.2092845701 | C36: 163.6962379 | D36: 181.0489066 | E36: 62.65919777 | F36: 39.67153898 | G36: 155.3185487 | H36: -13.82034277 | I36: 155.2702087 | J36: 169.7303179
A37: 25 | B37: 0.9448839016 | C37: 239.5938599 | D37: 244.3465421 | E37: 236.129264 | F37: 220.0120996 | G37: 251.0550635 | H37: 55.45663054 | I37: 255.248901 | J37: 243.2796543
A38: 26 | B38: 0.08741953824 | C38: 127.5857492 | D38: 140.5954173 | E38: 84.69423972 | F38: 21.37854642 | G38: 57.61226207 | H38: -37.97782219 | I38: 147.3467922 | J38: 118.7831724
A39: 27 | B39: 0.1901534758 | C39: 160.1261448 | D39: 165.6418747 | E39: 75.71431705 | F39: 51.69541419 | G39: 145.3378465 | H39: -2.559346049 | I39: 151.79839 | J39: 163.956201
A40: 28 | B40: 0.7007549777 | C40: 251.5501697 | D40: 260.5613493 | E40: 164.0746297 | F40: 195.0776262 | G40: 251.2406034 | H40: 57.14319456 | I40: 239.8416188 | J40: 221.7649732
A41: 29 | B41: 0.8763346748 | C41: 248.66141 | D41: 253.4575841 | E41: 236.5741927 | F41: 217.2337318 | G41: 255.9576388 | H41: 64.93251175 | I41: 255.0446287 | J41: 244.2338476
A42: 30 | B42: 1.044410201 | C42: 242.3705837 | D42: 256.7443492 | E42: 249.6326294 | F42: 243.5090693 | G42: 239.2943609 | H42: 67.71618254 | I42: 246.8260523 | J42: 230.4396656
A43: 31 | B43: 0.50134122 | C43: 217.482761 | D43: 231.5549545 | E43: 76.3790892 | F43: 118.26662 | G43: 253.2764991 | H43: 33.41387284 | I43: 213.7124486 | J43: 221.6769431
A44: 32 | B44: 0.6621903443 | C44: 231.1798711 | D44: 255.6241544 | E44: 147.9537218 | F44: 168.1718929 | G44: 260.4968347 | H44: 37.67844794 | I44: 245.9324555 | J44: 229.5501136
A45: 33 | B45: 1.060171742 | C45: 243.1145095 | D45: 249.6099376 | E45: 256.7169848 | F45: 225.7131756 | G45: 244.7035239 | H45: 71.28973153 | I45: 244.7166105 | J45: 241.6218518
A46: 34 | B46: 0.9580592774 | C46: 256.9820821 | D46: 242.9106089 | E46: 240.5485027 | F46: 230.7704564 | G46: 258.8262829 | H46: 48.99746034 | I46: 247.9688884 | J46: 241.3541155
A47: 35 | B47: 0.3296153797 | C47: 184.6712097 | D47: 205.2580953 | E47: 78.84402601 | F47: 81.82936315 | G47: 223.6191555 | H47: 16.22168536 | I47: 175.5186405 | J47: 198.0320812
A48: 36 | B48: 0.7012352476 | C48: 238.1314944 | D48: 241.5425176 | E48: 162.2939714 | F48: 178.0232461 | G48: 244.3059281 | H48: 43.35405608 | I48: 238.681617 | J48: 224.2876037
A49: 37 | B49: 0.8308923583 | C49: 250.6378466 | D49: 261.1087994 | E49: 229.7818503 | F49: 213.7363241 | G49: 256.005537 | H49: 50.12616035 | I49: 244.3798198 | J49: 225.7347553
A50: 38 | B50: 0.6502586024 | C50: 229.169288 | D50: 259.8476423 | E50: 143.5644863 | F50: 177.7010381 | G50: 240.8953647 | H50: 46.86321289 | I50: 242.1871994 | J50: 217.5357975
A51: 39 | B51: 0.6653487255 | C51: 233.7592771 | D51: 244.2237298 | E51: 163.2112688 | F51: 178.175728 | G51: 239.1976619 | H51: 41.87400071 | I51: 242.2809255 | J51: 219.4080805
A52: 40 | B52: 1.122650481 | C52: 261.0668076 | D52: 256.0476969 | E52: 234.4710584 | F52: 241.5260999 | G52: 259.070988 | H52: 67.39948598 | I52: 246.35135 | J52: 245.9063948
A53: 41 | B53: 0.9646266343 | C53: 261.4587871 | D53: 251.6736002 | E53: 232.2936833 | F53: 237.2397665 | G53: 251.6462238 | H53: 63.80562975 | I53: 248.6248771 | J53: 247.6121198
A54: 42 | B54: 0.8846668382 | C54: 246.9489908 | D54: 240.2411857 | E54: 232.0099976 | F54: 209.0158791 | G54: 239.8110148 | H54: 45.82550789 | I54: 253.6616546 | J54: 249.9982974
A55: 43 | B55: 0.2154951691 | C55: 151.1894201 | D55: 173.340805 | E55: 72.1124644 | F55: 62.76528736 | G55: 152.8232653 | H55: 1.196002868 | I55: 152.9487012 | J55: 165.2468287
A56: 44 | B56: 0.6820390571 | C56: 226.922111 | D56: 257.2006213 | E56: 169.5091133 | F56: 178.235545 | G56: 252.7325637 | H56: 48.19786972 | I56: 246.0307709 | J56: 226.0236548
A57: 45 | B57: 1.095257094 | C57: 243.7372351 | D57: 261.2297541 | E57: 233.4198736 | F57: 237.3158773 | G57: 253.2891117 | H57: 65.63375097 | I57: 250.9821377 | J57: 233.7508701
A58: 46 | B58: 1.210785687 | C58: 242.3597732 | D58: 249.7135838 | E58: 242.2140231 | F58: 253.0370506 | G58: 258.877654 | H58: 78.19603415 | I58: 246.9592585 | J58: 255.167698
A59: 47 | B59: 0.05016799448 | C59: 130.4786103 | D59: 127.544534 | E59: 68.19936129 | F59: 15.21221659 | G59: 37.30271062 | H59: -45.41400044 | I59: 156.7864197 | J59: 94.18253156
A60: 48 | B60: 0.03548646327 | C60: 124.433828 | D60: 120.9041347 | E60: 69.84452886 | F60: 18.97840569 | G60: 33.71895417 | H60: -48.65475661 | I60: 154.8501276 | J60: 107.8437764
A61: 49 | B61: 0.808055748 | C61: 244.1161159 | D61: 245.8945628 | E61: 203.801046 | F61: 200.7895748 | G61: 244.1789465 | H61: 51.49166496 | I61: 252.60739 | J61: 229.2194779
A62: 50 | B62: 0.6185092871 | C62: 239.3471409 | D62: 250.9943593 | E62: 127.6152211 | F62: 165.6400657 | G62: 259.1557006 | H62: 39.39868882 | I62: 233.0867898 | J62: 219.5172245
A63: 51 | B63: 0.8352015211 | C63: 249.8030582 | D63: 239.9185584 | E63: 227.0763126 | F63: 216.169409 | G63: 244.7272793 | H63: 44.02333593 | I63: 243.5333495 | J63: 243.8715159
A64: 52 | B64: 0.6856830864 | C64: 242.6156352 | D64: 243.461924 | E64: 166.2021581 | F64: 175.7737344 | G64: 247.24312 | H64: 34.9732454 | I64: 245.0309201 | J64: 220.3579341
A65: 53 | B65: 0.6049399622 | C65: 217.2155947 | D65: 238.3313213 | E65: 123.7159786 | F65: 164.4601804 | G65: 255.3806125 | H65: 40.14665511 | I65: 229.0752446 | J65: 228.5472034
A66: 54 | B66: 0.7761623996 | C66: 246.7810003 | D66: 249.7086304 | E66: 193.0696701 | F66: 193.1279795 | G66: 261.255028 | H66: 56.94140286 | I66: 243.2390469 | J66: 231.3035126
A67: 55 | B67: 0.2950384647 | C67: 171.9625137 | D67: 203.9540657 | E67: 84.06812651 | F67: 70.51706142 | G67: 217.9634285 | H67: 3.305158314 | I67: 160.0079486 | J67: 181.2975825
A68: 56 | B68: 0.6019290984 | C68: 230.2582163 | D68: 234.0935207 | E68: 123.7136556 | F68: 147.6647542 | G68: 239.4848894 | H68: 37.92710875 | I68: 233.6547034 | J68: 215.3520249
A69: 57 | B69: 0.9090295557 | C69: 258.4443873 | D69: 239.5890406 | E69: 238.4795179 | F69: 211.7645403 | G69: 237.9408064 | H69: 53.28337892 | I69: 246.4345192 | J69: 228.3917271
A70: 58 | B70: 0.9996504395 | C70: 255.1179267 | D70: 248.7390727 | E70: 250.2721426 | F70: 223.9295287 | G70: 253.5583521 | H70: 52.46825144 | I70: 253.8829073 | J70: 240.5043721
A71: 59 | B71: 0.2906884626 | C71: 181.6620486 | D71: 191.2444174 | E71: 65.59530992 | F71: 77.20957158 | G71: 208.9358488 | H71: -0.4222622498 | I71: 161.9516019 | J71: 177.6335665
A72: 60 | B72: 0.5060183812 | C72: 198.895886 | D72: 233.0754448 | E72: 77.10965519 | F72: 138.4658024 | G72: 233.8341527 | H72: 42.81130578 | I72: 215.3858801 | J72: 216.6793347
A73: 61 | B73: 0.450591861 | C73: 208.8916812 | D73: 217.73202 | E73: 72.17162775 | F73: 111.4655357 | G73: 239.2510021 | H73: 28.87117527 | I73: 195.4793061 | J73: 210.1447662
A74: 62 | B74: 0.1121964111 | C74: 139.9005814 | D74: 160.4560618 | E74: 70.58284508 | F74: 37.64671942 | G74: 86.2410129 | H74: -23.96371063 | I74: 153.5008753 | J74: 137.0371505
A75: 63 | B75: 0.1853674318 | C75: 155.027572 | D75: 163.4494635 | E75: 80.96493347 | F75: 37.61028129 | G75: 136.2719417 | H75: 0.5073495893 | I75: 154.5182554 | J75: 163.6312501
A76: 64 | B76: 0.2286074629 | C76: 161.1822438 | D76: 191.8586334 | E76: 70.69776289 | F76: 54.14101103 | G76: 171.9186022 | H76: -15.8337712 | I76: 152.9050574 | J76: 174.4067189
A77: 65 | B77: 1.124081104 | C77: 239.2953201 | D77: 255.5690231 | E77: 246.3969704 | F77: 248.4228583 | G77: 239.2327694 | H77: 75.04464921 | I77: 247.6887308 | J77: 234.4871343
A78: 66 | B78: =$B$5+($C$5-$B$5)*RAND() -> 0.3337938367 | C78: =IF($B78<$O$5,$M$5+$N$5*($O$5-$B78),$M$5)+(RAND()-0.5)*0.1*$M$5 -> 178.9024254 | D78: =IF($B78<$O$7,$M$7+$N$7*($O$7-$B78)^2,$M$7)+(RAND()-0.5)*0.1*$M$7 -> 199.7867863 | E78: =($O$9*$N$9+$M$9*$B78^$P$9)/($N$9+$B78^$P$9)+(RAND()-0.5)*0.1*$M$9 -> 79.75214358 | F78: =$M$11*$N$11*EXP($O$11*B78)/($M$11+$N$11*(EXP($O$11*B78)-1))+(RAND()-0.5)*0.1*$M$11 -> 85.83671387 | G78: =($M$13+($N$13*(1+$O$13)-$M$13)*EXP(-$P$13*$B78))/(1+$O$13*EXP(-$P$13*$B78))+(RAND()-0.5)*0.1*$M$13 -> 216.0019771 | H78: =$M$15*EXP(-$N$15*B78)*(1-EXP(-$O$15*(B78-$P$15)))+(RAND()-0.5)*0.1*$M$15 -> 1.737831152 | I78: =$M$17+$N$17/(1+EXP($O$17+$P$17*B78))+(RAND()-0.5)*0.05*($M$17+$N$17) -> 172.0411614 | J78: =$M$19+$N$19*(1-EXP($O$19*B78))+(RAND()-0.5)*0.1*($M$19+$N$19) -> 179.3819381
A79: 67 | B79: 0.4513493854 | C79: 185.3976991 | D79: 220.7676093 | E79: 76.30711063 | F79: 110.9925245 | G79: 234.610539 | H79: 25.24468029 | I79: 203.6183908 | J79: 198.7206127
A80: 68 | B80: 0.841363767 | C80: 240.7317197 | D80: 243.58869 | E80: 229.7371849 | F80: 215.9269221 | G80: 239.7745442 | H80: 57.31117512 | I80: 252.1177885 | J80: 236.8872282
A81: 69 | B81: 0.1274738201 | C81: 153.2382732 | D81: 160.0034716 | E81: 78.96235809 | F81: 44.52409438 | G81: 98.9081763 | H81: -20.35685459 | I81: 147.4566528 | J81: 134.1284261
A82: 70 | B82: 0.3849785322 | C82: 189.5616493 | D82: 210.2977164 | E82: 80.48743292 | F82: 85.74555368 | G82: 229.3932884 | H82: 27.99410878 | I82: 188.4259799 | J82: 187.6716555
A83: 71 | B83: 1.119075535 | C83: 239.5785759 | D83: 247.7620683 | E83: 253.7643 | F83: 246.020949 | G83: 246.6729066 | H83: 52.78976421 | I83: 244.0040632 | J83: 254.7626362
A84: 72 | B84: 1.190595865 | C84: 254.8714521 | D84: 248.7492765 | E84: 251.6133436 | F84: 244.6429538 | G84: 243.9135292 | H84: 74.17202129 | I84: 246.4971397 | J84: 244.7838282
A85: 73 | B85: 1.075282392 | C85: 239.4567285 | D85: 249.9945133 | E85: 242.9800433 | F85: 241.3600495 | G85: 239.2153279 | H85: 76.14569793 | I85: 245.4377832 | J85: 245.7862837
A86: 74 | B86: 0.3649158088 | C86: 185.1752201 | D86: 214.0338556 | E86: 83.79658148 | F86: 99.04770815 | G86: 236.6064196 | H86: 11.4856277 | I86: 177.5636388 | J86: 196.5935931
A87: 75 | B87: 1.100506728 | C87: 262.1978258 | D87: 262.1055255 | E87: 249.1223389 | F87: 234.8437756 | G87: 245.0443253 | H87: 64.1378449 | I87: 252.4630192 | J87: 231.3404397
A88: 76 | B88: 1.225976335 | C88: 244.1789562 | D88: 239.4725966 | E88: 242.8278582 | F88: 252.323717 | G88: 242.9162065 | H88: 65.82784735 | I88: 254.738726 | J88: 236.7328312
A89: 77 | B89: 0.9585249794 | C89: 255.7982487 | D89: 261.8465329 | E89: 238.8700234 | F89: 222.8503417 | G89: 260.3477529 | H89: 61.52764601 | I89: 249.6377381 | J89: 228.1556068
A90: 78 | B90: 0.8308851445 | C90: 240.2475437 | D90: 237.5590555 | E90: 224.5994606 | F90: 211.5081575 | G90: 260.7778056 | H90: 55.35273907 | I90: 243.8010878 | J90: 230.7890724
A91: 79 | B91: 0.6134976095 | C91: 225.2660923 | D91: 241.6292882 | E91: 119.1072689 | F91: 175.3457376 | G91: 249.095482 | H91: 31.50903507 | I91: 233.3545821 | J91: 221.2798953
A92: 80 | B92: 0.772880493 | C92: 257.4608586 | D92: 258.1904956 | E92: 208.5134476 | F92: 207.739557 | G92: 248.3287988 | H92: 55.51324391 | I92: 245.3878368 | J92: 232.7080854
A93: 81 | B93: 0.7236579908 | C93: 241.1534137 | D93: 239.6169345 | E93: 183.3773624 | F93: 198.9784268 | G93: 237.2898858 | H93: 38.05591989 | I93: 241.2136595 | J93: 224.4495285
A94: 82 | B94: 0.5413198582 | C94: 208.8856573 | D94: 246.0187102 | E94: 105.7465234 | F94: 147.2025453 | G94: 237.0587248 | H94: 39.38939469 | I94: 222.5755687 | J94: 214.9463002
A95: 83 | B95: 0.9517313642 | C95: 238.4690352 | D95: 252.6406401 | E95: 235.837407 | F95: 220.8755534 | G95: 241.8047568 | H95: 55.66663248 | I95: 244.0081554 | J95: 229.4967328
A96: 84 | B96: 0.7745623802 | C96: 251.4102974 | D96: 244.8035813 | E96: 202.2282943 | F96: 204.3804338 | G96: 252.9594631 | H96: 46.88474351 | I96: 244.3000863 | J96: 235.4879711
A97: 85 | B97: 0.8182260983 | C97: 250.1507255 | D97: 248.7975871 | E97: 226.236678 | F97: 220.0283804 | G97: 245.274493 | H97: 55.83005557 | I97: 251.157196 | J97: 226.2225753
A98: 86 | B98: 1.195477848 | C98: 261.0648073 | D98: 248.6564408 | E98: 248.8796435 | F98: 248.1630102 | G98: 253.6956876 | H98: 65.92147952 | I98: 244.7330781 | J98: 255.7727669
A99: 87 | B99: 1.211745436 | C99: 248.4721309 | D99: 243.3304378 | E99: 254.4454667 | F99: 235.8802125 | G99: 254.2264665 | H99: 70.10210761 | I99: 246.7735593 | J99: 253.988315
A100: 88 | B100: 0.6001244873 | C100: 224.9426908 | D100: 232.4942841 | E100: 125.435227 | F100: 158.2597156 | G100: 253.7242433 | H100: 40.32263257 | I100: 238.6294982 | J100: 219.4131591
A101: 89 | B101: 0.4338860832 | C101: 185.3961766 | D101: 234.9826848 | E101: 70.69558883 | F101: 112.8209007 | G101: 251.7962574 | H101: 32.97530934 | I101: 191.2704669 | J101: 202.3000956
A102: 90 | B102: 0.3741789277 | C102: 189.161309 | D102: 206.3384098 | E102: 72.94225676 | F102: 81.85019971 | G102: 230.0593777 | H102: 13.71377614 | I102: 185.7271013 | J102: 195.1599027
A103: 91 | B103: 0.06817778948 | C103: 129.8790133 | D103: 139.3548439 | E103: 70.19943764 | F103: 39.58543706 | G103: 61.9925697 | H103: -23.89667602 | I103: 147.0504984 | J103: 116.4061603
A104: 92 | B104: 0.5118944533 | C104: 209.9449998 | D104: 243.6455617 | E104: 99.60456754 | F104: 142.4108805 | G104: 236.1806807 | H104: 38.17712542 | I104: 213.4576633 | J104: 201.7478739
A105: 93 | B105: 0.7350624695 | C105: 244.5725277 | D105: 256.6773763 | E105: 186.1354902 | F105: 191.3184054 | G105: 248.5660169 | H105: 59.23563654 | I105: 243.4735437 | J105: 222.4671256
A106: 94 | B106: 1.020881907 | C106: 243.7656799 | D106: 262.269349 | E106: 240.5203965 | F106: 224.5533156 | G106: 242.0009833 | H106: 73.26483997 | I106: 249.9052082 | J106: 231.6673828
A107: 95 | B107: 0.3082454071 | C107: 164.7694192 | D107: 194.4213163 | E107: 71.67822605 | F107: 61.32751339 | G107: 205.1357376 | H107: 17.34319833 | I107: 164.2658262 | J107: 191.9309352
A108: 96 | B108: 0.3454977169 | C108: 168.9924178 | D108: 200.1937725 | E108: 80.69805117 | F108: 83.93990833 | G108: 216.7594904 | H108: 8.832469784 | I108: 168.9634857 | J108: 200.9860266
A109: 97 | B109: 0.1598890795 | C109: 140.0658606 | D109: 160.7595385 | E109: 82.39383761 | F109: 48.3379397 | G109: 120.0878139 | H109: -17.4740325 | I109: 158.1812553 | J109: 146.8089846
A110: 98 | B110: 0.2935956477 | C110: 172.5568605 | D110: 191.7750104 | E110: 63.91535752 | F110: 60.8992147 | G110: 196.4157316 | H110: -3.841616073 | I110: 159.0345315 | J110: 191.6768773
A111: 99 | B111: 1.032241224 | C111: 256.9283312 | D111: 260.800001 | E111: 231.4625992 | F111: 226.5291758 | G111: 240.7699092 | H111: 71.33696794 | I111: 244.3258111 | J111: 246.0488637
A112: 100 | B112: =$B$5+($C$5-$B$5)*RAND() -> 0.04942947016 | C112: 126.9074004 | D112: 139.2879732 | E112: 67.69611453 | F112: 29.56285846 | G112: 35.27191741 | H112: -38.92865342 | I112: 154.3723548 | J112: 101.7751687

Sheet Comparison Data
D3: LYS | E3: Data | F3: BLL | G3: BLQ | H3: SKM | I3: Poly
D4: ='Broken Line'!T7 -> 0 | F4: ='Broken Line'!U7 -> -152.9994248 | G4: ='Broken Quadratic'!U7 -> -505.6074918 | H4: ='Saturation Kinetics'!U7 -> 83.19098592 | I4: ='Quadratic Regression'!W7 -> -505.1390185
D5: ='Broken Line'!T8 -> 0.02 | F5: ='Broken Line'!U8 -> -141.8594391 | G5: ='Broken Quadratic'!U8 -> -476.6109401 | H5: ='Saturation Kinetics'!U8 -> 83.19099234 | I5: ='Quadratic Regression'!W8 -> -476.1639796
D6: ='Broken Line'!T9 -> 0.04 | F6: ='Broken Line'!U9 -> -130.7194535 | G6: ='Broken Quadratic'!U9 -> -448.062144 | H6: ='Saturation Kinetics'!U9 -> 83.19117999 | I6: ='Quadratic Regression'!W9 -> -447.6362159
D7: ='Broken Line'!T10 -> 0.06 | F7: ='Broken Line'!U10 -> -119.5794679 | G7: ='Broken Quadratic'!U10 -> -419.9611036 | H7: ='Saturation Kinetics'!U10 -> 83.19241142 | I7: ='Quadratic Regression'!W10 -> -419.5557274
D8: ='Broken Line'!T11 -> 0.08 | F8: ='Broken Line'!U11 -> -108.4394823 | G8: ='Broken Quadratic'!U11 -> -392.3078188 | H8: ='Saturation Kinetics'!U11 -> 83.19685281 | I8: ='Quadratic Regression'!W11 -> -391.9225141
D9: ='Broken Line'!T12 -> 0.1 | F9: ='Broken Line'!U12 -> -97.29949667 | G9: ='Broken Quadratic'!U12 -> -365.1022898 | H9: ='Saturation Kinetics'!U12 -> 83.20856505 | I9: ='Quadratic Regression'!W12 -> -364.7365761
D10: ='Broken Line'!T13 -> 0.12 | F10: ='Broken Line'!U13 -> -86.15951105 | G10: ='Broken Quadratic'!U13 -> -338.3445163 | H10: ='Saturation Kinetics'!U13 -> 83.23407644 | I10: ='Quadratic Regression'!W13 -> -337.9979132
D11: ='Broken Line'!T14 -> 0.14 | F11: ='Broken Line'!U14 -> -75.01952543 | G11: ='Broken Quadratic'!U14 -> -312.0344986 | H11: ='Saturation Kinetics'!U14 -> 83.28294018 | I11: ='Quadratic Regression'!W14 -> -311.7065256
D12: ='Broken Line'!T15 -> 0.16 | F12: ='Broken Line'!U15 -> -63.87953981 | G12: ='Broken Quadratic'!U15 -> -286.1722364 | H12: ='Saturation Kinetics'!U15 -> 83.36827524 | I12: ='Quadratic Regression'!W15 -> -285.8624132
D13: ='Broken Line'!T16 -> 0.18 | F13: ='Broken Line'!U16 -> -52.73955419 | G13: ='Broken Quadratic'!U16 -> -260.75773 | H13: ='Saturation Kinetics'!U16 -> 83.50728559 | I13: ='Quadratic Regression'!W16 -> -260.4655761
D14: ='Broken Line'!T17 -> 0.2 | F14: ='Broken Line'!U17 -> -41.59956857 | G14: ='Broken Quadratic'!U17 -> -235.7909792 | H14: ='Saturation Kinetics'!U17 -> 83.72174824 | I14: ='Quadratic Regression'!W17 -> -235.5160141
D15: ='Broken Line'!T18 -> 0.22 | F15: ='Broken Line'!U18 -> -30.45958295 | G15: ='Broken Quadratic'!U18 -> -211.2719841 | H15: ='Saturation Kinetics'!U18 -> 84.03845519 | I15: ='Quadratic Regression'!W18 -> -211.0137274
D16: ='Broken Line'!T19 -> 0.24 | F16: ='Broken Line'!U19 -> -19.31959733 | G16: ='Broken Quadratic'!U19 -> -187.2007446 | H16: ='Saturation Kinetics'!U19 -> 84.48958782 | I16: ='Quadratic Regression'!W19 -> -186.9587158
D17: ='Broken Line'!T20 -> 0.26 | F17: ='Broken Line'!U20 -> -8.179611713 | G17: ='Broken Quadratic'!U20 -> -163.5772608 | H17: ='Saturation Kinetics'!U20 -> 85.11299513 | I17: ='Quadratic Regression'!W20 -> -163.3509795
D18: ='Broken Line'!T21 -> 0.28 | F18: ='Broken Line'!U21 -> 2.960373907 | G18: ='Broken Quadratic'!U21 -> -140.4015327 | H18: ='Saturation Kinetics'!U21 -> 85.95233893 | I18: ='Quadratic Regression'!W21 -> -140.1905184
D19: ='Broken Line'!T22 -> 0.3 | F19: ='Broken Line'!U22 -> 14.10035953 | G19: ='Broken Quadratic'!U22 -> -117.6735602 | H19: ='Saturation Kinetics'!U22 -> 87.0570612 | I19: ='Quadratic Regression'!W22 -> -117.4773326
D20: ='Broken Line'!T23 -> 0.32 | F20: ='Broken Line'!U23 -> 25.24034514 | G20: ='Broken Quadratic'!U23 -> -95.39334335 | H20: ='Saturation Kinetics'!U23 -> 88.48212162 | I20: ='Quadratic Regression'!W23 -> -95.21142191
D21: ='Broken Line'!T24 -> 0.34 | F21: ='Broken Line'!U24 -> 36.38033076 | G21: ='Broken Quadratic'!U24 -> -73.56088218 | H21: ='Saturation Kinetics'!U24 -> 90.28744824 | I21: ='Quadratic Regression'!W24 -> -73.39278648
D22: ='Broken Line'!T25 -> 0.36 | F22: ='Broken Line'!U25 -> 47.52031638 | G22: ='Broken Quadratic'!U25 -> -52.17617668 | H22: ='Saturation Kinetics'!U25 -> 92.53704349 | I22: ='Quadratic Regression'!W25 -> -52.02142626
D23: ='Broken Line'!T26 -> 0.38 | F23: ='Broken Line'!U26 -> 58.660302 | G23: ='Broken Quadratic'!U26 -> -31.23922684 | H23: ='Saturation Kinetics'!U26 -> 95.29769314 | I23: ='Quadratic Regression'!W26 -> -31.09734125
D24: ='Broken Line'!T27 -> 0.4 | F24: ='Broken Line'!U27 -> 69.80028762 | G24: ='Broken Quadratic'!U27 -> -10.75003265 | H24: ='Saturation Kinetics'!U27 -> 98.63723946 | I24: ='Quadratic Regression'!W27 -> -10.62053147
D25: ='Broken Line'!T28 -> 0.42 | F25: ='Broken Line'!U28 -> 80.94027324 | G25: ='Broken Quadratic'!U28 -> 9.291405868 | H25: ='Saturation Kinetics'!U28 -> 102.6224043 | I25: ='Quadratic Regression'!W28 -> 9.409003104
D26: ='Broken Line'!T29 -> 0.44 | F26: ='Broken Line'!U29 -> 92.08025886 | G26: ='Broken Quadratic'!U29 -> 28.88508873 | H26: ='Saturation Kinetics'!U29 -> 107.3161841 | I26: ='Quadratic Regression'!W29 -> 28.99126246
D27: ='Broken Line'!T30 -> 0.46 | F27: ='Broken Line'!U30 -> 103.2202445 | G27: ='Broken Quadratic'!U30 -> 48.03101593 | H27: ='Saturation Kinetics'!U30 -> 112.7748847 | I27: ='Quadratic Regression'!W30 -> 48.12624659
D28: ='Broken Line'!T31 -> 0.48 | F28: ='Broken Line'!U31 -> 114.3602301 | G28: ='Broken Quadratic'!U31 -> 66.72918747 | H28: ='Saturation Kinetics'!U31 -> 119.0449225 | I28: ='Quadratic Regression'!W31 -> 66.81395551
D29: ='Broken Line'!T32 -> 0.5 | F29: ='Broken Line'!U32 -> 125.5002157 | G29: ='Broken Quadratic'!U32 -> 84.97960335 | H29: ='Saturation Kinetics'!U32 -> 126.1595727 | I29: ='Quadratic Regression'!W32 -> 85.05438921
D30: ='Broken Line'!T33 -> 0.52 | F30: ='Broken Line'!U33 -> 136.6402013 | G30: ='Broken Quadratic'!U33 -> 102.7822636 | H30: ='Saturation Kinetics'!U33 -> 134.1359008 | I30: ='Quadratic Regression'!W33 -> 102.8475477
D31: ='Broken Line'!T34 -> 0.54 | F31: ='Broken Line'!U34 -> 147.780187 | G31: ='Broken Quadratic'!U34 -> 120.1371681 | H31: ='Saturation Kinetics'!U34 -> 142.9721489 | I31: ='Quadratic Regression'!W34 -> 120.193431
B32: ='Input & Summary'!B2 -> 0.6 | D32: ='Broken Line'!T35 -> 0.56 | F32: ='Broken Line'!U35 -> 158.9201726 | G32: ='Broken Quadratic'!U35 -> 137.044317 | H32: ='Saturation Kinetics'!U35 -> 152.6458548 | I32: ='Quadratic Regression'!W35 -> 137.092039
B33: ='Input & Summary'!B3 -> 0.7 | D33: ='Broken Line'!T36 -> 0.58 | F33: ='Broken Line'!U36 -> 170.0601582 | G33: ='Broken Quadratic'!U36 -> 153.5037103 | H33: ='Saturation Kinetics'!U36 -> 163.1129556 | I33: ='Quadratic Regression'!W36 -> 153.5433718
B34: ='Input & Summary'!B4 -> 0.8 | D34: ='Broken Line'!T37 -> 0.6 | E34: ='Input & Summary'!C2 -> 172 | F34: ='Broken Line'!U37 -> 181.2001438 | G34: ='Broken Quadratic'!U37 -> 169.5153478 | H34: ='Saturation Kinetics'!U37 -> 174.3080589 | I34: ='Quadratic Regression'!W37 -> 169.5474294
B35: ='Input & Summary'!B5 -> 0.9 | D35: ='Broken Line'!T38 -> 0.62 | F35: ='Broken Line'!U38 -> 192.3401294 | G35: ='Broken Quadratic'!U38 -> 185.0792298 | H35: ='Saturation Kinetics'!U38 -> 186.1459636 | I35: ='Quadratic Regression'!W38 -> 185.1042118
B36: ='Input & Summary'!B6 -> 1 | D36: ='Broken Line'!T39 -> 0.64 | F36: ='Broken Line'!U39 -> 203.4801151 | G36: ='Broken Quadratic'!U39 -> 200.195356 | H36: ='Saturation Kinetics'!U39 -> 198.5243837 | I36: ='Quadratic Regression'!W39 -> 200.213719
B37: ='Input & Summary'!B7 -> 1.1 | D37: ='Broken Line'!T40 -> 0.66 | F37: ='Broken Line'!U40 -> 214.6201007 | G37: ='Broken Quadratic'!U40 -> 214.8637266 | H37: ='Saturation Kinetics'!U40 -> 211.3277027 | I37: ='Quadratic Regression'!W40 -> 214.875951
B38: ='Input & Summary'!B8 -> 1.2 | D38: ='Broken Line'!T41 -> 0.68 | F38: ='Broken Line'!U41 -> 225.7600863 | G38: ='Broken Quadratic'!U41 -> 229.0843415 | H38: ='Saturation Kinetics'!U41 -> 224.4314708 | I38: ='Quadratic Regression'!W41 -> 229.0909077
D39: ='Broken Line'!T42 -> 0.7 | E39: ='Input & Summary'!C3 -> 244 | F39: ='Broken Line'!U42 -> 236.9000719 | G39: ='Broken Quadratic'!U42 -> 242.8572008 | H39: ='Saturation Kinetics'!U42 -> 237.7072847 | I39: ='Quadratic Regression'!W42 -> 242.8585893
D40: ='Broken Line'!T43 -> 0.72 | F40: ='Broken Line'!U43 -> 248.0400575 | G40: ='Broken Quadratic'!U43 -> 256.1823044 | H40: ='Saturation Kinetics'!U43 -> 251.0276598 | I40: ='Quadratic Regression'!W43 -> 256.1789956
D41: ='Broken Line'!T44 -> 0.74 | F41: ='Broken Line'!U44 -> 259.1800431 | G41: ='Broken Quadratic'!U44 -> 269.0596524 | H41: ='Saturation Kinetics'!U44 -> 264.2705325 | I41: ='Quadratic Regression'!W44 -> 269.0521267
D42: ='Broken Line'!T45 -> 0.76 | F42: ='Broken Line'!U45 -> 270.3200288 | G42: ='Broken Quadratic'!U45 -> 281.4892447 | H42: ='Saturation Kinetics'!U45 -> 277.3230944 | I42: ='Quadratic Regression'!W45 -> 281.4779825
D43: ='Broken Line'!T46 -> 0.78 | F43: ='Broken Line'!U46 -> 281.4600144 | G43: ='Broken Quadratic'!U46 -> 293.4710813 | H43: ='Saturation Kinetics'!U46 -> 290.0847614 | I43: ='Quadratic Regression'!W46 -> 293.4565632
D44: ='Broken Line'!T47 -> 0.8 | E44: ='Input & Summary'!C4 -> 300 | F44: ='Broken Line'!U47 -> 292.6 | G44: ='Broken Quadratic'!U47 -> 305.0051623 | H44: ='Saturation Kinetics'!U47 -> 302.469181 | I44: ='Quadratic Regression'!W47 -> 304.9878686
D45: ='Broken Line'!T48 -> 0.82 | F45: ='Broken Line'!U48 -> 303.7399856 | G45: ='Broken Quadratic'!U48 -> 316.0914876 | H45: ='Saturation Kinetics'!U48 -> 314.4052887 | I45: ='Quadratic Regression'!W48 -> 316.0718989
D46: ='Broken Line'!T49 -> 0.84 | F46: ='Broken Line'!U49 -> 314.8799712 | G46: ='Broken Quadratic'!U49 -> 326.7300572 | H46: ='Saturation Kinetics'!U49 -> 325.8374986 | I46: ='Quadratic Regression'!W49 -> 326.7086539
D47: ='Broken Line'!T50 -> 0.86 | F47: ='Broken Line'!U50 -> 326.0199569 | G47: ='Broken Quadratic'!U50 -> 336.9208712 | H47: ='Saturation Kinetics'!U50 -> 336.7251732 | I47: ='Quadratic Regression'!W50 -> 336.8981337
D48: ='Broken Line'!T51 -> 0.88 | F48: ='Broken Line'!U51 -> 337.1599425 | G48: ='Broken Quadratic'!U51 -> 346.6639296 | H48: ='Saturation Kinetics'!U51 -> 347.0415425 | I48: ='Quadratic Regression'!W51 -> 346.6403382
D49: ='Broken Line'!T52 -> 0.9 | E49: ='Input & Summary'!C5 -> 349 | F49: ='Broken Line'!U52 -> 348.2999281 | G49: ='Broken Quadratic'!U52 -> 355.9592322 | H49: ='Saturation Kinetics'!U52 -> 356.7722482 | I49: ='Quadratic Regression'!W52 -> 355.9352676
D50: ='Broken Line'!T53 -> 0.92 | F50: ='Broken Line'!U53 -> 359.4399137 | G50: ='Broken Quadratic'!U53 -> 364.8067792 | H50: ='Saturation Kinetics'!U53 -> 365.9136748 | I50: ='Quadratic Regression'!W53 -> 364.7829217
D51: ='Broken Line'!T54 -> 0.94 | F51: ='Broken Line'!U54 -> 370.5798993 | G51: ='Broken Quadratic'!U54 -> 373.2065706 | H51: ='Saturation Kinetics'!U54 -> 374.4712044 | I51: ='Quadratic Regression'!W54 -> 373.1833006
D52: ='Broken Line'!T55 -> 0.96 | F52: ='Broken Line'!U55 -> 381.719885 | G52: ='Broken Quadratic'!U55 -> 381.1586063 | H52: ='Saturation Kinetics'!U55 -> 382.4575031 | I52: ='Quadratic Regression'!W55 -> 381.1364043
D53: ='Broken Line'!T56 -> 0.98 | F53: ='Broken Line'!U56 -> 392.8598706 | G53: ='Broken Quadratic'!U56 -> 388.6628863 | H53: ='Saturation Kinetics'!U56 -> 389.8909141 | I53: ='Quadratic Regression'!W56 -> 388.6422328
D54: ='Broken Line'!T57 -> 1 | E54: ='Input & Summary'!C6 -> 398 | F54: ='Broken Line'!U57 -> 403.9998562 | G54: ='Broken Quadratic'!U57 -> 395.7194107 | H54: ='Saturation Kinetics'!U57 -> 396.794009 | I54: ='Quadratic Regression'!W57 -> 395.7007861
D55: ='Broken Line'!T58 -> 1.02 | F55: ='Broken Line'!U58 -> 415.1398418 | G55: ='Broken Quadratic'!U58 -> 402.3281794 | H55: ='Saturation Kinetics'!U58 -> 403.1923213 | I55: ='Quadratic Regression'!W58 -> 402.3120642
D56: ='Broken Line'!T59 -> 1.04 | F56: ='Broken Line'!U59 -> 426.2798274 | G56: ='Broken Quadratic'!U59 -> 408.4891924 | H56: ='Saturation Kinetics'!U59 -> 409.1132716 | I56: ='Quadratic Regression'!W59 -> 408.476067
D57: ='Broken Line'!T60 -> 1.06 | F57: ='Broken Line'!U60 -> 435.998734 | G57: ='Broken Quadratic'!U60 -> 414.2024498 | H57: ='Saturation Kinetics'!U60 -> 414.5852788 | I57: ='Quadratic Regression'!W60 -> 414.1927946
D58: ='Broken Line'!T61 -> 1.08 | F58: ='Broken Line'!U61 -> 435.998734 | G58: ='Broken Quadratic'!U61 -> 419.4679515 | H58: ='Saturation Kinetics'!U61 -> 419.6370457 | I58: ='Quadratic Regression'!W61 -> 419.462247
D59: ='Broken Line'!T62 -> 1.1 | E59: ='Input & Summary'!C7 -> 440 | F59: ='Broken Line'!U62 -> 435.998734 | G59: ='Broken Quadratic'!U62 -> 424.2856976 | H59: ='Saturation Kinetics'!U62 -> 424.2969989 | I59: ='Quadratic Regression'!W62 -> 424.2844242
D60: ='Broken Line'!T63 -> 1.12 | F60: ='Broken Line'!U63 -> 435.998734 | G60: ='Broken Quadratic'!U63 -> 428.655688 | H60: ='Saturation Kinetics'!U63 -> 428.5928642 | I60: ='Quadratic Regression'!W63 -> 428.6593262
D61: ='Broken Line'!T64 -> 1.14 | F61: ='Broken Line'!U64 -> 435.998734 | G61: ='Broken Quadratic'!U64 -> 432.5779227 | H61: ='Saturation Kinetics'!U64 -> 432.551356 | I61: ='Quadratic Regression'!W64 -> 432.5869529
D62: ='Broken Line'!T65 -> 1.16 | F62: ='Broken Line'!U65 -> 435.998734 | G62: ='Broken Quadratic'!U65 -> 436.0524018 | H62: ='Saturation Kinetics'!U65 -> 436.1979624 | I62: ='Quadratic Regression'!W65 -> 436.0673044
D63: ='Broken Line'!T66 -> 1.18 | F63: ='Broken Line'!U66 -> 435.998734 | G63: ='Broken Quadratic'!U66 -> 439.0791252 | H63: ='Saturation Kinetics'!U66 -> 439.5568053 | I63: ='Quadratic Regression'!W66 -> 439.1003807
D64: ='Broken Line'!T67 -> 1.2 | E64: ='Input & Summary'!C8 -> 432 | F64: ='Broken Line'!U67 -> 435.998734 | G64: ='Broken Quadratic'!U67 -> 441.658093 | H64: ='Saturation Kinetics'!U67 -> 442.6505637 | I64: ='Quadratic Regression'!W67 -> 441.6861818
D65: ='Broken Line'!T68 -> 1.22 | F65: ='Broken Line'!U68 -> 435.998734 | G65: ='Broken Quadratic'!U68 -> 443.7893051 | H65: ='Saturation Kinetics'!U68 -> 445.5004423 | I65: ='Quadratic Regression'!W68 -> 443.8247077
D66: ='Broken Line'!T69 -> 1.24 | F66: ='Broken Line'!U69 -> 435.998734 | G66: ='Broken Quadratic'!U69 -> 445.4727615 | H66: ='Saturation Kinetics'!U69 -> 448.126178 | I66: ='Quadratic Regression'!W69 -> 445.5159584
D67: ='Broken Line'!T70 -> 1.26 | F67: ='Broken Line'!U70 -> 435.998734 | G67: ='Broken Quadratic'!U70 -> 446.7084623 | H67: ='Saturation Kinetics'!U70 -> 450.5460716 | I67: ='Quadratic Regression'!W70 -> 446.7599338
D68: ='Broken Line'!T71 -> 1.28 | F68: ='Broken Line'!U71 -> 435.998734 | G68: ='Broken Quadratic'!U71 -> 447.4964074 | H68: ='Saturation Kinetics'!U71 -> 452.7770396 | I68: ='Quadratic Regression'!W71 -> 447.5566341
D69: ='Broken Line'!T72 -> 1.3 | F69: ='Broken Line'!U72 -> 435.998734 | G69: ='Broken Quadratic'!U72 -> 447.8365969 | H69: ='Saturation Kinetics'!U72 -> 454.8346778 | I69: ='Quadratic Regression'!W72 -> 447.9060591
D70: ='Broken Line'!T73 -> 1.32 | F70: ='Broken Line'!U73 -> 435.998734 | G70: ='Broken Quadratic'!U73 -> 447.8517038 | H70: ='Saturation Kinetics'!U73 -> 456.7333341 | I70: ='Quadratic Regression'!W73 -> 447.8082089
D71: ='Broken Line'!T74 -> 1.34 | F71: ='Broken Line'!U74 -> 435.998734 | G71: ='Broken Quadratic'!U74 -> 447.8517038 | H71: ='Saturation Kinetics'!U74 -> 458.4861855 | I71: ='Quadratic Regression'!W74 -> 447.2630834
D72: ='Broken Line'!T75 -> 1.36 | F72: ='Broken Line'!U75 -> 435.998734 | G72: ='Broken Quadratic'!U75 -> 447.8517038 | H72: ='Saturation Kinetics'!U75 -> 460.1053159 | I72: ='Quadratic Regression'!W75 -> 446.2706828
D73: ='Broken Line'!T76 -> 1.38 | F73: ='Broken Line'!U76 -> 435.998734 | G73: ='Broken Quadratic'!U76 -> 447.8517038 | H73: ='Saturation Kinetics'!U76 -> 461.601795 | I73: ='Quadratic Regression'!W76 -> 444.8310069
D74: ='Broken Line'!T77 -> 1.4 | F74: ='Broken Line'!U77 -> 435.998734 | G74: ='Broken Quadratic'!U77 -> 447.8517038 | H74: ='Saturation Kinetics'!U77 -> 462.9857543 | I74: ='Quadratic Regression'!W77 -> 442.9440559
D75: ='Broken Line'!T78 -> 1.42 | F75: ='Broken Line'!U78 -> 435.998734 | G75: ='Broken Quadratic'!U78 -> 447.8517038 | H75: ='Saturation Kinetics'!U78 -> 464.2664603 | I75: ='Quadratic Regression'!W78 -> 440.6098296
D76: ='Broken Line'!T79 -> 1.44 | F76: ='Broken Line'!U79 -> 435.998734 | G76: ='Broken Quadratic'!U79 -> 447.8517038 | H76: ='Saturation Kinetics'!U79 -> 465.4523845 | I76: ='Quadratic Regression'!W79 -> 437.828328
D77: ='Broken Line'!T80 -> 1.46 | F77: ='Broken Line'!U80 -> 435.998734 | G77: ='Broken Quadratic'!U80 -> 447.8517038 | H77: ='Saturation Kinetics'!U80 -> 466.5512688 | I77: ='Quadratic Regression'!W80 -> 434.5995513
D78: ='Broken Line'!T81 -> 1.48 | F78: ='Broken Line'!U81 -> 435.998734 | G78: ='Broken Quadratic'!U81 -> 447.8517038 | H78: ='Saturation Kinetics'!U81 -> 467.5701876 | I78: ='Quadratic Regression'!W81 -> 430.9234994
D79: ='Broken Line'!T82 -> 1.5 | F79: ='Broken Line'!U82 -> 435.998734 | G79: ='Broken Quadratic'!U82 -> 447.8517038 | H79: ='Saturation Kinetics'!U82 -> 468.5156043 | I79: ='Quadratic Regression'!W82 -> 426.8001722
D80: ='Broken Line'!T83 -> 1.52 | F80: ='Broken Line'!U83 -> 435.998734 | G80: ='Broken Quadratic'!U83 -> 447.8517038 | H80: ='Saturation Kinetics'!U83 -> 469.3934249 | I80: ='Quadratic Regression'!W83 -> 422.2295698
D81: ='Broken Line'!T84 -> 1.54 | F81: ='Broken Line'!U84 -> 435.998734 | G81: ='Broken Quadratic'!U84 -> 447.8517038 | H81: ='Saturation Kinetics'!U84 -> 470.2090463 | I81: ='Quadratic Regression'!W84 -> 417.2116922
D82: ='Broken Line'!T85 -> 1.56 | F82: ='Broken Line'!U85 -> 435.998734 | G82: ='Broken Quadratic'!U85 -> 447.8517038 | H82: ='Saturation Kinetics'!U85 -> 470.9674017 | I82: ='Quadratic Regression'!W85 -> 411.7465394
D83: ='Broken Line'!T86 -> 1.58 | F83: ='Broken Line'!U86 -> 435.998734 | G83: ='Broken Quadratic'!U86 -> 447.8517038 | H83: ='Saturation Kinetics'!U86 -> 471.6730012 | I83: ='Quadratic Regression'!W86 -> 405.8341114
D84: ='Broken Line'!T87 -> 1.6 | F84: ='Broken Line'!U87 -> 435.998734 | G84: ='Broken Quadratic'!U87 -> 447.8517038 | H84: ='Saturation Kinetics'!U87 -> 472.3299698 | I84: ='Quadratic Regression'!W87 -> 399.4744081
D85: ='Broken Line'!T88 -> 1.62 | F85: ='Broken Line'!U88 -> 435.998734 | G85: ='Broken Quadratic'!U88 -> 447.8517038 | H85: ='Saturation Kinetics'!U88 -> 472.9420819 | I85: ='Quadratic Regression'!W88 -> 392.6674297
D86: ='Broken Line'!T89 -> 1.64 | F86: ='Broken Line'!U89 -> 435.998734 | G86: ='Broken Quadratic'!U89 -> 447.8517038 | H86: ='Saturation Kinetics'!U89 -> 473.512792 | I86: ='Quadratic Regression'!W89 -> 385.413176
D87: ='Broken Line'!T90 -> 1.66 | F87: ='Broken Line'!U90 -> 435.998734 | G87: ='Broken Quadratic'!U90 -> 447.8517038 | H87: ='Saturation Kinetics'!U90 -> 474.045264 | I87: ='Quadratic Regression'!W90 -> 377.7116471
D88: ='Broken Line'!T91 -> 1.68 | F88: ='Broken Line'!U91 -> 435.998734 | G88: ='Broken Quadratic'!U91 -> 447.8517038 | H88: ='Saturation Kinetics'!U91 -> 474.5423966 | I88: ='Quadratic Regression'!W91 -> 369.562843
D89: ='Broken Line'!T92 -> 1.7 | F89: ='Broken Line'!U92 -> 435.998734 | G89: ='Broken Quadratic'!U92 -> 447.8517038 | H89: ='Saturation Kinetics'!U92 -> 475.0068472 | I89: ='Quadratic Regression'!W92 -> 360.9667636
D90: ='Broken Line'!T93 -> 1.72 | F90: ='Broken Line'!U93 -> 435.998734 | G90: ='Broken Quadratic'!U93 -> 447.8517038 | H90: ='Saturation Kinetics'!U93 -> 475.4410533 | I90: ='Quadratic Regression'!W93 -> 351.9234091
D91: ='Broken Line'!T94 -> 1.74 | F91: ='Broken Line'!U94 -> 435.998734 | G91: ='Broken Quadratic'!U94 -> 447.8517038 | H91: ='Saturation Kinetics'!U94 -> 475.8472517 | I91: ='Quadratic Regression'!W94 -> 342.4327793
D92: ='Broken Line'!T95 -> 1.76 | F92: ='Broken Line'!U95 -> 435.998734 | G92: ='Broken Quadratic'!U95 -> 447.8517038 | H92: ='Saturation Kinetics'!U95 -> 476.2274968 | I92: ='Quadratic Regression'!W95 -> 332.4948743
D93: ='Broken Line'!T96 -> 1.78 | F93: ='Broken Line'!U96 -> 435.998734 | G93: ='Broken Quadratic'!U96 -> 447.8517038 | H93: ='Saturation Kinetics'!U96 -> 476.5836761 | I93: ='Quadratic Regression'!W96 -> 322.1096941
D94: ='Broken Line'!T97 -> 1.8 | F94: ='Broken Line'!U97 -> 435.998734 | G94: ='Broken Quadratic'!U97 -> 447.8517038 | H94: ='Saturation Kinetics'!U97 -> 476.9175251 | I94: ='Quadratic Regression'!W97 -> 311.2772387
D95: ='Broken Line'!T98 -> 1.82 | F95: ='Broken Line'!U98 -> 435.998734 | G95: ='Broken Quadratic'!U98 -> 447.8517038 | H95: ='Saturation Kinetics'!U98 -> 477.2306403 | I95: ='Quadratic Regression'!W98 -> 299.9975081
D96: ='Broken Line'!T99 -> 1.84 | F96: ='Broken Line'!U99 -> 435.998734 | G96: ='Broken Quadratic'!U99 -> 447.8517038 | H96: ='Saturation Kinetics'!U99 -> 477.5244915 | I96: ='Quadratic Regression'!W99 -> 288.2705022
D97: ='Broken Line'!T100 -> 1.86 | F97: ='Broken Line'!U100 -> 435.998734 | G97: ='Broken Quadratic'!U100 -> 447.8517038 | H97: ='Saturation Kinetics'!U100 -> 477.8004326 | I97: ='Quadratic Regression'!W100 -> 276.0962211
D98: ='Broken Line'!T101 -> 1.88 | F98: ='Broken Line'!U101 -> 435.998734 | G98: ='Broken Quadratic'!U101 -> 447.8517038 | H98: ='Saturation Kinetics'!U101 -> 478.0597117 | I98: ='Quadratic Regression'!W101 -> 263.4746648
D99: ='Broken Line'!T102 -> 1.9 | F99: ='Broken Line'!U102 -> 435.998734 | G99: ='Broken Quadratic'!U102 -> 447.8517038 | H99: ='Saturation Kinetics'!U102 -> 478.3034797 | I99: ='Quadratic Regression'!W102 -> 250.4058333
D100: ='Broken Line'!T103 -> 1.92 | F100: ='Broken Line'!U103 -> 435.998734 | G100: ='Broken Quadratic'!U103 -> 447.8517038 | H100: ='Saturation Kinetics'!U103 -> 478.5327989 | I100: ='Quadratic Regression'!W103 -> 236.8897266
D101: ='Broken Line'!T104 -> 1.94 | F101: ='Broken Line'!U104 -> 435.998734 | G101: ='Broken Quadratic'!U104 -> 447.8517038 | H101: ='Saturation Kinetics'!U104 -> 478.7486505 | I101: ='Quadratic Regression'!W104 -> 222.9263447
D102: ='Broken Line'!T105 -> 1.96 | F102: ='Broken Line'!U105 -> 435.998734 | G102: ='Broken Quadratic'!U105 -> 447.8517038 | H102: ='Saturation Kinetics'!U105 -> 478.9519411 | I102: ='Quadratic Regression'!W105 -> 208.5156875
D103: ='Broken Line'!T106 -> 1.98 | F103: ='Broken Line'!U106 -> 435.998734 | G103: ='Broken Quadratic'!U106 -> 447.8517038 | H103: ='Saturation Kinetics'!U106 -> 479.143509 | I103: ='Quadratic Regression'!W106 -> 193.6577551
D104: ='Broken Line'!T107 -> 2 | F104: ='Broken Line'!U107 -> 435.998734 | G104: ='Broken Quadratic'!U107 -> 447.8517038 | H104: ='Saturation Kinetics'!U107 -> 479.3241299 | I104: ='Quadratic Regression'!W107 -> 178.3525475

Sheet Residuals
B1: Lysine Level | C1: Quadratic Regression | D1: Broken Line | E1: Broken Quadratic | F1: Saturation Kinetics
A2: ='Input & Summary'!A2 -> 1 | B2: =IF(ISBLANK('Input & Summary'!B2),"",'Input & Summary'!B2) -> 0.6 | C2: =IF(ISBLANK('Input & Summary'!B2),"",'Quadratic Regression'!D4) -> 2.45257055 | D2: -9.198354482 | E2: 2.484652158 | F2: -2.308058913 | H2: 2.45257055 | I2: -9.198354482 | J2: 2.484652158 | K2: -2.308058913
A3: ='Input & Summary'!A3 -> 2 | B3: =IF(ISBLANK('Input & Summary'!B3),"",'Input & Summary'!B3) -> 0.7 | C3: =IF(ISBLANK('Input & Summary'!B3),"",'Quadratic Regression'!D5) -> 1.14141074 | D3: 7.100582902 | E3: 1.14279918 | F3: 6.292715335 | H3: 1.14141074 | I3: 7.100582902 | J3: 1.14279918 | K3: 6.292715335
A4: ='Input & Summary'!A4 -> 3 | B4: =IF(ISBLANK('Input & Summary'!B4),"",'Input & Summary'!B4) -> 0.8 | C4: =IF(ISBLANK('Input & Summary'!B4),"",'Quadratic Regression'!D6) -> -4.987868639 | D4: 7.399520286 | E4: -5.005162284 | F4: -2.469180988 | H4: -4.987868639 | I4: 7.399520286 | J4: -5.005162284 | K4: -2.469180988
A5: ='Input & Summary'!A5 -> 4 | B5: =IF(ISBLANK('Input & Summary'!B5),"",'Input & Summary'!B5) -> 0.9 | C5: =IF(ISBLANK('Input & Summary'!B5),"",'Quadratic Regression'!D7) -> -6.935267587 | D5: 0.69845767 | E5: -6.959232234 | F5: -7.772248215 | H5: -6.935267587 | I5: 0.69845767 | J5: -6.959232234 | K5: -7.772248215
A6: ='Input & Summary'!A6 -> 5 | B6: =IF(ISBLANK('Input & Summary'!B6),"",'Input & Summary'!B6) -> 1 | C6: =IF(ISBLANK('Input & Summary'!B6),"",'Quadratic Regression'!D8) -> 2.299213897 | D6: -6.002604946 | E6: 2.280589329 | F6: 1.205991005 | H6: 2.299213897 | I6: -6.002604946 | J6: 2.280589329 | K6: 1.205991005
A7: ='Input & Summary'!A7 -> 6 | B7: =IF(ISBLANK('Input & Summary'!B7),"",'Input & Summary'!B7) -> 1.1 | C7: =IF(ISBLANK('Input & Summary'!B7),"",'Quadratic Regression'!D9) -> 15.71557581 | D7: 4.000617645 | E7: 15.71430241 | F7: 15.70300108 | H7: 15.71557581 | I7: 4.000617645 | J7: 15.71430241 | K7: 15.70300108
A8: ='Input & Summary'!A8 -> 7 | B8: =IF(ISBLANK('Input & Summary'!B8),"",'Input & Summary'!B8) -> 1.2 | C8: =IF(ISBLANK('Input & Summary'!B8),"",'Quadratic Regression'!D10) -> -9.686181841 | D8: -3.999382355 | E8: -9.658093003 | F8: -10.65056365 | H8: -9.686181841 | I8: -3.999382355 | J8: -9.658093003 | K8: -10.65056365
A9: ='Input & Summary'!A9 -> 8 | B9: =IF(ISBLANK('Input & Summary'!B9),"",'Input & Summary'!B9) ->  | C9: =IF(ISBLANK('Input & Summary'!B9),"",'Linear Regression'!D11) ->  | D9: =IF(ISBLANK('Input & Summary'!B9),"",'Quadratic Regression'!D11) ->  | E9: =IF(ISBLANK('Input & Summary'!B9),"",'Broken Line'!D11) ->  | F9: =IF(ISBLANK('Input & Summary'!B9),"",'Broken Quadratic'!D11) ->  | G9: =IF(ISBLANK('Input & Summary'!B9),"",'Saturation Kinetics'!D11) ->  | H9: =IF(ISBLANK('Input & Summary'!B9),"",'Logistics, 3 Parameters'!D11) ->  | I9: =IF(ISBLANK('Input & Summary'!B9),"",'Logistics, 4 Parameters'!D11) ->  | J9: =IF(ISBLANK('Input & Summary'!B9),"",'RNB, Model 1'!D11) ->  | K9: =IF(ISBLANK('Input & Summary'!B9),"",'RNB, Model 2'!D11) -> 
A10: ='Input & Summary'!A10 -> 9 | B10: =IF(ISBLANK('Input & Summary'!B10),"",'Input & Summary'!B10) ->  | C10: =IF(ISBLANK('Input & Summary'!B10),"",'Linear Regression'!D12) ->  | D10: =IF(ISBLANK('Input & Summary'!B10),"",'Quadratic Regression'!D12) ->  | E10: =IF(ISBLANK('Input & Summary'!B10),"",'Broken Line'!D12) ->  | F10: =IF(ISBLANK('Input & Summary'!B10),"",'Broken Quadratic'!D12) ->  | G10: =IF(ISBLANK('Input & Summary'!B10),"",'Saturation Kinetics'!D12) ->  | H10: =IF(ISBLANK('Input & Summary'!B10),"",'Logistics, 3 Parameters'!D12) ->  | I10: =IF(ISBLANK('Input & Summary'!B10),"",'Logistics, 4 Parameters'!D12) ->  | J10: =IF(ISBLANK('Input & Summary'!B10),"",'RNB, Model 1'!D12) ->  | K10: =IF(ISBLANK('Input & Summary'!B10),"",'RNB, Model 2'!D12) -> 
A11: ='Input & Summary'!A11 -> 10 | B11: =IF(ISBLANK('Input & Summary'!B11),"",'Input & Summary'!B11) ->  | C11: =IF(ISBLANK('Input & Summary'!B11),"",'Linear Regression'!D13) ->  | D11: =IF(ISBLANK('Input & Summary'!B11),"",'Quadratic Regression'!D13) ->  | E11: =IF(ISBLANK('Input & Summary'!B11),"",'Broken Line'!D13) ->  | F11: =IF(ISBLANK('Input & Summary'!B11),"",'Broken Quadratic'!D13) ->  | G11: =IF(ISBLANK('Input & Summary'!B11),"",'Saturation Kinetics'!D13) ->  | H11: =IF(ISBLANK('Input & Summary'!B11),"",'Logistics, 3 Parameters'!D13) ->  | I11: =IF(ISBLANK('Input & Summary'!B11),"",'Logistics, 4 Parameters'!D13) ->  | J11: =IF(ISBLANK('Input & Summary'!B11),"",'RNB, Model 1'!D13) ->  | K11: =IF(ISBLANK('Input & Summary'!B11),"",'RNB, Model 2'!D13) -> 
A12: ='Input & Summary'!A12 -> 11 | B12: =IF(ISBLANK('Input & Summary'!B12),"",'Input & Summary'!B12) ->  | C12: =IF(ISBLANK('Input & Summary'!B12),"",'Linear Regression'!D14) ->  | D12: =IF(ISBLANK('Input & Summary'!B12),"",'Quadratic Regression'!D14) ->  | E12: =IF(ISBLANK('Input & Summary'!B12),"",'Broken Line'!D14) ->  | F12: =IF(ISBLANK('Input & Summary'!B12),"",'Broken Quadratic'!D14) ->  | G12: =IF(ISBLANK('Input & Summary'!B12),"",'Saturation Kinetics'!D14) ->  | H12: =IF(ISBLANK('Input & Summary'!B12),"",'Logistics, 3 Parameters'!D14) ->  | I12: =IF(ISBLANK('Input & Summary'!B12),"",'Logistics, 4 Parameters'!D14) ->  | J12: =IF(ISBLANK('Input & Summary'!B12),"",'RNB, Model 1'!D14) ->  | K12: =IF(ISBLANK('Input & Summary'!B12),"",'RNB, Model 2'!D14) -> 
A13: ='Input & Summary'!A13 -> 12 | B13: =IF(ISBLANK('Input & Summary'!B13),"",'Input & Summary'!B13) ->  | C13: =IF(ISBLANK('Input & Summary'!B13),"",'Linear Regression'!D15) ->  | D13: =IF(ISBLANK('Input & Summary'!B13),"",'Quadratic Regression'!D15) ->  | E13: =IF(ISBLANK('Input & Summary'!B13),"",'Broken Line'!D15) ->  | F13: =IF(ISBLANK('Input & Summary'!B13),"",'Broken Quadratic'!D15) ->  | G13: =IF(ISBLANK('Input & Summary'!B13),"",'Saturation Kinetics'!D15) ->  | H13: =IF(ISBLANK('Input & Summary'!B13),"",'Logistics, 3 Parameters'!D15) ->  | I13: =IF(ISBLANK('Input & Summary'!B13),"",'Logistics, 4 Parameters'!D15) ->  | J13: =IF(ISBLANK('Input & Summary'!B13),"",'RNB, Model 1'!D15) ->  | K13: =IF(ISBLANK('Input & Summary'!B13),"",'RNB, Model 2'!D15) -> 
A14: ='Input & Summary'!A14 -> 13 | B14: =IF(ISBLANK('Input & Summary'!B14),"",'Input & Summary'!B14) ->  | C14: =IF(ISBLANK('Input & Summary'!B14),"",'Linear Regression'!D16) ->  | D14: =IF(ISBLANK('Input & Summary'!B14),"",'Quadratic Regression'!D16) ->  | E14: =IF(ISBLANK('Input & Summary'!B14),"",'Broken Line'!D16) ->  | F14: =IF(ISBLANK('Input & Summary'!B14),"",'Broken Quadratic'!D16) ->  | G14: =IF(ISBLANK('Input & Summary'!B14),"",'Saturation Kinetics'!D16) ->  | H14: =IF(ISBLANK('Input & Summary'!B14),"",'Logistics, 3 Parameters'!D16) ->  | I14: =IF(ISBLANK('Input & Summary'!B14),"",'Logistics, 4 Parameters'!D16) ->  | J14: =IF(ISBLANK('Input & Summary'!B14),"",'RNB, Model 1'!D16) ->  | K14: =IF(ISBLANK('Input & Summary'!B14),"",'RNB, Model 2'!D16) -> 
A15: ='Input & Summary'!A15 -> 14 | B15: =IF(ISBLANK('Input & Summary'!B15),"",'Input & Summary'!B15) ->  | C15: =IF(ISBLANK('Input & Summary'!B15),"",'Linear Regression'!D17) ->  | D15: =IF(ISBLANK('Input & Summary'!B15),"",'Quadratic Regression'!D17) ->  | E15: =IF(ISBLANK('Input & Summary'!B15),"",'Broken Line'!D17) ->  | F15: =IF(ISBLANK('Input & Summary'!B15),"",'Broken Quadratic'!D17) ->  | G15: =IF(ISBLANK('Input & Summary'!B15),"",'Saturation Kinetics'!D17) ->  | H15: =IF(ISBLANK('Input & Summary'!B15),"",'Logistics, 3 Parameters'!D17) ->  | I15: =IF(ISBLANK('Input & Summary'!B15),"",'Logistics, 4 Parameters'!D17) ->  | J15: =IF(ISBLANK('Input & Summary'!B15),"",'RNB, Model 1'!D17) ->  | K15: =IF(ISBLANK('Input & Summary'!B15),"",'RNB, Model 2'!D17) -> 
A16: ='Input & Summary'!A16 -> 15 | B16: =IF(ISBLANK('Input & Summary'!B16),"",'Input & Summary'!B16) ->  | C16: =IF(ISBLANK('Input & Summary'!B16),"",'Linear Regression'!D18) ->  | D16: =IF(ISBLANK('Input & Summary'!B16),"",'Quadratic Regression'!D18) ->  | E16: =IF(ISBLANK('Input & Summary'!B16),"",'Broken Line'!D18) ->  | F16: =IF(ISBLANK('Input & Summary'!B16),"",'Broken Quadratic'!D18) ->  | G16: =IF(ISBLANK('Input & Summary'!B16),"",'Saturation Kinetics'!D18) ->  | H16: =IF(ISBLANK('Input & Summary'!B16),"",'Logistics, 3 Parameters'!D18) ->  | I16: =IF(ISBLANK('Input & Summary'!B16),"",'Logistics, 4 Parameters'!D18) ->  | J16: =IF(ISBLANK('Input & Summary'!B16),"",'RNB, Model 1'!D18) ->  | K16: =IF(ISBLANK('Input & Summary'!B16),"",'RNB, Model 2'!D18) -> 
A17: ='Input & Summary'!A17 -> 16 | B17: =IF(ISBLANK('Input & Summary'!B17),"",'Input & Summary'!B17) ->  | C17: =IF(ISBLANK('Input & Summary'!B17),"",'Linear Regression'!D19) ->  | D17: =IF(ISBLANK('Input & Summary'!B17),"",'Quadratic Regression'!D19) ->  | E17: =IF(ISBLANK('Input & Summary'!B17),"",'Broken Line'!D19) ->  | F17: =IF(ISBLANK('Input & Summary'!B17),"",'Broken Quadratic'!D19) ->  | G17: =IF(ISBLANK('Input & Summary'!B17),"",'Saturation Kinetics'!D19) ->  | H17: =IF(ISBLANK('Input & Summary'!B17),"",'Logistics, 3 Parameters'!D19) ->  | I17: =IF(ISBLANK('Input & Summary'!B17),"",'Logistics, 4 Parameters'!D19) ->  | J17: =IF(ISBLANK('Input & Summary'!B17),"",'RNB, Model 1'!D19) ->  | K17: =IF(ISBLANK('Input & Summary'!B17),"",'RNB, Model 2'!D19) -> 
A18: ='Input & Summary'!A18 -> 17 | B18: =IF(ISBLANK('Input & Summary'!B18),"",'Input & Summary'!B18) ->  | C18: =IF(ISBLANK('Input & Summary'!B18),"",'Linear Regression'!D20) ->  | D18: =IF(ISBLANK('Input & Summary'!B18),"",'Quadratic Regression'!D20) ->  | E18: =IF(ISBLANK('Input & Summary'!B18),"",'Broken Line'!D20) ->  | F18: =IF(ISBLANK('Input & Summary'!B18),"",'Broken Quadratic'!D20) ->  | G18: =IF(ISBLANK('Input & Summary'!B18),"",'Saturation Kinetics'!D20) ->  | H18: =IF(ISBLANK('Input & Summary'!B18),"",'Logistics, 3 Parameters'!D20) ->  | I18: =IF(ISBLANK('Input & Summary'!B18),"",'Logistics, 4 Parameters'!D20) ->  | J18: =IF(ISBLANK('Input & Summary'!B18),"",'RNB, Model 1'!D20) ->  | K18: =IF(ISBLANK('Input & Summary'!B18),"",'RNB, Model 2'!D20) -> 
A19: ='Input & Summary'!A19 -> 18 | B19: =IF(ISBLANK('Input & Summary'!B19),"",'Input & Summary'!B19) ->  | C19: =IF(ISBLANK('Input & Summary'!B19),"",'Linear Regression'!D21) ->  | D19: =IF(ISBLANK('Input & Summary'!B19),"",'Quadratic Regression'!D21) ->  | E19: =IF(ISBLANK('Input & Summary'!B19),"",'Broken Line'!D21) ->  | F19: =IF(ISBLANK('Input & Summary'!B19),"",'Broken Quadratic'!D21) ->  | G19: =IF(ISBLANK('Input & Summary'!B19),"",'Saturation Kinetics'!D21) ->  | H19: =IF(ISBLANK('Input & Summary'!B19),"",'Logistics, 3 Parameters'!D21) ->  | I19: =IF(ISBLANK('Input & Summary'!B19),"",'Logistics, 4 Parameters'!D21) ->  | J19: =IF(ISBLANK('Input & Summary'!B19),"",'RNB, Model 1'!D21) ->  | K19: =IF(ISBLANK('Input & Summary'!B19),"",'RNB, Model 2'!D21) -> 
A20: ='Input & Summary'!A20 -> 19 | B20: =IF(ISBLANK('Input & Summary'!B20),"",'Input & Summary'!B20) ->  | C20: =IF(ISBLANK('Input & Summary'!B20),"",'Linear Regression'!D22) ->  | D20: =IF(ISBLANK('Input & Summary'!B20),"",'Quadratic Regression'!D22) ->  | E20: =IF(ISBLANK('Input & Summary'!B20),"",'Broken Line'!D22) ->  | F20: =IF(ISBLANK('Input & Summary'!B20),"",'Broken Quadratic'!D22) ->  | G20: =IF(ISBLANK('Input & Summary'!B20),"",'Saturation Kinetics'!D22) ->  | H20: =IF(ISBLANK('Input & Summary'!B20),"",'Logistics, 3 Parameters'!D22) ->  | I20: =IF(ISBLANK('Input & Summary'!B20),"",'Logistics, 4 Parameters'!D22) ->  | J20: =IF(ISBLANK('Input & Summary'!B20),"",'RNB, Model 1'!D22) ->  | K20: =IF(ISBLANK('Input & Summary'!B20),"",'RNB, Model 2'!D22) -> 
A21: ='Input & Summary'!A21 -> 20 | B21: =IF(ISBLANK('Input & Summary'!B21),"",'Input & Summary'!B21) ->  | C21: =IF(ISBLANK('Input & Summary'!B21),"",'Linear Regression'!D23) ->  | D21: =IF(ISBLANK('Input & Summary'!B21),"",'Quadratic Regression'!D23) ->  | E21: =IF(ISBLANK('Input & Summary'!B21),"",'Broken Line'!D23) ->  | F21: =IF(ISBLANK('Input & Summary'!B21),"",'Broken Quadratic'!D23) ->  | G21: =IF(ISBLANK('Input & Summary'!B21),"",'Saturation Kinetics'!D23) ->  | H21: =IF(ISBLANK('Input & Summary'!B21),"",'Logistics, 3 Parameters'!D23) ->  | I21: =IF(ISBLANK('Input & Summary'!B21),"",'Logistics, 4 Parameters'!D23) ->  | J21: =IF(ISBLANK('Input & Summary'!B21),"",'RNB, Model 1'!D23) ->  | K21: =IF(ISBLANK('Input & Summary'!B21),"",'RNB, Model 2'!D23) -> 
A22: ='Input & Summary'!A22 -> 21 | B22: =IF(ISBLANK('Input & Summary'!B22),"",'Input & Summary'!B22) ->  | C22: =IF(ISBLANK('Input & Summary'!B22),"",'Linear Regression'!D24) ->  | D22: =IF(ISBLANK('Input & Summary'!B22),"",'Quadratic Regression'!D24) ->  | E22: =IF(ISBLANK('Input & Summary'!B22),"",'Broken Line'!D24) ->  | F22: =IF(ISBLANK('Input & Summary'!B22),"",'Broken Quadratic'!D24) ->  | G22: =IF(ISBLANK('Input & Summary'!B22),"",'Saturation Kinetics'!D24) ->  | H22: =IF(ISBLANK('Input & Summary'!B22),"",'Logistics, 3 Parameters'!D24) ->  | I22: =IF(ISBLANK('Input & Summary'!B22),"",'Logistics, 4 Parameters'!D24) ->  | J22: =IF(ISBLANK('Input & Summary'!B22),"",'RNB, Model 1'!D24) ->  | K22: =IF(ISBLANK('Input & Summary'!B22),"",'RNB, Model 2'!D24) -> 
A23: ='Input & Summary'!A23 -> 22 | B23: =IF(ISBLANK('Input & Summary'!B23),"",'Input & Summary'!B23) ->  | C23: =IF(ISBLANK('Input & Summary'!B23),"",'Linear Regression'!D25) ->  | D23: =IF(ISBLANK('Input & Summary'!B23),"",'Quadratic Regression'!D25) ->  | E23: =IF(ISBLANK('Input & Summary'!B23),"",'Broken Line'!D25) ->  | F23: =IF(ISBLANK('Input & Summary'!B23),"",'Broken Quadratic'!D25) ->  | G23: =IF(ISBLANK('Input & Summary'!B23),"",'Saturation Kinetics'!D25) ->  | H23: =IF(ISBLANK('Input & Summary'!B23),"",'Logistics, 3 Parameters'!D25) ->  | I23: =IF(ISBLANK('Input & Summary'!B23),"",'Logistics, 4 Parameters'!D25) ->  | J23: =IF(ISBLANK('Input & Summary'!B23),"",'RNB, Model 1'!D25) ->  | K23: =IF(ISBLANK('Input & Summary'!B23),"",'RNB, Model 2'!D25) -> 
A24: ='Input & Summary'!A24 -> 23 | B24: =IF(ISBLANK('Input & Summary'!B24),"",'Input & Summary'!B24) ->  | C24: =IF(ISBLANK('Input & Summary'!B24),"",'Linear Regression'!D26) ->  | D24: =IF(ISBLANK('Input & Summary'!B24),"",'Quadratic Regression'!D26) ->  | E24: =IF(ISBLANK('Input & Summary'!B24),"",'Broken Line'!D26) ->  | F24: =IF(ISBLANK('Input & Summary'!B24),"",'Broken Quadratic'!D26) ->  | G24: =IF(ISBLANK('Input & Summary'!B24),"",'Saturation Kinetics'!D26) ->  | H24: =IF(ISBLANK('Input & Summary'!B24),"",'Logistics, 3 Parameters'!D26) ->  | I24: =IF(ISBLANK('Input & Summary'!B24),"",'Logistics, 4 Parameters'!D26) ->  | J24: =IF(ISBLANK('Input & Summary'!B24),"",'RNB, Model 1'!D26) ->  | K24: =IF(ISBLANK('Input & Summary'!B24),"",'RNB, Model 2'!D26) -> 
A25: ='Input & Summary'!A25 -> 24 | B25: =IF(ISBLANK('Input & Summary'!B25),"",'Input & Summary'!B25) ->  | C25: =IF(ISBLANK('Input & Summary'!B25),"",'Linear Regression'!D27) ->  | D25: =IF(ISBLANK('Input & Summary'!B25),"",'Quadratic Regression'!D27) ->  | E25: =IF(ISBLANK('Input & Summary'!B25),"",'Broken Line'!D27) ->  | F25: =IF(ISBLANK('Input & Summary'!B25),"",'Broken Quadratic'!D27) ->  | G25: =IF(ISBLANK('Input & Summary'!B25),"",'Saturation Kinetics'!D27) ->  | H25: =IF(ISBLANK('Input & Summary'!B25),"",'Logistics, 3 Parameters'!D27) ->  | I25: =IF(ISBLANK('Input & Summary'!B25),"",'Logistics, 4 Parameters'!D27) ->  | J25: =IF(ISBLANK('Input & Summary'!B25),"",'RNB, Model 1'!D27) ->  | K25: =IF(ISBLANK('Input & Summary'!B25),"",'RNB, Model 2'!D27) -> 
A26: ='Input & Summary'!A26 -> 25 | B26: =IF(ISBLANK('Input & Summary'!B26),"",'Input & Summary'!B26) ->  | C26: =IF(ISBLANK('Input & Summary'!B26),"",'Linear Regression'!D28) ->  | D26: =IF(ISBLANK('Input & Summary'!B26),"",'Quadratic Regression'!D28) ->  | E26: =IF(ISBLANK('Input & Summary'!B26),"",'Broken Line'!D28) ->  | F26: =IF(ISBLANK('Input & Summary'!B26),"",'Broken Quadratic'!D28) ->  | G26: =IF(ISBLANK('Input & Summary'!B26),"",'Saturation Kinetics'!D28) ->  | H26: =IF(ISBLANK('Input & Summary'!B26),"",'Logistics, 3 Parameters'!D28) ->  | I26: =IF(ISBLANK('Input & Summary'!B26),"",'Logistics, 4 Parameters'!D28) ->  | J26: =IF(ISBLANK('Input & Summary'!B26),"",'RNB, Model 1'!D28) ->  | K26: =IF(ISBLANK('Input & Summary'!B26),"",'RNB, Model 2'!D28) -> 
A27: ='Input & Summary'!A27 -> 26 | B27: =IF(ISBLANK('Input & Summary'!B27),"",'Input & Summary'!B27) ->  | C27: =IF(ISBLANK('Input & Summary'!B27),"",'Linear Regression'!D29) ->  | D27: =IF(ISBLANK('Input & Summary'!B27),"",'Quadratic Regression'!D29) ->  | E27: =IF(ISBLANK('Input & Summary'!B27),"",'Broken Line'!D29) ->  | F27: =IF(ISBLANK('Input & Summary'!B27),"",'Broken Quadratic'!D29) ->  | G27: =IF(ISBLANK('Input & Summary'!B27),"",'Saturation Kinetics'!D29) ->  | H27: =IF(ISBLANK('Input & Summary'!B27),"",'Logistics, 3 Parameters'!D29) ->  | I27: =IF(ISBLANK('Input & Summary'!B27),"",'Logistics, 4 Parameters'!D29) ->  | J27: =IF(ISBLANK('Input & Summary'!B27),"",'RNB, Model 1'!D29) ->  | K27: =IF(ISBLANK('Input & Summary'!B27),"",'RNB, Model 2'!D29) -> 
A28: ='Input & Summary'!A28 -> 27 | B28: =IF(ISBLANK('Input & Summary'!B28),"",'Input & Summary'!B28) ->  | C28: =IF(ISBLANK('Input & Summary'!B28),"",'Linear Regression'!D30) ->  | D28: =IF(ISBLANK('Input & Summary'!B28),"",'Quadratic Regression'!D30) ->  | E28: =IF(ISBLANK('Input & Summary'!B28),"",'Broken Line'!D30) ->  | F28: =IF(ISBLANK('Input & Summary'!B28),"",'Broken Quadratic'!D30) ->  | G28: =IF(ISBLANK('Input & Summary'!B28),"",'Saturation Kinetics'!D30) ->  | H28: =IF(ISBLANK('Input & Summary'!B28),"",'Logistics, 3 Parameters'!D30) ->  | I28: =IF(ISBLANK('Input & Summary'!B28),"",'Logistics, 4 Parameters'!D30) ->  | J28: =IF(ISBLANK('Input & Summary'!B28),"",'RNB, Model 1'!D30) ->  | K28: =IF(ISBLANK('Input & Summary'!B28),"",'RNB, Model 2'!D30) -> 
A29: ='Input & Summary'!A29 -> 28 | B29: =IF(ISBLANK('Input & Summary'!B29),"",'Input & Summary'!B29) ->  | C29: =IF(ISBLANK('Input & Summary'!B29),"",'Linear Regression'!D31) ->  | D29: =IF(ISBLANK('Input & Summary'!B29),"",'Quadratic Regression'!D31) ->  | E29: =IF(ISBLANK('Input & Summary'!B29),"",'Broken Line'!D31) ->  | F29: =IF(ISBLANK('Input & Summary'!B29),"",'Broken Quadratic'!D31) ->  | G29: =IF(ISBLANK('Input & Summary'!B29),"",'Saturation Kinetics'!D31) ->  | H29: =IF(ISBLANK('Input & Summary'!B29),"",'Logistics, 3 Parameters'!D31) ->  | I29: =IF(ISBLANK('Input & Summary'!B29),"",'Logistics, 4 Parameters'!D31) ->  | J29: =IF(ISBLANK('Input & Summary'!B29),"",'RNB, Model 1'!D31) ->  | K29: =IF(ISBLANK('Input & Summary'!B29),"",'RNB, Model 2'!D31) -> 
A30: ='Input & Summary'!A30 -> 29 | B30: =IF(ISBLANK('Input & Summary'!B30),"",'Input & Summary'!B30) ->  | C30: =IF(ISBLANK('Input & Summary'!B30),"",'Linear Regression'!D32) ->  | D30: =IF(ISBLANK('Input & Summary'!B30),"",'Quadratic Regression'!D32) ->  | E30: =IF(ISBLANK('Input & Summary'!B30),"",'Broken Line'!D32) ->  | F30: =IF(ISBLANK('Input & Summary'!B30),"",'Broken Quadratic'!D32) ->  | G30: =IF(ISBLANK('Input & Summary'!B30),"",'Saturation Kinetics'!D32) ->  | H30: =IF(ISBLANK('Input & Summary'!B30),"",'Logistics, 3 Parameters'!D32) ->  | I30: =IF(ISBLANK('Input & Summary'!B30),"",'Logistics, 4 Parameters'!D32) ->  | J30: =IF(ISBLANK('Input & Summary'!B30),"",'RNB, Model 1'!D32) ->  | K30: =IF(ISBLANK('Input & Summary'!B30),"",'RNB, Model 2'!D32) -> 
A31: ='Input & Summary'!A31 -> 30 | B31: =IF(ISBLANK('Input & Summary'!B31),"",'Input & Summary'!B31) ->  | C31: =IF(ISBLANK('Input & Summary'!B31),"",'Linear Regression'!D33) ->  | D31: =IF(ISBLANK('Input & Summary'!B31),"",'Quadratic Regression'!D33) ->  | E31: =IF(ISBLANK('Input & Summary'!B31),"",'Broken Line'!D33) ->  | F31: =IF(ISBLANK('Input & Summary'!B31),"",'Broken Quadratic'!D33) ->  | G31: =IF(ISBLANK('Input & Summary'!B31),"",'Saturation Kinetics'!D33) ->  | H31: =IF(ISBLANK('Input & Summary'!B31),"",'Logistics, 3 Parameters'!D33) ->  | I31: =IF(ISBLANK('Input & Summary'!B31),"",'Logistics, 4 Parameters'!D33) ->  | J31: =IF(ISBLANK('Input & Summary'!B31),"",'RNB, Model 1'!D33) ->  | K31: =IF(ISBLANK('Input & Summary'!B31),"",'RNB, Model 2'!D33) -> 
A32: ='Input & Summary'!A32 -> 31 | B32: =IF(ISBLANK('Input & Summary'!B32),"",'Input & Summary'!B32) ->  | C32: =IF(ISBLANK('Input & Summary'!B32),"",'Linear Regression'!D34) ->  | D32: =IF(ISBLANK('Input & Summary'!B32),"",'Quadratic Regression'!D34) ->  | E32: =IF(ISBLANK('Input & Summary'!B32),"",'Broken Line'!D34) ->  | F32: =IF(ISBLANK('Input & Summary'!B32),"",'Broken Quadratic'!D34) ->  | G32: =IF(ISBLANK('Input & Summary'!B32),"",'Saturation Kinetics'!D34) ->  | H32: =IF(ISBLANK('Input & Summary'!B32),"",'Logistics, 3 Parameters'!D34) ->  | I32: =IF(ISBLANK('Input & Summary'!B32),"",'Logistics, 4 Parameters'!D34) ->  | J32: =IF(ISBLANK('Input & Summary'!B32),"",'RNB, Model 1'!D34) ->  | K32: =IF(ISBLANK('Input & Summary'!B32),"",'RNB, Model 2'!D34) -> 
A33: ='Input & Summary'!A33 -> 32 | B33: =IF(ISBLANK('Input & Summary'!B33),"",'Input & Summary'!B33) ->  | C33: =IF(ISBLANK('Input & Summary'!B33),"",'Linear Regression'!D35) ->  | D33: =IF(ISBLANK('Input & Summary'!B33),"",'Quadratic Regression'!D35) ->  | E33: =IF(ISBLANK('Input & Summary'!B33),"",'Broken Line'!D35) ->  | F33: =IF(ISBLANK('Input & Summary'!B33),"",'Broken Quadratic'!D35) ->  | G33: =IF(ISBLANK('Input & Summary'!B33),"",'Saturation Kinetics'!D35) ->  | H33: =IF(ISBLANK('Input & Summary'!B33),"",'Logistics, 3 Parameters'!D35) ->  | I33: =IF(ISBLANK('Input & Summary'!B33),"",'Logistics, 4 Parameters'!D35) ->  | J33: =IF(ISBLANK('Input & Summary'!B33),"",'RNB, Model 1'!D35) ->  | K33: =IF(ISBLANK('Input & Summary'!B33),"",'RNB, Model 2'!D35) -> 
A34: ='Input & Summary'!A34 -> 33 | B34: =IF(ISBLANK('Input & Summary'!B34),"",'Input & Summary'!B34) ->  | C34: =IF(ISBLANK('Input & Summary'!B34),"",'Linear Regression'!D36) ->  | D34: =IF(ISBLANK('Input & Summary'!B34),"",'Quadratic Regression'!D36) ->  | E34: =IF(ISBLANK('Input & Summary'!B34),"",'Broken Line'!D36) ->  | F34: =IF(ISBLANK('Input & Summary'!B34),"",'Broken Quadratic'!D36) ->  | G34: =IF(ISBLANK('Input & Summary'!B34),"",'Saturation Kinetics'!D36) ->  | H34: =IF(ISBLANK('Input & Summary'!B34),"",'Logistics, 3 Parameters'!D36) ->  | I34: =IF(ISBLANK('Input & Summary'!B34),"",'Logistics, 4 Parameters'!D36) ->  | J34: =IF(ISBLANK('Input & Summary'!B34),"",'RNB, Model 1'!D36) ->  | K34: =IF(ISBLANK('Input & Summary'!B34),"",'RNB, Model 2'!D36) -> 
A35: ='Input & Summary'!A35 -> 34 | B35: =IF(ISBLANK('Input & Summary'!B35),"",'Input & Summary'!B35) ->  | C35: =IF(ISBLANK('Input & Summary'!B35),"",'Linear Regression'!D37) ->  | D35: =IF(ISBLANK('Input & Summary'!B35),"",'Quadratic Regression'!D37) ->  | E35: =IF(ISBLANK('Input & Summary'!B35),"",'Broken Line'!D37) ->  | F35: =IF(ISBLANK('Input & Summary'!B35),"",'Broken Quadratic'!D37) ->  | G35: =IF(ISBLANK('Input & Summary'!B35),"",'Saturation Kinetics'!D37) ->  | H35: =IF(ISBLANK('Input & Summary'!B35),"",'Logistics, 3 Parameters'!D37) ->  | I35: =IF(ISBLANK('Input & Summary'!B35),"",'Logistics, 4 Parameters'!D37) ->  | J35: =IF(ISBLANK('Input & Summary'!B35),"",'RNB, Model 1'!D37) ->  | K35: =IF(ISBLANK('Input & Summary'!B35),"",'RNB, Model 2'!D37) -> 
A36: ='Input & Summary'!A36 -> 35 | B36: =IF(ISBLANK('Input & Summary'!B36),"",'Input & Summary'!B36) ->  | C36: =IF(ISBLANK('Input & Summary'!B36),"",'Linear Regression'!D38) ->  | D36: =IF(ISBLANK('Input & Summary'!B36),"",'Quadratic Regression'!D38) ->  | E36: =IF(ISBLANK('Input & Summary'!B36),"",'Broken Line'!D38) ->  | F36: =IF(ISBLANK('Input & Summary'!B36),"",'Broken Quadratic'!D38) ->  | G36: =IF(ISBLANK('Input & Summary'!B36),"",'Saturation Kinetics'!D38) ->  | H36: =IF(ISBLANK('Input & Summary'!B36),"",'Logistics, 3 Parameters'!D38) ->  | I36: =IF(ISBLANK('Input & Summary'!B36),"",'Logistics, 4 Parameters'!D38) ->  | J36: =IF(ISBLANK('Input & Summary'!B36),"",'RNB, Model 1'!D38) ->  | K36: =IF(ISBLANK('Input & Summary'!B36),"",'RNB, Model 2'!D38) -> 
A37: ='Input & Summary'!A37 -> 36 | B37: =IF(ISBLANK('Input & Summary'!B37),"",'Input & Summary'!B37) ->  | C37: =IF(ISBLANK('Input & Summary'!B37),"",'Linear Regression'!D39) ->  | D37: =IF(ISBLANK('Input & Summary'!B37),"",'Quadratic Regression'!D39) ->  | E37: =IF(ISBLANK('Input & Summary'!B37),"",'Broken Line'!D39) ->  | F37: =IF(ISBLANK('Input & Summary'!B37),"",'Broken Quadratic'!D39) ->  | G37: =IF(ISBLANK('Input & Summary'!B37),"",'Saturation Kinetics'!D39) ->  | H37: =IF(ISBLANK('Input & Summary'!B37),"",'Logistics, 3 Parameters'!D39) ->  | I37: =IF(ISBLANK('Input & Summary'!B37),"",'Logistics, 4 Parameters'!D39) ->  | J37: =IF(ISBLANK('Input & Summary'!B37),"",'RNB, Model 1'!D39) ->  | K37: =IF(ISBLANK('Input & Summary'!B37),"",'RNB, Model 2'!D39) -> 
A38: ='Input & Summary'!A38 -> 37 | B38: =IF(ISBLANK('Input & Summary'!B38),"",'Input & Summary'!B38) ->  | C38: =IF(ISBLANK('Input & Summary'!B38),"",'Linear Regression'!D40) ->  | D38: =IF(ISBLANK('Input & Summary'!B38),"",'Quadratic Regression'!D40) ->  | E38: =IF(ISBLANK('Input & Summary'!B38),"",'Broken Line'!D40) ->  | F38: =IF(ISBLANK('Input & Summary'!B38),"",'Broken Quadratic'!D40) ->  | G38: =IF(ISBLANK('Input & Summary'!B38),"",'Saturation Kinetics'!D40) ->  | H38: =IF(ISBLANK('Input & Summary'!B38),"",'Logistics, 3 Parameters'!D40) ->  | I38: =IF(ISBLANK('Input & Summary'!B38),"",'Logistics, 4 Parameters'!D40) ->  | J38: =IF(ISBLANK('Input & Summary'!B38),"",'RNB, Model 1'!D40) ->  | K38: =IF(ISBLANK('Input & Summary'!B38),"",'RNB, Model 2'!D40) -> 
A39: ='Input & Summary'!A39 -> 38 | B39: =IF(ISBLANK('Input & Summary'!B39),"",'Input & Summary'!B39) ->  | C39: =IF(ISBLANK('Input & Summary'!B39),"",'Linear Regression'!D41) ->  | D39: =IF(ISBLANK('Input & Summary'!B39),"",'Quadratic Regression'!D41) ->  | E39: =IF(ISBLANK('Input & Summary'!B39),"",'Broken Line'!D41) ->  | F39: =IF(ISBLANK('Input & Summary'!B39),"",'Broken Quadratic'!D41) ->  | G39: =IF(ISBLANK('Input & Summary'!B39),"",'Saturation Kinetics'!D41) ->  | H39: =IF(ISBLANK('Input & Summary'!B39),"",'Logistics, 3 Parameters'!D41) ->  | I39: =IF(ISBLANK('Input & Summary'!B39),"",'Logistics, 4 Parameters'!D41) ->  | J39: =IF(ISBLANK('Input & Summary'!B39),"",'RNB, Model 1'!D41) ->  | K39: =IF(ISBLANK('Input & Summary'!B39),"",'RNB, Model 2'!D41) -> 
A40: ='Input & Summary'!A40 -> 39 | B40: =IF(ISBLANK('Input & Summary'!B40),"",'Input & Summary'!B40) ->  | C40: =IF(ISBLANK('Input & Summary'!B40),"",'Linear Regression'!D42) ->  | D40: =IF(ISBLANK('Input & Summary'!B40),"",'Quadratic Regression'!D42) ->  | E40: =IF(ISBLANK('Input & Summary'!B40),"",'Broken Line'!D42) ->  | F40: =IF(ISBLANK('Input & Summary'!B40),"",'Broken Quadratic'!D42) ->  | G40: =IF(ISBLANK('Input & Summary'!B40),"",'Saturation Kinetics'!D42) ->  | H40: =IF(ISBLANK('Input & Summary'!B40),"",'Logistics, 3 Parameters'!D42) ->  | I40: =IF(ISBLANK('Input & Summary'!B40),"",'Logistics, 4 Parameters'!D42) ->  | J40: =IF(ISBLANK('Input & Summary'!B40),"",'RNB, Model 1'!D42) ->  | K40: =IF(ISBLANK('Input & Summary'!B40),"",'RNB, Model 2'!D42) -> 
A41: ='Input & Summary'!A41 -> 40 | B41: =IF(ISBLANK('Input & Summary'!B41),"",'Input & Summary'!B41) ->  | C41: =IF(ISBLANK('Input & Summary'!B41),"",'Linear Regression'!D43) ->  | D41: =IF(ISBLANK('Input & Summary'!B41),"",'Quadratic Regression'!D43) ->  | E41: =IF(ISBLANK('Input & Summary'!B41),"",'Broken Line'!D43) ->  | F41: =IF(ISBLANK('Input & Summary'!B41),"",'Broken Quadratic'!D43) ->  | G41: =IF(ISBLANK('Input & Summary'!B41),"",'Saturation Kinetics'!D43) ->  | H41: =IF(ISBLANK('Input & Summary'!B41),"",'Logistics, 3 Parameters'!D43) ->  | I41: =IF(ISBLANK('Input & Summary'!B41),"",'Logistics, 4 Parameters'!D43) ->  | J41: =IF(ISBLANK('Input & Summary'!B41),"",'RNB, Model 1'!D43) ->  | K41: =IF(ISBLANK('Input & Summary'!B41),"",'RNB, Model 2'!D43) -> 
A42: ='Input & Summary'!A42 -> 41 | B42: =IF(ISBLANK('Input & Summary'!B42),"",'Input & Summary'!B42) ->  | C42: =IF(ISBLANK('Input & Summary'!B42),"",'Linear Regression'!D44) ->  | D42: =IF(ISBLANK('Input & Summary'!B42),"",'Quadratic Regression'!D44) ->  | E42: =IF(ISBLANK('Input & Summary'!B42),"",'Broken Line'!D44) ->  | F42: =IF(ISBLANK('Input & Summary'!B42),"",'Broken Quadratic'!D44) ->  | G42: =IF(ISBLANK('Input & Summary'!B42),"",'Saturation Kinetics'!D44) ->  | H42: =IF(ISBLANK('Input & Summary'!B42),"",'Logistics, 3 Parameters'!D44) ->  | I42: =IF(ISBLANK('Input & Summary'!B42),"",'Logistics, 4 Parameters'!D44) ->  | J42: =IF(ISBLANK('Input & Summary'!B42),"",'RNB, Model 1'!D44) ->  | K42: =IF(ISBLANK('Input & Summary'!B42),"",'RNB, Model 2'!D44) -> 
A43: ='Input & Summary'!A43 -> 42 | B43: =IF(ISBLANK('Input & Summary'!B43),"",'Input & Summary'!B43) ->  | C43: =IF(ISBLANK('Input & Summary'!B43),"",'Linear Regression'!D45) ->  | D43: =IF(ISBLANK('Input & Summary'!B43),"",'Quadratic Regression'!D45) ->  | E43: =IF(ISBLANK('Input & Summary'!B43),"",'Broken Line'!D45) ->  | F43: =IF(ISBLANK('Input & Summary'!B43),"",'Broken Quadratic'!D45) ->  | G43: =IF(ISBLANK('Input & Summary'!B43),"",'Saturation Kinetics'!D45) ->  | H43: =IF(ISBLANK('Input & Summary'!B43),"",'Logistics, 3 Parameters'!D45) ->  | I43: =IF(ISBLANK('Input & Summary'!B43),"",'Logistics, 4 Parameters'!D45) ->  | J43: =IF(ISBLANK('Input & Summary'!B43),"",'RNB, Model 1'!D45) ->  | K43: =IF(ISBLANK('Input & Summary'!B43),"",'RNB, Model 2'!D45) -> 
A44: ='Input & Summary'!A44 -> 43 | B44: =IF(ISBLANK('Input & Summary'!B44),"",'Input & Summary'!B44) ->  | C44: =IF(ISBLANK('Input & Summary'!B44),"",'Linear Regression'!D46) ->  | D44: =IF(ISBLANK('Input & Summary'!B44),"",'Quadratic Regression'!D46) ->  | E44: =IF(ISBLANK('Input & Summary'!B44),"",'Broken Line'!D46) ->  | F44: =IF(ISBLANK('Input & Summary'!B44),"",'Broken Quadratic'!D46) ->  | G44: =IF(ISBLANK('Input & Summary'!B44),"",'Saturation Kinetics'!D46) ->  | H44: =IF(ISBLANK('Input & Summary'!B44),"",'Logistics, 3 Parameters'!D46) ->  | I44: =IF(ISBLANK('Input & Summary'!B44),"",'Logistics, 4 Parameters'!D46) ->  | J44: =IF(ISBLANK('Input & Summary'!B44),"",'RNB, Model 1'!D46) ->  | K44: =IF(ISBLANK('Input & Summary'!B44),"",'RNB, Model 2'!D46) -> 
A45: ='Input & Summary'!A45 -> 44 | B45: =IF(ISBLANK('Input & Summary'!B45),"",'Input & Summary'!B45) ->  | C45: =IF(ISBLANK('Input & Summary'!B45),"",'Linear Regression'!D47) ->  | D45: =IF(ISBLANK('Input & Summary'!B45),"",'Quadratic Regression'!D47) ->  | E45: =IF(ISBLANK('Input & Summary'!B45),"",'Broken Line'!D47) ->  | F45: =IF(ISBLANK('Input & Summary'!B45),"",'Broken Quadratic'!D47) ->  | G45: =IF(ISBLANK('Input & Summary'!B45),"",'Saturation Kinetics'!D47) ->  | H45: =IF(ISBLANK('Input & Summary'!B45),"",'Logistics, 3 Parameters'!D47) ->  | I45: =IF(ISBLANK('Input & Summary'!B45),"",'Logistics, 4 Parameters'!D47) ->  | J45: =IF(ISBLANK('Input & Summary'!B45),"",'RNB, Model 1'!D47) ->  | K45: =IF(ISBLANK('Input & Summary'!B45),"",'RNB, Model 2'!D47) -> 
A46: ='Input & Summary'!A46 -> 45 | B46: =IF(ISBLANK('Input & Summary'!B46),"",'Input & Summary'!B46) ->  | C46: =IF(ISBLANK('Input & Summary'!B46),"",'Linear Regression'!D48) ->  | D46: =IF(ISBLANK('Input & Summary'!B46),"",'Quadratic Regression'!D48) ->  | E46: =IF(ISBLANK('Input & Summary'!B46),"",'Broken Line'!D48) ->  | F46: =IF(ISBLANK('Input & Summary'!B46),"",'Broken Quadratic'!D48) ->  | G46: =IF(ISBLANK('Input & Summary'!B46),"",'Saturation Kinetics'!D48) ->  | H46: =IF(ISBLANK('Input & Summary'!B46),"",'Logistics, 3 Parameters'!D48) ->  | I46: =IF(ISBLANK('Input & Summary'!B46),"",'Logistics, 4 Parameters'!D48) ->  | J46: =IF(ISBLANK('Input & Summary'!B46),"",'RNB, Model 1'!D48) ->  | K46: =IF(ISBLANK('Input & Summary'!B46),"",'RNB, Model 2'!D48) -> 
A47: ='Input & Summary'!A47 -> 46 | B47: =IF(ISBLANK('Input & Summary'!B47),"",'Input & Summary'!B47) ->  | C47: =IF(ISBLANK('Input & Summary'!B47),"",'Linear Regression'!D49) ->  | D47: =IF(ISBLANK('Input & Summary'!B47),"",'Quadratic Regression'!D49) ->  | E47: =IF(ISBLANK('Input & Summary'!B47),"",'Broken Line'!D49) ->  | F47: =IF(ISBLANK('Input & Summary'!B47),"",'Broken Quadratic'!D49) ->  | G47: =IF(ISBLANK('Input & Summary'!B47),"",'Saturation Kinetics'!D49) ->  | H47: =IF(ISBLANK('Input & Summary'!B47),"",'Logistics, 3 Parameters'!D49) ->  | I47: =IF(ISBLANK('Input & Summary'!B47),"",'Logistics, 4 Parameters'!D49) ->  | J47: =IF(ISBLANK('Input & Summary'!B47),"",'RNB, Model 1'!D49) ->  | K47: =IF(ISBLANK('Input & Summary'!B47),"",'RNB, Model 2'!D49) -> 
A48: ='Input & Summary'!A48 -> 47 | B48: =IF(ISBLANK('Input & Summary'!B48),"",'Input & Summary'!B48) ->  | C48: =IF(ISBLANK('Input & Summary'!B48),"",'Linear Regression'!D50) ->  | D48: =IF(ISBLANK('Input & Summary'!B48),"",'Quadratic Regression'!D50) ->  | E48: =IF(ISBLANK('Input & Summary'!B48),"",'Broken Line'!D50) ->  | F48: =IF(ISBLANK('Input & Summary'!B48),"",'Broken Quadratic'!D50) ->  | G48: =IF(ISBLANK('Input & Summary'!B48),"",'Saturation Kinetics'!D50) ->  | H48: =IF(ISBLANK('Input & Summary'!B48),"",'Logistics, 3 Parameters'!D50) ->  | I48: =IF(ISBLANK('Input & Summary'!B48),"",'Logistics, 4 Parameters'!D50) ->  | J48: =IF(ISBLANK('Input & Summary'!B48),"",'RNB, Model 1'!D50) ->  | K48: =IF(ISBLANK('Input & Summary'!B48),"",'RNB, Model 2'!D50) -> 
A49: ='Input & Summary'!A49 -> 48 | B49: =IF(ISBLANK('Input & Summary'!B49),"",'Input & Summary'!B49) ->  | C49: =IF(ISBLANK('Input & Summary'!B49),"",'Linear Regression'!D51) ->  | D49: =IF(ISBLANK('Input & Summary'!B49),"",'Quadratic Regression'!D51) ->  | E49: =IF(ISBLANK('Input & Summary'!B49),"",'Broken Line'!D51) ->  | F49: =IF(ISBLANK('Input & Summary'!B49),"",'Broken Quadratic'!D51) ->  | G49: =IF(ISBLANK('Input & Summary'!B49),"",'Saturation Kinetics'!D51) ->  | H49: =IF(ISBLANK('Input & Summary'!B49),"",'Logistics, 3 Parameters'!D51) ->  | I49: =IF(ISBLANK('Input & Summary'!B49),"",'Logistics, 4 Parameters'!D51) ->  | J49: =IF(ISBLANK('Input & Summary'!B49),"",'RNB, Model 1'!D51) ->  | K49: =IF(ISBLANK('Input & Summary'!B49),"",'RNB, Model 2'!D51) -> 
A50: ='Input & Summary'!A50 -> 49 | B50: =IF(ISBLANK('Input & Summary'!B50),"",'Input & Summary'!B50) ->  | C50: =IF(ISBLANK('Input & Summary'!B50),"",'Linear Regression'!D52) ->  | D50: =IF(ISBLANK('Input & Summary'!B50),"",'Quadratic Regression'!D52) ->  | E50: =IF(ISBLANK('Input & Summary'!B50),"",'Broken Line'!D52) ->  | F50: =IF(ISBLANK('Input & Summary'!B50),"",'Broken Quadratic'!D52) ->  | G50: =IF(ISBLANK('Input & Summary'!B50),"",'Saturation Kinetics'!D52) ->  | H50: =IF(ISBLANK('Input & Summary'!B50),"",'Logistics, 3 Parameters'!D52) ->  | I50: =IF(ISBLANK('Input & Summary'!B50),"",'Logistics, 4 Parameters'!D52) ->  | J50: =IF(ISBLANK('Input & Summary'!B50),"",'RNB, Model 1'!D52) ->  | K50: =IF(ISBLANK('Input & Summary'!B50),"",'RNB, Model 2'!D52) -> 
A51: ='Input & Summary'!A51 -> 50 | B51: =IF(ISBLANK('Input & Summary'!B51),"",'Input & Summary'!B51) ->  | C51: =IF(ISBLANK('Input & Summary'!B51),"",'Linear Regression'!D53) ->  | D51: =IF(ISBLANK('Input & Summary'!B51),"",'Quadratic Regression'!D53) ->  | E51: =IF(ISBLANK('Input & Summary'!B51),"",'Broken Line'!D53) ->  | F51: =IF(ISBLANK('Input & Summary'!B51),"",'Broken Quadratic'!D53) ->  | G51: =IF(ISBLANK('Input & Summary'!B51),"",'Saturation Kinetics'!D53) ->  | H51: =IF(ISBLANK('Input & Summary'!B51),"",'Logistics, 3 Parameters'!D53) ->  | I51: =IF(ISBLANK('Input & Summary'!B51),"",'Logistics, 4 Parameters'!D53) ->  | J51: =IF(ISBLANK('Input & Summary'!B51),"",'RNB, Model 1'!D53) ->  | K51: =IF(ISBLANK('Input & Summary'!B51),"",'RNB, Model 2'!D53) -> 
A52: ='Input & Summary'!A52 -> 51 | B52: =IF(ISBLANK('Input & Summary'!B52),"",'Input & Summary'!B52) ->  | C52: =IF(ISBLANK('Input & Summary'!B52),"",'Linear Regression'!D54) ->  | D52: =IF(ISBLANK('Input & Summary'!B52),"",'Quadratic Regression'!D54) ->  | E52: =IF(ISBLANK('Input & Summary'!B52),"",'Broken Line'!D54) ->  | F52: =IF(ISBLANK('Input & Summary'!B52),"",'Broken Quadratic'!D54) ->  | G52: =IF(ISBLANK('Input & Summary'!B52),"",'Saturation Kinetics'!D54) ->  | H52: =IF(ISBLANK('Input & Summary'!B52),"",'Logistics, 3 Parameters'!D54) ->  | I52: =IF(ISBLANK('Input & Summary'!B52),"",'Logistics, 4 Parameters'!D54) ->  | J52: =IF(ISBLANK('Input & Summary'!B52),"",'RNB, Model 1'!D54) ->  | K52: =IF(ISBLANK('Input & Summary'!B52),"",'RNB, Model 2'!D54) -> 
A53: ='Input & Summary'!A53 -> 52 | B53: =IF(ISBLANK('Input & Summary'!B53),"",'Input & Summary'!B53) ->  | C53: =IF(ISBLANK('Input & Summary'!B53),"",'Linear Regression'!D55) ->  | D53: =IF(ISBLANK('Input & Summary'!B53),"",'Quadratic Regression'!D55) ->  | E53: =IF(ISBLANK('Input & Summary'!B53),"",'Broken Line'!D55) ->  | F53: =IF(ISBLANK('Input & Summary'!B53),"",'Broken Quadratic'!D55) ->  | G53: =IF(ISBLANK('Input & Summary'!B53),"",'Saturation Kinetics'!D55) ->  | H53: =IF(ISBLANK('Input & Summary'!B53),"",'Logistics, 3 Parameters'!D55) ->  | I53: =IF(ISBLANK('Input & Summary'!B53),"",'Logistics, 4 Parameters'!D55) ->  | J53: =IF(ISBLANK('Input & Summary'!B53),"",'RNB, Model 1'!D55) ->  | K53: =IF(ISBLANK('Input & Summary'!B53),"",'RNB, Model 2'!D55) -> 
A54: ='Input & Summary'!A54 -> 53 | B54: =IF(ISBLANK('Input & Summary'!B54),"",'Input & Summary'!B54) ->  | C54: =IF(ISBLANK('Input & Summary'!B54),"",'Linear Regression'!D56) ->  | D54: =IF(ISBLANK('Input & Summary'!B54),"",'Quadratic Regression'!D56) ->  | E54: =IF(ISBLANK('Input & Summary'!B54),"",'Broken Line'!D56) ->  | F54: =IF(ISBLANK('Input & Summary'!B54),"",'Broken Quadratic'!D56) ->  | G54: =IF(ISBLANK('Input & Summary'!B54),"",'Saturation Kinetics'!D56) ->  | H54: =IF(ISBLANK('Input & Summary'!B54),"",'Logistics, 3 Parameters'!D56) ->  | I54: =IF(ISBLANK('Input & Summary'!B54),"",'Logistics, 4 Parameters'!D56) ->  | J54: =IF(ISBLANK('Input & Summary'!B54),"",'RNB, Model 1'!D56) ->  | K54: =IF(ISBLANK('Input & Summary'!B54),"",'RNB, Model 2'!D56) -> 
A55: ='Input & Summary'!A55 -> 54 | B55: =IF(ISBLANK('Input & Summary'!B55),"",'Input & Summary'!B55) ->  | C55: =IF(ISBLANK('Input & Summary'!B55),"",'Linear Regression'!D57) ->  | D55: =IF(ISBLANK('Input & Summary'!B55),"",'Quadratic Regression'!D57) ->  | E55: =IF(ISBLANK('Input & Summary'!B55),"",'Broken Line'!D57) ->  | F55: =IF(ISBLANK('Input & Summary'!B55),"",'Broken Quadratic'!D57) ->  | G55: =IF(ISBLANK('Input & Summary'!B55),"",'Saturation Kinetics'!D57) ->  | H55: =IF(ISBLANK('Input & Summary'!B55),"",'Logistics, 3 Parameters'!D57) ->  | I55: =IF(ISBLANK('Input & Summary'!B55),"",'Logistics, 4 Parameters'!D57) ->  | J55: =IF(ISBLANK('Input & Summary'!B55),"",'RNB, Model 1'!D57) ->  | K55: =IF(ISBLANK('Input & Summary'!B55),"",'RNB, Model 2'!D57) -> 
A56: ='Input & Summary'!A56 -> 55 | B56: =IF(ISBLANK('Input & Summary'!B56),"",'Input & Summary'!B56) ->  | C56: =IF(ISBLANK('Input & Summary'!B56),"",'Linear Regression'!D58) ->  | D56: =IF(ISBLANK('Input & Summary'!B56),"",'Quadratic Regression'!D58) ->  | E56: =IF(ISBLANK('Input & Summary'!B56),"",'Broken Line'!D58) ->  | F56: =IF(ISBLANK('Input & Summary'!B56),"",'Broken Quadratic'!D58) ->  | G56: =IF(ISBLANK('Input & Summary'!B56),"",'Saturation Kinetics'!D58) ->  | H56: =IF(ISBLANK('Input & Summary'!B56),"",'Logistics, 3 Parameters'!D58) ->  | I56: =IF(ISBLANK('Input & Summary'!B56),"",'Logistics, 4 Parameters'!D58) ->  | J56: =IF(ISBLANK('Input & Summary'!B56),"",'RNB, Model 1'!D58) ->  | K56: =IF(ISBLANK('Input & Summary'!B56),"",'RNB, Model 2'!D58) -> 
A57: ='Input & Summary'!A57 -> 56 | B57: =IF(ISBLANK('Input & Summary'!B57),"",'Input & Summary'!B57) ->  | C57: =IF(ISBLANK('Input & Summary'!B57),"",'Linear Regression'!D59) ->  | D57: =IF(ISBLANK('Input & Summary'!B57),"",'Quadratic Regression'!D59) ->  | E57: =IF(ISBLANK('Input & Summary'!B57),"",'Broken Line'!D59) ->  | F57: =IF(ISBLANK('Input & Summary'!B57),"",'Broken Quadratic'!D59) ->  | G57: =IF(ISBLANK('Input & Summary'!B57),"",'Saturation Kinetics'!D59) ->  | H57: =IF(ISBLANK('Input & Summary'!B57),"",'Logistics, 3 Parameters'!D59) ->  | I57: =IF(ISBLANK('Input & Summary'!B57),"",'Logistics, 4 Parameters'!D59) ->  | J57: =IF(ISBLANK('Input & Summary'!B57),"",'RNB, Model 1'!D59) ->  | K57: =IF(ISBLANK('Input & Summary'!B57),"",'RNB, Model 2'!D59) -> 
A58: ='Input & Summary'!A58 -> 57 | B58: =IF(ISBLANK('Input & Summary'!B58),"",'Input & Summary'!B58) ->  | C58: =IF(ISBLANK('Input & Summary'!B58),"",'Linear Regression'!D60) ->  | D58: =IF(ISBLANK('Input & Summary'!B58),"",'Quadratic Regression'!D60) ->  | E58: =IF(ISBLANK('Input & Summary'!B58),"",'Broken Line'!D60) ->  | F58: =IF(ISBLANK('Input & Summary'!B58),"",'Broken Quadratic'!D60) ->  | G58: =IF(ISBLANK('Input & Summary'!B58),"",'Saturation Kinetics'!D60) ->  | H58: =IF(ISBLANK('Input & Summary'!B58),"",'Logistics, 3 Parameters'!D60) ->  | I58: =IF(ISBLANK('Input & Summary'!B58),"",'Logistics, 4 Parameters'!D60) ->  | J58: =IF(ISBLANK('Input & Summary'!B58),"",'RNB, Model 1'!D60) ->  | K58: =IF(ISBLANK('Input & Summary'!B58),"",'RNB, Model 2'!D60) -> 
A59: ='Input & Summary'!A59 -> 58 | B59: =IF(ISBLANK('Input & Summary'!B59),"",'Input & Summary'!B59) ->  | C59: =IF(ISBLANK('Input & Summary'!B59),"",'Linear Regression'!D61) ->  | D59: =IF(ISBLANK('Input & Summary'!B59),"",'Quadratic Regression'!D61) ->  | E59: =IF(ISBLANK('Input & Summary'!B59),"",'Broken Line'!D61) ->  | F59: =IF(ISBLANK('Input & Summary'!B59),"",'Broken Quadratic'!D61) ->  | G59: =IF(ISBLANK('Input & Summary'!B59),"",'Saturation Kinetics'!D61) ->  | H59: =IF(ISBLANK('Input & Summary'!B59),"",'Logistics, 3 Parameters'!D61) ->  | I59: =IF(ISBLANK('Input & Summary'!B59),"",'Logistics, 4 Parameters'!D61) ->  | J59: =IF(ISBLANK('Input & Summary'!B59),"",'RNB, Model 1'!D61) ->  | K59: =IF(ISBLANK('Input & Summary'!B59),"",'RNB, Model 2'!D61) -> 
A60: ='Input & Summary'!A60 -> 59 | B60: =IF(ISBLANK('Input & Summary'!B60),"",'Input & Summary'!B60) ->  | C60: =IF(ISBLANK('Input & Summary'!B60),"",'Linear Regression'!D62) ->  | D60: =IF(ISBLANK('Input & Summary'!B60),"",'Quadratic Regression'!D62) ->  | E60: =IF(ISBLANK('Input & Summary'!B60),"",'Broken Line'!D62) ->  | F60: =IF(ISBLANK('Input & Summary'!B60),"",'Broken Quadratic'!D62) ->  | G60: =IF(ISBLANK('Input & Summary'!B60),"",'Saturation Kinetics'!D62) ->  | H60: =IF(ISBLANK('Input & Summary'!B60),"",'Logistics, 3 Parameters'!D62) ->  | I60: =IF(ISBLANK('Input & Summary'!B60),"",'Logistics, 4 Parameters'!D62) ->  | J60: =IF(ISBLANK('Input & Summary'!B60),"",'RNB, Model 1'!D62) ->  | K60: =IF(ISBLANK('Input & Summary'!B60),"",'RNB, Model 2'!D62) -> 
A61: ='Input & Summary'!A61 -> 60 | B61: =IF(ISBLANK('Input & Summary'!B61),"",'Input & Summary'!B61) ->  | C61: =IF(ISBLANK('Input & Summary'!B61),"",'Linear Regression'!D63) ->  | D61: =IF(ISBLANK('Input & Summary'!B61),"",'Quadratic Regression'!D63) ->  | E61: =IF(ISBLANK('Input & Summary'!B61),"",'Broken Line'!D63) ->  | F61: =IF(ISBLANK('Input & Summary'!B61),"",'Broken Quadratic'!D63) ->  | G61: =IF(ISBLANK('Input & Summary'!B61),"",'Saturation Kinetics'!D63) ->  | H61: =IF(ISBLANK('Input & Summary'!B61),"",'Logistics, 3 Parameters'!D63) ->  | I61: =IF(ISBLANK('Input & Summary'!B61),"",'Logistics, 4 Parameters'!D63) ->  | J61: =IF(ISBLANK('Input & Summary'!B61),"",'RNB, Model 1'!D63) ->  | K61: =IF(ISBLANK('Input & Summary'!B61),"",'RNB, Model 2'!D63) -> 
A62: ='Input & Summary'!A62 -> 61 | B62: =IF(ISBLANK('Input & Summary'!B62),"",'Input & Summary'!B62) ->  | C62: =IF(ISBLANK('Input & Summary'!B62),"",'Linear Regression'!D64) ->  | D62: =IF(ISBLANK('Input & Summary'!B62),"",'Quadratic Regression'!D64) ->  | E62: =IF(ISBLANK('Input & Summary'!B62),"",'Broken Line'!D64) ->  | F62: =IF(ISBLANK('Input & Summary'!B62),"",'Broken Quadratic'!D64) ->  | G62: =IF(ISBLANK('Input & Summary'!B62),"",'Saturation Kinetics'!D64) ->  | H62: =IF(ISBLANK('Input & Summary'!B62),"",'Logistics, 3 Parameters'!D64) ->  | I62: =IF(ISBLANK('Input & Summary'!B62),"",'Logistics, 4 Parameters'!D64) ->  | J62: =IF(ISBLANK('Input & Summary'!B62),"",'RNB, Model 1'!D64) ->  | K62: =IF(ISBLANK('Input & Summary'!B62),"",'RNB, Model 2'!D64) -> 
A63: ='Input & Summary'!A63 -> 62 | B63: =IF(ISBLANK('Input & Summary'!B63),"",'Input & Summary'!B63) ->  | C63: =IF(ISBLANK('Input & Summary'!B63),"",'Linear Regression'!D65) ->  | D63: =IF(ISBLANK('Input & Summary'!B63),"",'Quadratic Regression'!D65) ->  | E63: =IF(ISBLANK('Input & Summary'!B63),"",'Broken Line'!D65) ->  | F63: =IF(ISBLANK('Input & Summary'!B63),"",'Broken Quadratic'!D65) ->  | G63: =IF(ISBLANK('Input & Summary'!B63),"",'Saturation Kinetics'!D65) ->  | H63: =IF(ISBLANK('Input & Summary'!B63),"",'Logistics, 3 Parameters'!D65) ->  | I63: =IF(ISBLANK('Input & Summary'!B63),"",'Logistics, 4 Parameters'!D65) ->  | J63: =IF(ISBLANK('Input & Summary'!B63),"",'RNB, Model 1'!D65) ->  | K63: =IF(ISBLANK('Input & Summary'!B63),"",'RNB, Model 2'!D65) -> 
A64: ='Input & Summary'!A64 -> 63 | B64: =IF(ISBLANK('Input & Summary'!B64),"",'Input & Summary'!B64) ->  | C64: =IF(ISBLANK('Input & Summary'!B64),"",'Linear Regression'!D66) ->  | D64: =IF(ISBLANK('Input & Summary'!B64),"",'Quadratic Regression'!D66) ->  | E64: =IF(ISBLANK('Input & Summary'!B64),"",'Broken Line'!D66) ->  | F64: =IF(ISBLANK('Input & Summary'!B64),"",'Broken Quadratic'!D66) ->  | G64: =IF(ISBLANK('Input & Summary'!B64),"",'Saturation Kinetics'!D66) ->  | H64: =IF(ISBLANK('Input & Summary'!B64),"",'Logistics, 3 Parameters'!D66) ->  | I64: =IF(ISBLANK('Input & Summary'!B64),"",'Logistics, 4 Parameters'!D66) ->  | J64: =IF(ISBLANK('Input & Summary'!B64),"",'RNB, Model 1'!D66) ->  | K64: =IF(ISBLANK('Input & Summary'!B64),"",'RNB, Model 2'!D66) -> 
A65: ='Input & Summary'!A65 -> 64 | B65: =IF(ISBLANK('Input & Summary'!B65),"",'Input & Summary'!B65) ->  | C65: =IF(ISBLANK('Input & Summary'!B65),"",'Linear Regression'!D67) ->  | D65: =IF(ISBLANK('Input & Summary'!B65),"",'Quadratic Regression'!D67) ->  | E65: =IF(ISBLANK('Input & Summary'!B65),"",'Broken Line'!D67) ->  | F65: =IF(ISBLANK('Input & Summary'!B65),"",'Broken Quadratic'!D67) ->  | G65: =IF(ISBLANK('Input & Summary'!B65),"",'Saturation Kinetics'!D67) ->  | H65: =IF(ISBLANK('Input & Summary'!B65),"",'Logistics, 3 Parameters'!D67) ->  | I65: =IF(ISBLANK('Input & Summary'!B65),"",'Logistics, 4 Parameters'!D67) ->  | J65: =IF(ISBLANK('Input & Summary'!B65),"",'RNB, Model 1'!D67) ->  | K65: =IF(ISBLANK('Input & Summary'!B65),"",'RNB, Model 2'!D67) -> 
A66: ='Input & Summary'!A66 -> 65 | B66: =IF(ISBLANK('Input & Summary'!B66),"",'Input & Summary'!B66) ->  | C66: =IF(ISBLANK('Input & Summary'!B66),"",'Linear Regression'!D68) ->  | D66: =IF(ISBLANK('Input & Summary'!B66),"",'Quadratic Regression'!D68) ->  | E66: =IF(ISBLANK('Input & Summary'!B66),"",'Broken Line'!D68) ->  | F66: =IF(ISBLANK('Input & Summary'!B66),"",'Broken Quadratic'!D68) ->  | G66: =IF(ISBLANK('Input & Summary'!B66),"",'Saturation Kinetics'!D68) ->  | H66: =IF(ISBLANK('Input & Summary'!B66),"",'Logistics, 3 Parameters'!D68) ->  | I66: =IF(ISBLANK('Input & Summary'!B66),"",'Logistics, 4 Parameters'!D68) ->  | J66: =IF(ISBLANK('Input & Summary'!B66),"",'RNB, Model 1'!D68) ->  | K66: =IF(ISBLANK('Input & Summary'!B66),"",'RNB, Model 2'!D68) -> 
A67: ='Input & Summary'!A67 -> 66 | B67: =IF(ISBLANK('Input & Summary'!B67),"",'Input & Summary'!B67) ->  | C67: =IF(ISBLANK('Input & Summary'!B67),"",'Linear Regression'!D69) ->  | D67: =IF(ISBLANK('Input & Summary'!B67),"",'Quadratic Regression'!D69) ->  | E67: =IF(ISBLANK('Input & Summary'!B67),"",'Broken Line'!D69) ->  | F67: =IF(ISBLANK('Input & Summary'!B67),"",'Broken Quadratic'!D69) ->  | G67: =IF(ISBLANK('Input & Summary'!B67),"",'Saturation Kinetics'!D69) ->  | H67: =IF(ISBLANK('Input & Summary'!B67),"",'Logistics, 3 Parameters'!D69) ->  | I67: =IF(ISBLANK('Input & Summary'!B67),"",'Logistics, 4 Parameters'!D69) ->  | J67: =IF(ISBLANK('Input & Summary'!B67),"",'RNB, Model 1'!D69) ->  | K67: =IF(ISBLANK('Input & Summary'!B67),"",'RNB, Model 2'!D69) -> 
A68: ='Input & Summary'!A68 -> 67 | B68: =IF(ISBLANK('Input & Summary'!B68),"",'Input & Summary'!B68) ->  | C68: =IF(ISBLANK('Input & Summary'!B68),"",'Linear Regression'!D70) ->  | D68: =IF(ISBLANK('Input & Summary'!B68),"",'Quadratic Regression'!D70) ->  | E68: =IF(ISBLANK('Input & Summary'!B68),"",'Broken Line'!D70) ->  | F68: =IF(ISBLANK('Input & Summary'!B68),"",'Broken Quadratic'!D70) ->  | G68: =IF(ISBLANK('Input & Summary'!B68),"",'Saturation Kinetics'!D70) ->  | H68: =IF(ISBLANK('Input & Summary'!B68),"",'Logistics, 3 Parameters'!D70) ->  | I68: =IF(ISBLANK('Input & Summary'!B68),"",'Logistics, 4 Parameters'!D70) ->  | J68: =IF(ISBLANK('Input & Summary'!B68),"",'RNB, Model 1'!D70) ->  | K68: =IF(ISBLANK('Input & Summary'!B68),"",'RNB, Model 2'!D70) -> 
A69: ='Input & Summary'!A69 -> 68 | B69: =IF(ISBLANK('Input & Summary'!B69),"",'Input & Summary'!B69) ->  | C69: =IF(ISBLANK('Input & Summary'!B69),"",'Linear Regression'!D71) ->  | D69: =IF(ISBLANK('Input & Summary'!B69),"",'Quadratic Regression'!D71) ->  | E69: =IF(ISBLANK('Input & Summary'!B69),"",'Broken Line'!D71) ->  | F69: =IF(ISBLANK('Input & Summary'!B69),"",'Broken Quadratic'!D71) ->  | G69: =IF(ISBLANK('Input & Summary'!B69),"",'Saturation Kinetics'!D71) ->  | H69: =IF(ISBLANK('Input & Summary'!B69),"",'Logistics, 3 Parameters'!D71) ->  | I69: =IF(ISBLANK('Input & Summary'!B69),"",'Logistics, 4 Parameters'!D71) ->  | J69: =IF(ISBLANK('Input & Summary'!B69),"",'RNB, Model 1'!D71) ->  | K69: =IF(ISBLANK('Input & Summary'!B69),"",'RNB, Model 2'!D71) -> 
A70: ='Input & Summary'!A70 -> 69 | B70: =IF(ISBLANK('Input & Summary'!B70),"",'Input & Summary'!B70) ->  | C70: =IF(ISBLANK('Input & Summary'!B70),"",'Linear Regression'!D72) ->  | D70: =IF(ISBLANK('Input & Summary'!B70),"",'Quadratic Regression'!D72) ->  | E70: =IF(ISBLANK('Input & Summary'!B70),"",'Broken Line'!D72) ->  | F70: =IF(ISBLANK('Input & Summary'!B70),"",'Broken Quadratic'!D72) ->  | G70: =IF(ISBLANK('Input & Summary'!B70),"",'Saturation Kinetics'!D72) ->  | H70: =IF(ISBLANK('Input & Summary'!B70),"",'Logistics, 3 Parameters'!D72) ->  | I70: =IF(ISBLANK('Input & Summary'!B70),"",'Logistics, 4 Parameters'!D72) ->  | J70: =IF(ISBLANK('Input & Summary'!B70),"",'RNB, Model 1'!D72) ->  | K70: =IF(ISBLANK('Input & Summary'!B70),"",'RNB, Model 2'!D72) -> 
A71: ='Input & Summary'!A71 -> 70 | B71: =IF(ISBLANK('Input & Summary'!B71),"",'Input & Summary'!B71) ->  | C71: =IF(ISBLANK('Input & Summary'!B71),"",'Linear Regression'!D73) ->  | D71: =IF(ISBLANK('Input & Summary'!B71),"",'Quadratic Regression'!D73) ->  | E71: =IF(ISBLANK('Input & Summary'!B71),"",'Broken Line'!D73) ->  | F71: =IF(ISBLANK('Input & Summary'!B71),"",'Broken Quadratic'!D73) ->  | G71: =IF(ISBLANK('Input & Summary'!B71),"",'Saturation Kinetics'!D73) ->  | H71: =IF(ISBLANK('Input & Summary'!B71),"",'Logistics, 3 Parameters'!D73) ->  | I71: =IF(ISBLANK('Input & Summary'!B71),"",'Logistics, 4 Parameters'!D73) ->  | J71: =IF(ISBLANK('Input & Summary'!B71),"",'RNB, Model 1'!D73) ->  | K71: =IF(ISBLANK('Input & Summary'!B71),"",'RNB, Model 2'!D73) -> 
A72: ='Input & Summary'!A72 -> 71 | B72: =IF(ISBLANK('Input & Summary'!B72),"",'Input & Summary'!B72) ->  | C72: =IF(ISBLANK('Input & Summary'!B72),"",'Linear Regression'!D74) ->  | D72: =IF(ISBLANK('Input & Summary'!B72),"",'Quadratic Regression'!D74) ->  | E72: =IF(ISBLANK('Input & Summary'!B72),"",'Broken Line'!D74) ->  | F72: =IF(ISBLANK('Input & Summary'!B72),"",'Broken Quadratic'!D74) ->  | G72: =IF(ISBLANK('Input & Summary'!B72),"",'Saturation Kinetics'!D74) ->  | H72: =IF(ISBLANK('Input & Summary'!B72),"",'Logistics, 3 Parameters'!D74) ->  | I72: =IF(ISBLANK('Input & Summary'!B72),"",'Logistics, 4 Parameters'!D74) ->  | J72: =IF(ISBLANK('Input & Summary'!B72),"",'RNB, Model 1'!D74) ->  | K72: =IF(ISBLANK('Input & Summary'!B72),"",'RNB, Model 2'!D74) -> 
A73: ='Input & Summary'!A73 -> 72 | B73: =IF(ISBLANK('Input & Summary'!B73),"",'Input & Summary'!B73) ->  | C73: =IF(ISBLANK('Input & Summary'!B73),"",'Linear Regression'!D75) ->  | D73: =IF(ISBLANK('Input & Summary'!B73),"",'Quadratic Regression'!D75) ->  | E73: =IF(ISBLANK('Input & Summary'!B73),"",'Broken Line'!D75) ->  | F73: =IF(ISBLANK('Input & Summary'!B73),"",'Broken Quadratic'!D75) ->  | G73: =IF(ISBLANK('Input & Summary'!B73),"",'Saturation Kinetics'!D75) ->  | H73: =IF(ISBLANK('Input & Summary'!B73),"",'Logistics, 3 Parameters'!D75) ->  | I73: =IF(ISBLANK('Input & Summary'!B73),"",'Logistics, 4 Parameters'!D75) ->  | J73: =IF(ISBLANK('Input & Summary'!B73),"",'RNB, Model 1'!D75) ->  | K73: =IF(ISBLANK('Input & Summary'!B73),"",'RNB, Model 2'!D75) -> 
A74: ='Input & Summary'!A74 -> 73 | B74: =IF(ISBLANK('Input & Summary'!B74),"",'Input & Summary'!B74) ->  | C74: =IF(ISBLANK('Input & Summary'!B74),"",'Linear Regression'!D76) ->  | D74: =IF(ISBLANK('Input & Summary'!B74),"",'Quadratic Regression'!D76) ->  | E74: =IF(ISBLANK('Input & Summary'!B74),"",'Broken Line'!D76) ->  | F74: =IF(ISBLANK('Input & Summary'!B74),"",'Broken Quadratic'!D76) ->  | G74: =IF(ISBLANK('Input & Summary'!B74),"",'Saturation Kinetics'!D76) ->  | H74: =IF(ISBLANK('Input & Summary'!B74),"",'Logistics, 3 Parameters'!D76) ->  | I74: =IF(ISBLANK('Input & Summary'!B74),"",'Logistics, 4 Parameters'!D76) ->  | J74: =IF(ISBLANK('Input & Summary'!B74),"",'RNB, Model 1'!D76) ->  | K74: =IF(ISBLANK('Input & Summary'!B74),"",'RNB, Model 2'!D76) -> 
A75: ='Input & Summary'!A75 -> 74 | B75: =IF(ISBLANK('Input & Summary'!B75),"",'Input & Summary'!B75) ->  | C75: =IF(ISBLANK('Input & Summary'!B75),"",'Linear Regression'!D77) ->  | D75: =IF(ISBLANK('Input & Summary'!B75),"",'Quadratic Regression'!D77) ->  | E75: =IF(ISBLANK('Input & Summary'!B75),"",'Broken Line'!D77) ->  | F75: =IF(ISBLANK('Input & Summary'!B75),"",'Broken Quadratic'!D77) ->  | G75: =IF(ISBLANK('Input & Summary'!B75),"",'Saturation Kinetics'!D77) ->  | H75: =IF(ISBLANK('Input & Summary'!B75),"",'Logistics, 3 Parameters'!D77) ->  | I75: =IF(ISBLANK('Input & Summary'!B75),"",'Logistics, 4 Parameters'!D77) ->  | J75: =IF(ISBLANK('Input & Summary'!B75),"",'RNB, Model 1'!D77) ->  | K75: =IF(ISBLANK('Input & Summary'!B75),"",'RNB, Model 2'!D77) -> 
A76: ='Input & Summary'!A76 -> 75 | B76: =IF(ISBLANK('Input & Summary'!B76),"",'Input & Summary'!B76) ->  | C76: =IF(ISBLANK('Input & Summary'!B76),"",'Linear Regression'!D78) ->  | D76: =IF(ISBLANK('Input & Summary'!B76),"",'Quadratic Regression'!D78) ->  | E76: =IF(ISBLANK('Input & Summary'!B76),"",'Broken Line'!D78) ->  | F76: =IF(ISBLANK('Input & Summary'!B76),"",'Broken Quadratic'!D78) ->  | G76: =IF(ISBLANK('Input & Summary'!B76),"",'Saturation Kinetics'!D78) ->  | H76: =IF(ISBLANK('Input & Summary'!B76),"",'Logistics, 3 Parameters'!D78) ->  | I76: =IF(ISBLANK('Input & Summary'!B76),"",'Logistics, 4 Parameters'!D78) ->  | J76: =IF(ISBLANK('Input & Summary'!B76),"",'RNB, Model 1'!D78) ->  | K76: =IF(ISBLANK('Input & Summary'!B76),"",'RNB, Model 2'!D78) -> 
A77: ='Input & Summary'!A77 -> 76 | B77: =IF(ISBLANK('Input & Summary'!B77),"",'Input & Summary'!B77) ->  | C77: =IF(ISBLANK('Input & Summary'!B77),"",'Linear Regression'!D79) ->  | D77: =IF(ISBLANK('Input & Summary'!B77),"",'Quadratic Regression'!D79) ->  | E77: =IF(ISBLANK('Input & Summary'!B77),"",'Broken Line'!D79) ->  | F77: =IF(ISBLANK('Input & Summary'!B77),"",'Broken Quadratic'!D79) ->  | G77: =IF(ISBLANK('Input & Summary'!B77),"",'Saturation Kinetics'!D79) ->  | H77: =IF(ISBLANK('Input & Summary'!B77),"",'Logistics, 3 Parameters'!D79) ->  | I77: =IF(ISBLANK('Input & Summary'!B77),"",'Logistics, 4 Parameters'!D79) ->  | J77: =IF(ISBLANK('Input & Summary'!B77),"",'RNB, Model 1'!D79) ->  | K77: =IF(ISBLANK('Input & Summary'!B77),"",'RNB, Model 2'!D79) -> 
A78: ='Input & Summary'!A78 -> 77 | B78: =IF(ISBLANK('Input & Summary'!B78),"",'Input & Summary'!B78) ->  | C78: =IF(ISBLANK('Input & Summary'!B78),"",'Linear Regression'!D80) ->  | D78: =IF(ISBLANK('Input & Summary'!B78),"",'Quadratic Regression'!D80) ->  | E78: =IF(ISBLANK('Input & Summary'!B78),"",'Broken Line'!D80) ->  | F78: =IF(ISBLANK('Input & Summary'!B78),"",'Broken Quadratic'!D80) ->  | G78: =IF(ISBLANK('Input & Summary'!B78),"",'Saturation Kinetics'!D80) ->  | H78: =IF(ISBLANK('Input & Summary'!B78),"",'Logistics, 3 Parameters'!D80) ->  | I78: =IF(ISBLANK('Input & Summary'!B78),"",'Logistics, 4 Parameters'!D80) ->  | J78: =IF(ISBLANK('Input & Summary'!B78),"",'RNB, Model 1'!D80) ->  | K78: =IF(ISBLANK('Input & Summary'!B78),"",'RNB, Model 2'!D80) -> 
A79: ='Input & Summary'!A79 -> 78 | B79: =IF(ISBLANK('Input & Summary'!B79),"",'Input & Summary'!B79) ->  | C79: =IF(ISBLANK('Input & Summary'!B79),"",'Linear Regression'!D81) ->  | D79: =IF(ISBLANK('Input & Summary'!B79),"",'Quadratic Regression'!D81) ->  | E79: =IF(ISBLANK('Input & Summary'!B79),"",'Broken Line'!D81) ->  | F79: =IF(ISBLANK('Input & Summary'!B79),"",'Broken Quadratic'!D81) ->  | G79: =IF(ISBLANK('Input & Summary'!B79),"",'Saturation Kinetics'!D81) ->  | H79: =IF(ISBLANK('Input & Summary'!B79),"",'Logistics, 3 Parameters'!D81) ->  | I79: =IF(ISBLANK('Input & Summary'!B79),"",'Logistics, 4 Parameters'!D81) ->  | J79: =IF(ISBLANK('Input & Summary'!B79),"",'RNB, Model 1'!D81) ->  | K79: =IF(ISBLANK('Input & Summary'!B79),"",'RNB, Model 2'!D81) -> 
A80: ='Input & Summary'!A80 -> 79 | B80: =IF(ISBLANK('Input & Summary'!B80),"",'Input & Summary'!B80) ->  | C80: =IF(ISBLANK('Input & Summary'!B80),"",'Linear Regression'!D82) ->  | D80: =IF(ISBLANK('Input & Summary'!B80),"",'Quadratic Regression'!D82) ->  | E80: =IF(ISBLANK('Input & Summary'!B80),"",'Broken Line'!D82) ->  | F80: =IF(ISBLANK('Input & Summary'!B80),"",'Broken Quadratic'!D82) ->  | G80: =IF(ISBLANK('Input & Summary'!B80),"",'Saturation Kinetics'!D82) ->  | H80: =IF(ISBLANK('Input & Summary'!B80),"",'Logistics, 3 Parameters'!D82) ->  | I80: =IF(ISBLANK('Input & Summary'!B80),"",'Logistics, 4 Parameters'!D82) ->  | J80: =IF(ISBLANK('Input & Summary'!B80),"",'RNB, Model 1'!D82) ->  | K80: =IF(ISBLANK('Input & Summary'!B80),"",'RNB, Model 2'!D82) -> 
A81: ='Input & Summary'!A81 -> 80 | B81: =IF(ISBLANK('Input & Summary'!B81),"",'Input & Summary'!B81) ->  | C81: =IF(ISBLANK('Input & Summary'!B81),"",'Linear Regression'!D83) ->  | D81: =IF(ISBLANK('Input & Summary'!B81),"",'Quadratic Regression'!D83) ->  | E81: =IF(ISBLANK('Input & Summary'!B81),"",'Broken Line'!D83) ->  | F81: =IF(ISBLANK('Input & Summary'!B81),"",'Broken Quadratic'!D83) ->  | G81: =IF(ISBLANK('Input & Summary'!B81),"",'Saturation Kinetics'!D83) ->  | H81: =IF(ISBLANK('Input & Summary'!B81),"",'Logistics, 3 Parameters'!D83) ->  | I81: =IF(ISBLANK('Input & Summary'!B81),"",'Logistics, 4 Parameters'!D83) ->  | J81: =IF(ISBLANK('Input & Summary'!B81),"",'RNB, Model 1'!D83) ->  | K81: =IF(ISBLANK('Input & Summary'!B81),"",'RNB, Model 2'!D83) -> 
A82: ='Input & Summary'!A82 -> 81 | B82: =IF(ISBLANK('Input & Summary'!B82),"",'Input & Summary'!B82) ->  | C82: =IF(ISBLANK('Input & Summary'!B82),"",'Linear Regression'!D84) ->  | D82: =IF(ISBLANK('Input & Summary'!B82),"",'Quadratic Regression'!D84) ->  | E82: =IF(ISBLANK('Input & Summary'!B82),"",'Broken Line'!D84) ->  | F82: =IF(ISBLANK('Input & Summary'!B82),"",'Broken Quadratic'!D84) ->  | G82: =IF(ISBLANK('Input & Summary'!B82),"",'Saturation Kinetics'!D84) ->  | H82: =IF(ISBLANK('Input & Summary'!B82),"",'Logistics, 3 Parameters'!D84) ->  | I82: =IF(ISBLANK('Input & Summary'!B82),"",'Logistics, 4 Parameters'!D84) ->  | J82: =IF(ISBLANK('Input & Summary'!B82),"",'RNB, Model 1'!D84) ->  | K82: =IF(ISBLANK('Input & Summary'!B82),"",'RNB, Model 2'!D84) -> 
A83: ='Input & Summary'!A83 -> 82 | B83: =IF(ISBLANK('Input & Summary'!B83),"",'Input & Summary'!B83) ->  | C83: =IF(ISBLANK('Input & Summary'!B83),"",'Linear Regression'!D85) ->  | D83: =IF(ISBLANK('Input & Summary'!B83),"",'Quadratic Regression'!D85) ->  | E83: =IF(ISBLANK('Input & Summary'!B83),"",'Broken Line'!D85) ->  | F83: =IF(ISBLANK('Input & Summary'!B83),"",'Broken Quadratic'!D85) ->  | G83: =IF(ISBLANK('Input & Summary'!B83),"",'Saturation Kinetics'!D85) ->  | H83: =IF(ISBLANK('Input & Summary'!B83),"",'Logistics, 3 Parameters'!D85) ->  | I83: =IF(ISBLANK('Input & Summary'!B83),"",'Logistics, 4 Parameters'!D85) ->  | J83: =IF(ISBLANK('Input & Summary'!B83),"",'RNB, Model 1'!D85) ->  | K83: =IF(ISBLANK('Input & Summary'!B83),"",'RNB, Model 2'!D85) -> 
A84: ='Input & Summary'!A84 -> 83 | B84: =IF(ISBLANK('Input & Summary'!B84),"",'Input & Summary'!B84) ->  | C84: =IF(ISBLANK('Input & Summary'!B84),"",'Linear Regression'!D86) ->  | D84: =IF(ISBLANK('Input & Summary'!B84),"",'Quadratic Regression'!D86) ->  | E84: =IF(ISBLANK('Input & Summary'!B84),"",'Broken Line'!D86) ->  | F84: =IF(ISBLANK('Input & Summary'!B84),"",'Broken Quadratic'!D86) ->  | G84: =IF(ISBLANK('Input & Summary'!B84),"",'Saturation Kinetics'!D86) ->  | H84: =IF(ISBLANK('Input & Summary'!B84),"",'Logistics, 3 Parameters'!D86) ->  | I84: =IF(ISBLANK('Input & Summary'!B84),"",'Logistics, 4 Parameters'!D86) ->  | J84: =IF(ISBLANK('Input & Summary'!B84),"",'RNB, Model 1'!D86) ->  | K84: =IF(ISBLANK('Input & Summary'!B84),"",'RNB, Model 2'!D86) -> 
A85: ='Input & Summary'!A85 -> 84 | B85: =IF(ISBLANK('Input & Summary'!B85),"",'Input & Summary'!B85) ->  | C85: =IF(ISBLANK('Input & Summary'!B85),"",'Linear Regression'!D87) ->  | D85: =IF(ISBLANK('Input & Summary'!B85),"",'Quadratic Regression'!D87) ->  | E85: =IF(ISBLANK('Input & Summary'!B85),"",'Broken Line'!D87) ->  | F85: =IF(ISBLANK('Input & Summary'!B85),"",'Broken Quadratic'!D87) ->  | G85: =IF(ISBLANK('Input & Summary'!B85),"",'Saturation Kinetics'!D87) ->  | H85: =IF(ISBLANK('Input & Summary'!B85),"",'Logistics, 3 Parameters'!D87) ->  | I85: =IF(ISBLANK('Input & Summary'!B85),"",'Logistics, 4 Parameters'!D87) ->  | J85: =IF(ISBLANK('Input & Summary'!B85),"",'RNB, Model 1'!D87) ->  | K85: =IF(ISBLANK('Input & Summary'!B85),"",'RNB, Model 2'!D87) -> 
A86: ='Input & Summary'!A86 -> 85 | B86: =IF(ISBLANK('Input & Summary'!B86),"",'Input & Summary'!B86) ->  | C86: =IF(ISBLANK('Input & Summary'!B86),"",'Linear Regression'!D88) ->  | D86: =IF(ISBLANK('Input & Summary'!B86),"",'Quadratic Regression'!D88) ->  | E86: =IF(ISBLANK('Input & Summary'!B86),"",'Broken Line'!D88) ->  | F86: =IF(ISBLANK('Input & Summary'!B86),"",'Broken Quadratic'!D88) ->  | G86: =IF(ISBLANK('Input & Summary'!B86),"",'Saturation Kinetics'!D88) ->  | H86: =IF(ISBLANK('Input & Summary'!B86),"",'Logistics, 3 Parameters'!D88) ->  | I86: =IF(ISBLANK('Input & Summary'!B86),"",'Logistics, 4 Parameters'!D88) ->  | J86: =IF(ISBLANK('Input & Summary'!B86),"",'RNB, Model 1'!D88) ->  | K86: =IF(ISBLANK('Input & Summary'!B86),"",'RNB, Model 2'!D88) -> 
A87: ='Input & Summary'!A87 -> 86 | B87: =IF(ISBLANK('Input & Summary'!B87),"",'Input & Summary'!B87) ->  | C87: =IF(ISBLANK('Input & Summary'!B87),"",'Linear Regression'!D89) ->  | D87: =IF(ISBLANK('Input & Summary'!B87),"",'Quadratic Regression'!D89) ->  | E87: =IF(ISBLANK('Input & Summary'!B87),"",'Broken Line'!D89) ->  | F87: =IF(ISBLANK('Input & Summary'!B87),"",'Broken Quadratic'!D89) ->  | G87: =IF(ISBLANK('Input & Summary'!B87),"",'Saturation Kinetics'!D89) ->  | H87: =IF(ISBLANK('Input & Summary'!B87),"",'Logistics, 3 Parameters'!D89) ->  | I87: =IF(ISBLANK('Input & Summary'!B87),"",'Logistics, 4 Parameters'!D89) ->  | J87: =IF(ISBLANK('Input & Summary'!B87),"",'RNB, Model 1'!D89) ->  | K87: =IF(ISBLANK('Input & Summary'!B87),"",'RNB, Model 2'!D89) -> 
A88: ='Input & Summary'!A88 -> 87 | B88: =IF(ISBLANK('Input & Summary'!B88),"",'Input & Summary'!B88) ->  | C88: =IF(ISBLANK('Input & Summary'!B88),"",'Linear Regression'!D90) ->  | D88: =IF(ISBLANK('Input & Summary'!B88),"",'Quadratic Regression'!D90) ->  | E88: =IF(ISBLANK('Input & Summary'!B88),"",'Broken Line'!D90) ->  | F88: =IF(ISBLANK('Input & Summary'!B88),"",'Broken Quadratic'!D90) ->  | G88: =IF(ISBLANK('Input & Summary'!B88),"",'Saturation Kinetics'!D90) ->  | H88: =IF(ISBLANK('Input & Summary'!B88),"",'Logistics, 3 Parameters'!D90) ->  | I88: =IF(ISBLANK('Input & Summary'!B88),"",'Logistics, 4 Parameters'!D90) ->  | J88: =IF(ISBLANK('Input & Summary'!B88),"",'RNB, Model 1'!D90) ->  | K88: =IF(ISBLANK('Input & Summary'!B88),"",'RNB, Model 2'!D90) -> 
A89: ='Input & Summary'!A89 -> 88 | B89: =IF(ISBLANK('Input & Summary'!B89),"",'Input & Summary'!B89) ->  | C89: =IF(ISBLANK('Input & Summary'!B89),"",'Linear Regression'!D91) ->  | D89: =IF(ISBLANK('Input & Summary'!B89),"",'Quadratic Regression'!D91) ->  | E89: =IF(ISBLANK('Input & Summary'!B89),"",'Broken Line'!D91) ->  | F89: =IF(ISBLANK('Input & Summary'!B89),"",'Broken Quadratic'!D91) ->  | G89: =IF(ISBLANK('Input & Summary'!B89),"",'Saturation Kinetics'!D91) ->  | H89: =IF(ISBLANK('Input & Summary'!B89),"",'Logistics, 3 Parameters'!D91) ->  | I89: =IF(ISBLANK('Input & Summary'!B89),"",'Logistics, 4 Parameters'!D91) ->  | J89: =IF(ISBLANK('Input & Summary'!B89),"",'RNB, Model 1'!D91) ->  | K89: =IF(ISBLANK('Input & Summary'!B89),"",'RNB, Model 2'!D91) -> 
A90: ='Input & Summary'!A90 -> 89 | B90: =IF(ISBLANK('Input & Summary'!B90),"",'Input & Summary'!B90) ->  | C90: =IF(ISBLANK('Input & Summary'!B90),"",'Linear Regression'!D92) ->  | D90: =IF(ISBLANK('Input & Summary'!B90),"",'Quadratic Regression'!D92) ->  | E90: =IF(ISBLANK('Input & Summary'!B90),"",'Broken Line'!D92) ->  | F90: =IF(ISBLANK('Input & Summary'!B90),"",'Broken Quadratic'!D92) ->  | G90: =IF(ISBLANK('Input & Summary'!B90),"",'Saturation Kinetics'!D92) ->  | H90: =IF(ISBLANK('Input & Summary'!B90),"",'Logistics, 3 Parameters'!D92) ->  | I90: =IF(ISBLANK('Input & Summary'!B90),"",'Logistics, 4 Parameters'!D92) ->  | J90: =IF(ISBLANK('Input & Summary'!B90),"",'RNB, Model 1'!D92) ->  | K90: =IF(ISBLANK('Input & Summary'!B90),"",'RNB, Model 2'!D92) -> 
A91: ='Input & Summary'!A91 -> 90 | B91: =IF(ISBLANK('Input & Summary'!B91),"",'Input & Summary'!B91) ->  | C91: =IF(ISBLANK('Input & Summary'!B91),"",'Linear Regression'!D93) ->  | D91: =IF(ISBLANK('Input & Summary'!B91),"",'Quadratic Regression'!D93) ->  | E91: =IF(ISBLANK('Input & Summary'!B91),"",'Broken Line'!D93) ->  | F91: =IF(ISBLANK('Input & Summary'!B91),"",'Broken Quadratic'!D93) ->  | G91: =IF(ISBLANK('Input & Summary'!B91),"",'Saturation Kinetics'!D93) ->  | H91: =IF(ISBLANK('Input & Summary'!B91),"",'Logistics, 3 Parameters'!D93) ->  | I91: =IF(ISBLANK('Input & Summary'!B91),"",'Logistics, 4 Parameters'!D93) ->  | J91: =IF(ISBLANK('Input & Summary'!B91),"",'RNB, Model 1'!D93) ->  | K91: =IF(ISBLANK('Input & Summary'!B91),"",'RNB, Model 2'!D93) -> 
A92: ='Input & Summary'!A92 -> 91 | B92: =IF(ISBLANK('Input & Summary'!B92),"",'Input & Summary'!B92) ->  | C92: =IF(ISBLANK('Input & Summary'!B92),"",'Linear Regression'!D94) ->  | D92: =IF(ISBLANK('Input & Summary'!B92),"",'Quadratic Regression'!D94) ->  | E92: =IF(ISBLANK('Input & Summary'!B92),"",'Broken Line'!D94) ->  | F92: =IF(ISBLANK('Input & Summary'!B92),"",'Broken Quadratic'!D94) ->  | G92: =IF(ISBLANK('Input & Summary'!B92),"",'Saturation Kinetics'!D94) ->  | H92: =IF(ISBLANK('Input & Summary'!B92),"",'Logistics, 3 Parameters'!D94) ->  | I92: =IF(ISBLANK('Input & Summary'!B92),"",'Logistics, 4 Parameters'!D94) ->  | J92: =IF(ISBLANK('Input & Summary'!B92),"",'RNB, Model 1'!D94) ->  | K92: =IF(ISBLANK('Input & Summary'!B92),"",'RNB, Model 2'!D94) -> 
A93: ='Input & Summary'!A93 -> 92 | B93: =IF(ISBLANK('Input & Summary'!B93),"",'Input & Summary'!B93) ->  | C93: =IF(ISBLANK('Input & Summary'!B93),"",'Linear Regression'!D95) ->  | D93: =IF(ISBLANK('Input & Summary'!B93),"",'Quadratic Regression'!D95) ->  | E93: =IF(ISBLANK('Input & Summary'!B93),"",'Broken Line'!D95) ->  | F93: =IF(ISBLANK('Input & Summary'!B93),"",'Broken Quadratic'!D95) ->  | G93: =IF(ISBLANK('Input & Summary'!B93),"",'Saturation Kinetics'!D95) ->  | H93: =IF(ISBLANK('Input & Summary'!B93),"",'Logistics, 3 Parameters'!D95) ->  | I93: =IF(ISBLANK('Input & Summary'!B93),"",'Logistics, 4 Parameters'!D95) ->  | J93: =IF(ISBLANK('Input & Summary'!B93),"",'RNB, Model 1'!D95) ->  | K93: =IF(ISBLANK('Input & Summary'!B93),"",'RNB, Model 2'!D95) -> 
A94: ='Input & Summary'!A94 -> 93 | B94: =IF(ISBLANK('Input & Summary'!B94),"",'Input & Summary'!B94) ->  | C94: =IF(ISBLANK('Input & Summary'!B94),"",'Linear Regression'!D96) ->  | D94: =IF(ISBLANK('Input & Summary'!B94),"",'Quadratic Regression'!D96) ->  | E94: =IF(ISBLANK('Input & Summary'!B94),"",'Broken Line'!D96) ->  | F94: =IF(ISBLANK('Input & Summary'!B94),"",'Broken Quadratic'!D96) ->  | G94: =IF(ISBLANK('Input & Summary'!B94),"",'Saturation Kinetics'!D96) ->  | H94: =IF(ISBLANK('Input & Summary'!B94),"",'Logistics, 3 Parameters'!D96) ->  | I94: =IF(ISBLANK('Input & Summary'!B94),"",'Logistics, 4 Parameters'!D96) ->  | J94: =IF(ISBLANK('Input & Summary'!B94),"",'RNB, Model 1'!D96) ->  | K94: =IF(ISBLANK('Input & Summary'!B94),"",'RNB, Model 2'!D96) -> 
A95: ='Input & Summary'!A95 -> 94 | B95: =IF(ISBLANK('Input & Summary'!B95),"",'Input & Summary'!B95) ->  | C95: =IF(ISBLANK('Input & Summary'!B95),"",'Linear Regression'!D97) ->  | D95: =IF(ISBLANK('Input & Summary'!B95),"",'Quadratic Regression'!D97) ->  | E95: =IF(ISBLANK('Input & Summary'!B95),"",'Broken Line'!D97) ->  | F95: =IF(ISBLANK('Input & Summary'!B95),"",'Broken Quadratic'!D97) ->  | G95: =IF(ISBLANK('Input & Summary'!B95),"",'Saturation Kinetics'!D97) ->  | H95: =IF(ISBLANK('Input & Summary'!B95),"",'Logistics, 3 Parameters'!D97) ->  | I95: =IF(ISBLANK('Input & Summary'!B95),"",'Logistics, 4 Parameters'!D97) ->  | J95: =IF(ISBLANK('Input & Summary'!B95),"",'RNB, Model 1'!D97) ->  | K95: =IF(ISBLANK('Input & Summary'!B95),"",'RNB, Model 2'!D97) -> 
A96: ='Input & Summary'!A96 -> 95 | B96: =IF(ISBLANK('Input & Summary'!B96),"",'Input & Summary'!B96) ->  | C96: =IF(ISBLANK('Input & Summary'!B96),"",'Linear Regression'!D98) ->  | D96: =IF(ISBLANK('Input & Summary'!B96),"",'Quadratic Regression'!D98) ->  | E96: =IF(ISBLANK('Input & Summary'!B96),"",'Broken Line'!D98) ->  | F96: =IF(ISBLANK('Input & Summary'!B96),"",'Broken Quadratic'!D98) ->  | G96: =IF(ISBLANK('Input & Summary'!B96),"",'Saturation Kinetics'!D98) ->  | H96: =IF(ISBLANK('Input & Summary'!B96),"",'Logistics, 3 Parameters'!D98) ->  | I96: =IF(ISBLANK('Input & Summary'!B96),"",'Logistics, 4 Parameters'!D98) ->  | J96: =IF(ISBLANK('Input & Summary'!B96),"",'RNB, Model 1'!D98) ->  | K96: =IF(ISBLANK('Input & Summary'!B96),"",'RNB, Model 2'!D98) -> 
A97: ='Input & Summary'!A97 -> 96 | B97: =IF(ISBLANK('Input & Summary'!B97),"",'Input & Summary'!B97) ->  | C97: =IF(ISBLANK('Input & Summary'!B97),"",'Linear Regression'!D99) ->  | D97: =IF(ISBLANK('Input & Summary'!B97),"",'Quadratic Regression'!D99) ->  | E97: =IF(ISBLANK('Input & Summary'!B97),"",'Broken Line'!D99) ->  | F97: =IF(ISBLANK('Input & Summary'!B97),"",'Broken Quadratic'!D99) ->  | G97: =IF(ISBLANK('Input & Summary'!B97),"",'Saturation Kinetics'!D99) ->  | H97: =IF(ISBLANK('Input & Summary'!B97),"",'Logistics, 3 Parameters'!D99) ->  | I97: =IF(ISBLANK('Input & Summary'!B97),"",'Logistics, 4 Parameters'!D99) ->  | J97: =IF(ISBLANK('Input & Summary'!B97),"",'RNB, Model 1'!D99) ->  | K97: =IF(ISBLANK('Input & Summary'!B97),"",'RNB, Model 2'!D99) -> 
A98: ='Input & Summary'!A98 -> 97 | B98: =IF(ISBLANK('Input & Summary'!B98),"",'Input & Summary'!B98) ->  | C98: =IF(ISBLANK('Input & Summary'!B98),"",'Linear Regression'!D100) ->  | D98: =IF(ISBLANK('Input & Summary'!B98),"",'Quadratic Regression'!D100) ->  | E98: =IF(ISBLANK('Input & Summary'!B98),"",'Broken Line'!D100) ->  | F98: =IF(ISBLANK('Input & Summary'!B98),"",'Broken Quadratic'!D100) ->  | G98: =IF(ISBLANK('Input & Summary'!B98),"",'Saturation Kinetics'!D100) ->  | H98: =IF(ISBLANK('Input & Summary'!B98),"",'Logistics, 3 Parameters'!D100) ->  | I98: =IF(ISBLANK('Input & Summary'!B98),"",'Logistics, 4 Parameters'!D100) ->  | J98: =IF(ISBLANK('Input & Summary'!B98),"",'RNB, Model 1'!D100) ->  | K98: =IF(ISBLANK('Input & Summary'!B98),"",'RNB, Model 2'!D100) -> 
A99: ='Input & Summary'!A99 -> 98 | B99: =IF(ISBLANK('Input & Summary'!B99),"",'Input & Summary'!B99) ->  | C99: =IF(ISBLANK('Input & Summary'!B99),"",'Linear Regression'!D101) ->  | D99: =IF(ISBLANK('Input & Summary'!B99),"",'Quadratic Regression'!D101) ->  | E99: =IF(ISBLANK('Input & Summary'!B99),"",'Broken Line'!D101) ->  | F99: =IF(ISBLANK('Input & Summary'!B99),"",'Broken Quadratic'!D101) ->  | G99: =IF(ISBLANK('Input & Summary'!B99),"",'Saturation Kinetics'!D101) ->  | H99: =IF(ISBLANK('Input & Summary'!B99),"",'Logistics, 3 Parameters'!D101) ->  | I99: =IF(ISBLANK('Input & Summary'!B99),"",'Logistics, 4 Parameters'!D101) ->  | J99: =IF(ISBLANK('Input & Summary'!B99),"",'RNB, Model 1'!D101) ->  | K99: =IF(ISBLANK('Input & Summary'!B99),"",'RNB, Model 2'!D101) -> 
A100: ='Input & Summary'!A100 -> 99 | B100: =IF(ISBLANK('Input & Summary'!B100),"",'Input & Summary'!B100) ->  | C100: =IF(ISBLANK('Input & Summary'!B100),"",'Linear Regression'!D102) ->  | D100: =IF(ISBLANK('Input & Summary'!B100),"",'Quadratic Regression'!D102) ->  | E100: =IF(ISBLANK('Input & Summary'!B100),"",'Broken Line'!D102) ->  | F100: =IF(ISBLANK('Input & Summary'!B100),"",'Broken Quadratic'!D102) ->  | G100: =IF(ISBLANK('Input & Summary'!B100),"",'Saturation Kinetics'!D102) ->  | H100: =IF(ISBLANK('Input & Summary'!B100),"",'Logistics, 3 Parameters'!D102) ->  | I100: =IF(ISBLANK('Input & Summary'!B100),"",'Logistics, 4 Parameters'!D102) ->  | J100: =IF(ISBLANK('Input & Summary'!B100),"",'RNB, Model 1'!D102) ->  | K100: =IF(ISBLANK('Input & Summary'!B100),"",'RNB, Model 2'!D102) -> 
A101: ='Input & Summary'!A101 -> 100 | B101: =IF(ISBLANK('Input & Summary'!B101),"",'Input & Summary'!B101) ->  | C101: =IF(ISBLANK('Input & Summary'!B101),"",'Linear Regression'!D103) ->  | D101: =IF(ISBLANK('Input & Summary'!B101),"",'Quadratic Regression'!D103) ->  | E101: =IF(ISBLANK('Input & Summary'!B101),"",'Broken Line'!D103) ->  | F101: =IF(ISBLANK('Input & Summary'!B101),"",'Broken Quadratic'!D103) ->  | G101: =IF(ISBLANK('Input & Summary'!B101),"",'Saturation Kinetics'!D103) ->  | H101: =IF(ISBLANK('Input & Summary'!B101),"",'Logistics, 3 Parameters'!D103) ->  | I101: =IF(ISBLANK('Input & Summary'!B101),"",'Logistics, 4 Parameters'!D103) ->  | J101: =IF(ISBLANK('Input & Summary'!B101),"",'RNB, Model 1'!D103) ->  | K101: =IF(ISBLANK('Input & Summary'!B101),"",'RNB, Model 2'!D103) -> 
A102: min | B102: =MIN(B2:B101) -> 0.6
A103: max | B103: =MAX(B2:B101) -> 1.2

Sheet Sheet2
